NUMERO_MANDATO;RIGA_MANDATO;IMPORTO_RIGA;IMPORTO_MANDATO;BENEFICIARIO;CIG;TITOLO_PAGAMENTO;DATA_MANDATO;CAPITOLO;ARTICOLO;NUMERO_IMPEGNO;TITOLO;DESCR_TITOLO;LIVELLO_II;DESCR_LIVELLO_II;LIVELLO_III;DESCR_LIVELLO_III;LIVELLO_IV;DESCR_LIVELLO_IV;LIVELLO_V;DESCR_LIVELLO_V;DATA_PAG_EFF;
2;1;"14,78";"1.314,42";ENEL ENERGIA SPA; ;Fatt.n. 004701659396 del 10/12/2016;12-01-2017;6030;5;508;1;Spese correnti;3;Acquisto di beni e servizi;2;Acquisto di servizi;5;Utenze e canoni;4;Energia elettrica;2017-01-19;
2;2;"577,80";"1.314,42";ENEL ENERGIA SPA; ;Fatt.n. 004701659379 del 10/12/2016 FATT. OTT./NOV. 2016;12-01-2017;6030;5;508;1;Spese correnti;3;Acquisto di beni e servizi;2;Acquisto di servizi;5;Utenze e canoni;4;Energia elettrica;2017-01-19;
2;3;"724,84";"1.314,42";ENEL ENERGIA SPA; ;Fatt.n. 004701659381 del 10/12/2016 FATT. NOV.2016;12-01-2017;6030;5;508;1;Spese correnti;3;Acquisto di beni e servizi;2;Acquisto di servizi;5;Utenze e canoni;4;Energia elettrica;2017-01-19;
3;1;"104,01";"104,01";ENEL ENERGIA SPA; ;Fatt.n. 004701659396 del 10/12/2016;12-01-2017;6030;6;509;1;Spese correnti;3;Acquisto di beni e servizi;2;Acquisto di servizi;5;Utenze e canoni;4;Energia elettrica;2017-01-19;
4;1;"94,62";"94,62";ENEL ENERGIA SPA; ;Fatt.n. 004701659388 del 10/12/2016 FATT. OTT./NOV. 2016;12-01-2017;6030;7;510;1;Spese correnti;3;Acquisto di beni e servizi;2;Acquisto di servizi;5;Utenze e canoni;4;Energia elettrica;2017-01-19;
5;1;"79,60";"194,74";ENEL ENERGIA SPA; ;Fatt.n. 004701659392 del 10/12/2016 FATT. OTT./NOV. 2016;12-01-2017;6030;8;511;1;Spese correnti;3;Acquisto di beni e servizi;2;Acquisto di servizi;5;Utenze e canoni;4;Energia elettrica;2017-01-19;
5;2;"115,14";"194,74";ENEL ENERGIA SPA; ;Fatt.n. 004701659383 del 10/12/2016 FATT. OTT./NOV. 2016;12-01-2017;6030;8;511;1;Spese correnti;3;Acquisto di beni e servizi;2;Acquisto di servizi;5;Utenze e canoni;4;Energia elettrica;2017-01-19;
6;1;"280,04";"1.008,37";ENEL ENERGIA SPA; ;Fatt.n. 004701643536 del 07/12/2016 FATT. NOV. 2016;12-01-2017;6030;9;512;1;Spese correnti;3;Acquisto di beni e servizi;2;Acquisto di servizi;5;Utenze e canoni;4;Energia elettrica;2017-01-19;
6;2;"728,33";"1.008,37";ENEL ENERGIA SPA; ;Fatt.n. 004701700332 del 13/12/2016 FATT. NOV. 2016;12-01-2017;6030;9;512;1;Spese correnti;3;Acquisto di beni e servizi;2;Acquisto di servizi;5;Utenze e canoni;4;Energia elettrica;2017-01-19;
7;1;"501,92";"501,92";ENEL ENERGIA SPA; ;Fatt.n. 004701659386 del 10/12/2016 FATT. NOV. 2016;12-01-2017;6030;10;513;1;Spese correnti;3;Acquisto di beni e servizi;2;Acquisto di servizi;5;Utenze e canoni;4;Energia elettrica;2017-01-19;
8;1;"803,56";"803,56";ENEL ENERGIA SPA; ;Fatt.n. 004701659387 del 10/12/2016 FATT. OTT./NOV. 2016;12-01-2017;6030;11;514;1;Spese correnti;3;Acquisto di beni e servizi;2;Acquisto di servizi;5;Utenze e canoni;4;Energia elettrica;2017-01-19;
9;1;"34,56";"15.644,21";ENEL ENERGIA SPA; ;Fatt.n. 004701662321 del 10/12/2016 FATT. NOV. 2016;12-01-2017;6030;12;515;1;Spese correnti;3;Acquisto di beni e servizi;2;Acquisto di servizi;5;Utenze e canoni;4;Energia elettrica;2017-01-19;
9;2;"38,36";"15.644,21";ENEL ENERGIA SPA; ;Fatt.n. 004701659391 del 10/12/2016 FATT. NOV. 2016;12-01-2017;6030;12;515;1;Spese correnti;3;Acquisto di beni e servizi;2;Acquisto di servizi;5;Utenze e canoni;4;Energia elettrica;2017-01-19;
9;3;"47,38";"15.644,21";ENEL ENERGIA SPA; ;Fatt.n. 004701663130 del 10/12/2016 FATT. OTT./ NOV. 2016;12-01-2017;6030;12;515;1;Spese correnti;3;Acquisto di beni e servizi;2;Acquisto di servizi;5;Utenze e canoni;4;Energia elettrica;2017-01-19;
9;4;"49,00";"15.644,21";ENEL ENERGIA SPA; ;Fatt.n. 004701662331 del 10/12/2016 FATT. NOV. 2016;12-01-2017;6030;12;515;1;Spese correnti;3;Acquisto di beni e servizi;2;Acquisto di servizi;5;Utenze e canoni;4;Energia elettrica;2017-01-19;
9;5;"53,98";"15.644,21";ENEL ENERGIA SPA; ;Fatt.n. 004701639977 del 07/12/2016 fatt. nov. 2016;12-01-2017;6030;12;515;1;Spese correnti;3;Acquisto di beni e servizi;2;Acquisto di servizi;5;Utenze e canoni;4;Energia elettrica;2017-01-19;
9;6;"87,88";"15.644,21";ENEL ENERGIA SPA; ;Fatt.n. 004701662328 del 10/12/2016 FATT. NOV. 2016;12-01-2017;6030;12;515;1;Spese correnti;3;Acquisto di beni e servizi;2;Acquisto di servizi;5;Utenze e canoni;4;Energia elettrica;2017-01-19;
9;7;"87,19";"15.644,21";ENEL ENERGIA SPA; ;Fatt.n. 004701662318 del 10/12/2016 FATT. NOV. 2016;12-01-2017;6030;12;515;1;Spese correnti;3;Acquisto di beni e servizi;2;Acquisto di servizi;5;Utenze e canoni;4;Energia elettrica;2017-01-19;
9;8;"99,83";"15.644,21";ENEL ENERGIA SPA; ;Fatt.n. 004701662320 del 10/12/2016 FATT. NOV. 2016;12-01-2017;6030;12;515;1;Spese correnti;3;Acquisto di beni e servizi;2;Acquisto di servizi;5;Utenze e canoni;4;Energia elettrica;2017-01-19;
9;9;"111,11";"15.644,21";ENEL ENERGIA SPA; ;Fatt.n. 004701662332 del 10/12/2016 FATT. NOV. 2016;12-01-2017;6030;12;515;1;Spese correnti;3;Acquisto di beni e servizi;2;Acquisto di servizi;5;Utenze e canoni;4;Energia elettrica;2017-01-19;
9;10;"116,63";"15.644,21";ENEL ENERGIA SPA; ;Fatt.n. 004701662316 del 10/12/2016 FATT. NOV. 2016;12-01-2017;6030;12;515;1;Spese correnti;3;Acquisto di beni e servizi;2;Acquisto di servizi;5;Utenze e canoni;4;Energia elettrica;2017-01-19;
9;11;"125,14";"15.644,21";ENEL ENERGIA SPA; ;Fatt.n. 004701662326 del 10/12/2016 FATT. NOV. 2016;12-01-2017;6030;12;515;1;Spese correnti;3;Acquisto di beni e servizi;2;Acquisto di servizi;5;Utenze e canoni;4;Energia elettrica;2017-01-19;
9;12;"126,86";"15.644,21";ENEL ENERGIA SPA; ;Fatt.n. 004701662325 del 10/12/2016 FATT. NOV. 2016;12-01-2017;6030;12;515;1;Spese correnti;3;Acquisto di beni e servizi;2;Acquisto di servizi;5;Utenze e canoni;4;Energia elettrica;2017-01-19;
9;13;"151,98";"15.644,21";ENEL ENERGIA SPA; ;Fatt.n. 004701659749 del 10/12/2016 FATT. NOV. 2016;12-01-2017;6030;12;515;1;Spese correnti;3;Acquisto di beni e servizi;2;Acquisto di servizi;5;Utenze e canoni;4;Energia elettrica;2017-01-19;
9;14;"156,79";"15.644,21";ENEL ENERGIA SPA; ;Fatt.n. 004701638959 del 07/12/2016 fatt. nov. 2016;12-01-2017;6030;12;515;1;Spese correnti;3;Acquisto di beni e servizi;2;Acquisto di servizi;5;Utenze e canoni;4;Energia elettrica;2017-01-19;
9;15;"161,05";"15.644,21";ENEL ENERGIA SPA; ;Fatt.n. 004701647054 del 07/12/2016 fatt. nov. 2016;12-01-2017;6030;12;515;1;Spese correnti;3;Acquisto di beni e servizi;2;Acquisto di servizi;5;Utenze e canoni;4;Energia elettrica;2017-01-19;
9;16;"173,39";"15.644,21";ENEL ENERGIA SPA; ;Fatt.n. 004701657801 del 10/12/2016 FATT. NOV. 2016;12-01-2017;6030;12;515;1;Spese correnti;3;Acquisto di beni e servizi;2;Acquisto di servizi;5;Utenze e canoni;4;Energia elettrica;2017-01-19;
9;17;"190,20";"15.644,21";ENEL ENERGIA SPA; ;Fatt.n. 004701662327 del 10/12/2016 FATT. NOV. 2016;12-01-2017;6030;12;515;1;Spese correnti;3;Acquisto di beni e servizi;2;Acquisto di servizi;5;Utenze e canoni;4;Energia elettrica;2017-01-19;
9;18;"239,23";"15.644,21";ENEL ENERGIA SPA; ;Fatt.n. 004701662323 del 10/12/2016 FATT. NOV. 2016;12-01-2017;6030;12;515;1;Spese correnti;3;Acquisto di beni e servizi;2;Acquisto di servizi;5;Utenze e canoni;4;Energia elettrica;2017-01-19;
9;19;"300,53";"15.644,21";ENEL ENERGIA SPA; ;Fatt.n. 004701662317 del 10/12/2016 FATT. NOV. 2016;12-01-2017;6030;12;515;1;Spese correnti;3;Acquisto di beni e servizi;2;Acquisto di servizi;5;Utenze e canoni;4;Energia elettrica;2017-01-19;
9;20;"321,68";"15.644,21";ENEL ENERGIA SPA; ;Fatt.n. 004701700331 del 13/12/2016 FATT. NOV. 2016;12-01-2017;6030;12;515;1;Spese correnti;3;Acquisto di beni e servizi;2;Acquisto di servizi;5;Utenze e canoni;4;Energia elettrica;2017-01-19;
9;21;"354,14";"15.644,21";ENEL ENERGIA SPA; ;Fatt.n. 004701662319 del 10/12/2016 FATT. NOV. 2016;12-01-2017;6030;12;515;1;Spese correnti;3;Acquisto di beni e servizi;2;Acquisto di servizi;5;Utenze e canoni;4;Energia elettrica;2017-01-19;
9;22;"384,24";"15.644,21";ENEL ENERGIA SPA; ;Fatt.n. 004701700330 del 13/12/2016 FATT. NOV. 2016;12-01-2017;6030;12;515;1;Spese correnti;3;Acquisto di beni e servizi;2;Acquisto di servizi;5;Utenze e canoni;4;Energia elettrica;2017-01-19;
9;23;"402,20";"15.644,21";ENEL ENERGIA SPA; ;Fatt.n. 004701662315 del 10/12/2016 FATT. NOV. 2016;12-01-2017;6030;12;515;1;Spese correnti;3;Acquisto di beni e servizi;2;Acquisto di servizi;5;Utenze e canoni;4;Energia elettrica;2017-01-19;
9;24;"484,29";"15.644,21";ENEL ENERGIA SPA; ;Fatt.n. 004701662324 del 10/12/2016 FATT. NOV. 2016;12-01-2017;6030;12;515;1;Spese correnti;3;Acquisto di beni e servizi;2;Acquisto di servizi;5;Utenze e canoni;4;Energia elettrica;2017-01-19;
9;25;"549,72";"15.644,21";ENEL ENERGIA SPA; ;Fatt.n. 004701675883 del 12/12/2016 FATT. NOV. 2016;12-01-2017;6030;12;515;1;Spese correnti;3;Acquisto di beni e servizi;2;Acquisto di servizi;5;Utenze e canoni;4;Energia elettrica;2017-01-19;
9;26;"788,43";"15.644,21";ENEL ENERGIA SPA; ;Fatt.n. 004701662314 del 10/12/2016 FATT. NOV. 2016;12-01-2017;6030;12;515;1;Spese correnti;3;Acquisto di beni e servizi;2;Acquisto di servizi;5;Utenze e canoni;4;Energia elettrica;2017-01-19;
9;27;"815,70";"15.644,21";ENEL ENERGIA SPA; ;Fatt.n. 004701662329 del 10/12/2016 FATT. NOV. 2016;12-01-2017;6030;12;515;1;Spese correnti;3;Acquisto di beni e servizi;2;Acquisto di servizi;5;Utenze e canoni;4;Energia elettrica;2017-01-19;
9;28;"2.694,93";"15.644,21";ENEL ENERGIA SPA; ;Fatt.n. 004701662322 del 10/12/2016 FATT. NOV. 2016;12-01-2017;6030;12;515;1;Spese correnti;3;Acquisto di beni e servizi;2;Acquisto di servizi;5;Utenze e canoni;4;Energia elettrica;2017-01-19;
9;29;"6.511,79";"15.644,21";ENEL ENERGIA SPA; ;Fatt.n. 004701662330 del 10/12/2016 FATT. NOV. 2016;12-01-2017;6030;12;515;1;Spese correnti;3;Acquisto di beni e servizi;2;Acquisto di servizi;5;Utenze e canoni;4;Energia elettrica;2017-01-19;
10;1;"36,67";"2.921,68";ENEL ENERGIA SPA; ;Fatt.n. 004701657802 del 10/12/2016 FATT. OTT./NOV. 2016;12-01-2017;6030;13;516;1;Spese correnti;3;Acquisto di beni e servizi;2;Acquisto di servizi;5;Utenze e canoni;4;Energia elettrica;2017-01-19;
10;2;"73,57";"2.921,68";ENEL ENERGIA SPA; ;Fatt.n. 004701659389 del 10/12/2016 FATT. OTT./NOV. 2016;12-01-2017;6030;13;516;1;Spese correnti;3;Acquisto di beni e servizi;2;Acquisto di servizi;5;Utenze e canoni;4;Energia elettrica;2017-01-19;
10;3;"78,37";"2.921,68";ENEL ENERGIA SPA; ;Fatt.n. 004701659390 del 10/12/2016 FATT. OTT./NOV. 2016;12-01-2017;6030;13;516;1;Spese correnti;3;Acquisto di beni e servizi;2;Acquisto di servizi;5;Utenze e canoni;4;Energia elettrica;2017-01-19;
10;4;"78,37";"2.921,68";ENEL ENERGIA SPA; ;Fatt.n. 004701662313 del 10/12/2016 FATT. OTT./NOV. 2016;12-01-2017;6030;13;516;1;Spese correnti;3;Acquisto di beni e servizi;2;Acquisto di servizi;5;Utenze e canoni;4;Energia elettrica;2017-01-19;
10;5;"78,39";"2.921,68";ENEL ENERGIA SPA; ;Fatt.n. 004701700329 del 13/12/2016 FATT. NOV. 2016;12-01-2017;6030;13;516;1;Spese correnti;3;Acquisto di beni e servizi;2;Acquisto di servizi;5;Utenze e canoni;4;Energia elettrica;2017-01-19;
10;6;"125,05";"2.921,68";ENEL ENERGIA SPA; ;Fatt.n. 004701659394 del 10/12/2016 FATT. OTT./NOV. 2016;12-01-2017;6030;13;516;1;Spese correnti;3;Acquisto di beni e servizi;2;Acquisto di servizi;5;Utenze e canoni;4;Energia elettrica;2017-01-19;
10;7;"126,64";"2.921,68";ENEL ENERGIA SPA; ;Fatt.n. 004701659384 del 10/12/2016 FATT. OTT./NOV. 2016;12-01-2017;6030;13;516;1;Spese correnti;3;Acquisto di beni e servizi;2;Acquisto di servizi;5;Utenze e canoni;4;Energia elettrica;2017-01-19;
10;8;"831,59";"2.921,68";ENEL ENERGIA SPA; ;Fatt.n. 004701659385 del 10/12/2016 FATT. NOV. 2016;12-01-2017;6030;13;516;1;Spese correnti;3;Acquisto di beni e servizi;2;Acquisto di servizi;5;Utenze e canoni;4;Energia elettrica;2017-01-19;
10;9;"1.496,03";"2.921,68";ENEL ENERGIA SPA; ;Fatt.n. 004701659395 del 10/12/2016 FATT. OTT./NOV. 2016;12-01-2017;6030;13;516;1;Spese correnti;3;Acquisto di beni e servizi;2;Acquisto di servizi;5;Utenze e canoni;4;Energia elettrica;2017-01-19;
11;1;"272,67";"272,67";ENEL ENERGIA SPA; ;Fatt.n. 004701662263 del 10/12/2016 FATT. OTT./NOV. 2016;12-01-2017;6030;14;517;1;Spese correnti;3;Acquisto di beni e servizi;2;Acquisto di servizi;5;Utenze e canoni;4;Energia elettrica;2017-01-19;
12;1;"159,01";"351,66";ENEL ENERGIA SPA; ;Fatt.n. 004701663129 del 10/12/2016 FATT. OTT./ NOV. 2016;12-01-2017;6030;16;261;1;Spese correnti;3;Acquisto di beni e servizi;2;Acquisto di servizi;5;Utenze e canoni;4;Energia elettrica;2017-01-19;
12;2;"192,65";"351,66";ENEL ENERGIA SPA; ;Fatt.n. 004701659382 del 10/12/2016 FATT. OTT./NOV. 2016;12-01-2017;6030;16;261;1;Spese correnti;3;Acquisto di beni e servizi;2;Acquisto di servizi;5;Utenze e canoni;4;Energia elettrica;2017-01-19;
13;1;"78,37";"78,37";ENEL ENERGIA SPA; ;Fatt.n. 004701659380 del 10/12/2016 FATT. OTT./NOV. 2016;12-01-2017;6030;18;520;1;Spese correnti;3;Acquisto di beni e servizi;2;Acquisto di servizi;5;Utenze e canoni;4;Energia elettrica;2017-01-19;
14;1;"136,19";"136,19";ENEL ENERGIA SPA; ;Fatt.n. 004701659393 del 10/12/2016 FATT. OTT./NOV. 2016;12-01-2017;6030;19;521;1;Spese correnti;3;Acquisto di beni e servizi;2;Acquisto di servizi;5;Utenze e canoni;4;Energia elettrica;2017-01-19;
15;1;"530,50";"530,50";GAS NATURALVENDITA ITALIA SPA; ;Fatt.n. FI16366000012424 del 16/12/2016 canoni e consumi gas metano 15/10-16/12/2016;12-01-2017;6160;0;526;1;Spese correnti;3;Acquisto di beni e servizi;2;Acquisto di servizi;5;Utenze e canoni;6;Gas;2017-01-24;
16;1;"212,65";"212,65";GAS NATURALVENDITA ITALIA SPA; ;Fatt.n. FI16366000012423 del 16/12/2016 canoni e consumi gas metano 15/10-16/12/2016;12-01-2017;6160;1;527;1;Spese correnti;3;Acquisto di beni e servizi;2;Acquisto di servizi;5;Utenze e canoni;999;Utenze e canoni per altri servizi n.a.c.;2017-01-24;
17;1;"33,66";"33,66";GAS NATURALVENDITA ITALIA SPA; ;Fatt.n. FI16366000012409 del 16/12/2016 canoni e consumi gas metano 15/10-16/12/2016;12-01-2017;6160;2;528;1;Spese correnti;3;Acquisto di beni e servizi;2;Acquisto di servizi;5;Utenze e canoni;999;Utenze e canoni per altri servizi n.a.c.;2017-01-24;
18;1;"0,02";"48,86";GAS NATURALVENDITA ITALIA SPA; ;Fatt.n. FI16366000012352 del 15/12/2016 canoni e consumi gas metano 01/11-30/11/2016;12-01-2017;6160;3;529;1;Spese correnti;3;Acquisto di beni e servizi;2;Acquisto di servizi;5;Utenze e canoni;6;Gas;2017-01-24;
18;2;"48,84";"48,86";GAS NATURALVENDITA ITALIA SPA; ;Fatt.n. FI16366000012352 del 15/12/2016 canoni e consumi gas metano 01/11-30/11/2016;12-01-2017;6160;3;529;1;Spese correnti;3;Acquisto di beni e servizi;2;Acquisto di servizi;5;Utenze e canoni;6;Gas;2017-01-24;
19;1;"1.000,00";"1.000,00";TETRALAB S.R.L.;ZD217CF019;SALDO Fatt.n. 000013-2016-TETRAPA  del 18/11/2016 ANALISI ACQUE CHIMICHE E MICROBIOLOGICHE;12-01-2017;1578;0;592;1;Spese correnti;3;Acquisto di beni e servizi;2;Acquisto di servizi;10;Consulenze;1;"Incarichi libero professionali di studi, ricerca e consulenza";2017-01-19;
20;1;"388,96";"388,96";PENNISI SALVATORE;Z3119ABED5;SALDO Fatt.n. 971  del 22/11/2016 MANUTENZIONE ESTINTORI;12-01-2017;1025;0;125;1;Spese correnti;3;Acquisto di beni e servizi;2;Acquisto di servizi;9;Manutenzione ordinaria e riparazioni;8;Manutenzione ordinaria e riparazioni di beni immobili;2017-01-19;
21;1;"6.825,26";"6.825,26";SICULA TRASPORTI S.R.L.;6150991658;ACCONTO Fatt.n. 1472/03  del 31/10/2016 CONFERIMENTO RIFIUTI OTT.2016;12-01-2017;1743;0;440;1;Spese correnti;3;Acquisto di beni e servizi;2;Acquisto di servizi;15;Contratti di servizio pubblico;5;Contratti di servizio per il conferimento in discarica dei rifiuti;2017-01-19;
22;1;"960,56";"960,56";SICULA TRASPORTI S.R.L.;6150991658;SALDO Fatt.n. 1472/03  del 31/10/2016 CONFERIMENTO RIFIUTI OTT.2016;12-01-2017;1743;0;441;1;Spese correnti;3;Acquisto di beni e servizi;2;Acquisto di servizi;15;Contratti di servizio pubblico;5;Contratti di servizio per il conferimento in discarica dei rifiuti;2017-01-19;
23;1;"133,98";"133,98";MAGGIOLI S.p.A.;ZE31C4430C;SALDO Fatt.n. 0002108951  del 31/03/2016 kit completo firma digitale gumina antonino;12-01-2017;1410;0;326;1;Spese correnti;3;Acquisto di beni e servizi;2;Acquisto di servizi;99;Altri servizi;999;Altri servizi diversi n.a.c.;2017-01-19;
24;1;"7.000,00";"7.000,00";LA TECNICA DI MONDELLO SANTI;ZF1127EA34;ACCONTO Fatt.n. FATTPA 25_16  del 21/09/2016 MANUTENZIONE IMP. DEPURAZIONE;12-01-2017;1577;1;559;1;Spese correnti;3;Acquisto di beni e servizi;2;Acquisto di servizi;9;Manutenzione ordinaria e riparazioni;11;Manutenzione ordinaria e riparazioni di altri beni materiali;2017-01-19;
25;1;"1.326,77";"1.326,77";LA TECNICA DI MONDELLO SANTI;ZF1127EA34;SALDO Fatt.n. FATTPA 25_16  del 21/09/2016 MANUTENZIONE IMP. DEPURAZIONE;12-01-2017;3347;0;560;2;Spese in conto capitale;2;Investimenti fissi lordi e acquisto di terreni;1;Beni materiali;9;Beni immobili;10;Infrastrutture idrauliche;2017-01-19;
26;1;"34.660,94";"34.660,94";PIZZO PIPPO;Z5B1C690E9;"SALDO Fatt.n. 108|2016  del 13/12/2016 SERVIZIO SPAZZAMENTO,RACCOLTA E TRASPORTO RR.SS.UU. NOV.2016";12-01-2017;1744;0;385;1;Spese correnti;3;Acquisto di beni e servizi;2;Acquisto di servizi;15;Contratti di servizio pubblico;5;Contratti di servizio per il conferimento in discarica dei rifiuti;2017-01-19;
27;1;"66,27";"66,27";KUWAIT PETROLEUM ITALIA S.P.A.;6516542493;Fatt.n. PJ00059435 del 30/11/2016 CARBURANTE AUTOMEZZI COMUNALI NOV.2016;12-01-2017;6080;1;476;1;Spese correnti;3;Acquisto di beni e servizi;1;Acquisto di beni;2;Altri beni di consumo;2;"Carburanti, combustibili e lubrificanti";2017-01-19;
28;1;"126,89";"126,89";KUWAIT PETROLEUM ITALIA S.P.A.;6516542493;Fatt.n. PJ00059435 del 30/11/2016 CARBURANTE AUTOMEZZI COMUNALI NOV.2016;12-01-2017;6080;2;497;1;Spese correnti;3;Acquisto di beni e servizi;1;Acquisto di beni;2;Altri beni di consumo;2;"Carburanti, combustibili e lubrificanti";2017-01-19;
29;1;"1.006,82";"1.006,82";KUWAIT PETROLEUM ITALIA S.P.A.;6516542493;Fatt.n. PJ00059435 del 30/11/2016 CARBURANTE AUTOMEZZI COMUNALI NOV.2016;12-01-2017;6080;3;493;1;Spese correnti;3;Acquisto di beni e servizi;1;Acquisto di beni;2;Altri beni di consumo;2;"Carburanti, combustibili e lubrificanti";2017-01-19;
30;1;"241,62";"241,62";KUWAIT PETROLEUM ITALIA S.P.A.;6516542493;Fatt.n. PJ00059435 del 30/11/2016 CARBURANTE AUTOMEZZI COMUNALI NOV.2016;12-01-2017;6080;4;494;1;Spese correnti;3;Acquisto di beni e servizi;1;Acquisto di beni;2;Altri beni di consumo;2;"Carburanti, combustibili e lubrificanti";2017-01-19;
31;1;"558,14";"558,14";KUWAIT PETROLEUM ITALIA S.P.A.;6516542493;Fatt.n. PJ00059435 del 30/11/2016 CARBURANTE AUTOMEZZI COMUNALI NOV.2016;12-01-2017;6080;5;495;1;Spese correnti;3;Acquisto di beni e servizi;1;Acquisto di beni;2;Altri beni di consumo;2;"Carburanti, combustibili e lubrificanti";2017-01-19;
32;1;"181,96";"181,96";KUWAIT PETROLEUM ITALIA S.P.A.;6516542493;Fatt.n. PJ00059435 del 30/11/2016 CARBURANTE AUTOMEZZI COMUNALI NOV.2016;12-01-2017;6080;7;496;1;Spese correnti;3;Acquisto di beni e servizi;1;Acquisto di beni;2;Altri beni di consumo;2;"Carburanti, combustibili e lubrificanti";2017-01-19;
33;1;"854,00";"854,00";HALLEY CONSULTING;Z311BACA6A;SALDO Fatt.n. 20161576  del 11/11/2016 SOFTWARE IN TELEASSISTENZA SERVIZIO WIN PAGAMENTI ACQUEDOTTO;12-01-2017;1686;0;276;1;Spese correnti;3;Acquisto di beni e servizi;2;Acquisto di servizi;99;Altri servizi;999;Altri servizi diversi n.a.c.;2017-01-19;
34;1;"1.815,90";"1.815,90";ANDRONACO VINCENZO; ;SALDO Fatt.n. 7/E  del 06/09/2016 onorario consulenza tecnica causa civile n.783/2010 Pagliazzo V.;12-01-2017;1058;0;437;1;Spese correnti;3;Acquisto di beni e servizi;2;Acquisto di servizi;99;Altri servizi;2;Altre spese legali;2017-01-19;
35;1;"1.179,16";"1.179,16";MARINO FABIO; ;SALDO Fatt.n. 2/PA  del 20/09/2016 ONORARIO RELAZIONE CONSULENZA TECNICA CAUSA CIVILE PAGLIAZZO V.;12-01-2017;1058;0;438;1;Spese correnti;3;Acquisto di beni e servizi;2;Acquisto di servizi;99;Altri servizi;2;Altre spese legali;2017-01-19;
36;1;"995,10";"4.948,09";GIAMBRONE MASSIMILIANO; ;INDENNITA' FUNZIONE AMMINISTRATORI DIC. 2016;12-01-2017;1001;0;42;1;Spese correnti;3;Acquisto di beni e servizi;2;Acquisto di servizi;1;Organi e incarichi istituzionali dell'amministrazione;1;Organi istituzionali dell'amministrazione - Indennità;2017-01-19;
36;2;"1.216,24";"4.948,09";TARANTO SALVATORE; ;INDENNITA' FUNZIONE AMMINISTRATORI DIC. 2016;12-01-2017;1001;0;42;1;Spese correnti;3;Acquisto di beni e servizi;2;Acquisto di servizi;1;Organi e incarichi istituzionali dell'amministrazione;1;Organi istituzionali dell'amministrazione - Indennità;2017-01-19;
36;3;"525,41";"4.948,09";TODARO ANTONINO; ;INDENNITA' FUNZIONE AMMINISTRATORI DIC. 2016-ACCONTO;12-01-2017;1001;0;42;1;Spese correnti;3;Acquisto di beni e servizi;2;Acquisto di servizi;1;Organi e incarichi istituzionali dell'amministrazione;1;Organi istituzionali dell'amministrazione - Indennità;2017-01-19;
36;4;"2.211,34";"4.948,09";TROVATO ORNELLA; ;INDENNITA' FUNZIONE AMMINISTRATORI DIC. 2016;12-01-2017;1001;0;42;1;Spese correnti;3;Acquisto di beni e servizi;2;Acquisto di servizi;1;Organi e incarichi istituzionali dell'amministrazione;1;Organi istituzionali dell'amministrazione - Indennità;2017-01-19;
37;1;"995,10";"1.465,79";LAURIA FRANCESCA; ;IND. FUNZIONE AMMINISTRATORI DIC. 2016;12-01-2017;1001;0;383;1;Spese correnti;3;Acquisto di beni e servizi;2;Acquisto di servizi;1;Organi e incarichi istituzionali dell'amministrazione;1;Organi istituzionali dell'amministrazione - Indennità;2017-01-19;
37;2;"470,69";"1.465,79";TODARO ANTONINO; ;IND. FUNZIONE AMMINISTRATORI DIC. 2016-SALDO;12-01-2017;1001;0;383;1;Spese correnti;3;Acquisto di beni e servizi;2;Acquisto di servizi;1;Organi e incarichi istituzionali dell'amministrazione;1;Organi istituzionali dell'amministrazione - Indennità;2017-01-19;
38;1;"683,84";"683,84";ECONOMO COMUNALE; ;RIMBORSO SPESE ECONOMATO IV^ TRIMESTRE 2016 - MESE DI DICEMBRE -;12-01-2017;1570;0;233;1;Spese correnti;3;Acquisto di beni e servizi;2;Acquisto di servizi;9;Manutenzione ordinaria e riparazioni;11;Manutenzione ordinaria e riparazioni di altri beni materiali;2017-01-19;
39;1;"586,40";"586,40";ECONOMO COMUNALE; ;RIMBORSO SPESE ECONOMATO IV^ TRIMESTRE 2016 - MESE DI DICEMBRE -;12-01-2017;1571;0;234;1;Spese correnti;3;Acquisto di beni e servizi;2;Acquisto di servizi;9;Manutenzione ordinaria e riparazioni;8;Manutenzione ordinaria e riparazioni di beni immobili;2017-01-19;
40;1;"213,21";"213,21";ECONOMO COMUNALE; ;RIMBORSO SPESE ECONOMATO IV^ TRIMESTRE 2016 - MESE DI DICEMBRE -;12-01-2017;1829;0;237;1;Spese correnti;3;Acquisto di beni e servizi;1;Acquisto di beni;2;Altri beni di consumo;999;Altri beni e materiali di consumo n.a.c.;2017-01-19;
41;1;"232,00";"232,00";ECONOMO COMUNALE; ;RIMBORSO SPESE ECONOMATO IV^ TRIMESTRE 2016 - MESE DI DICEMBRE -;12-01-2017;1939;0;238;1;Spese correnti;3;Acquisto di beni e servizi;2;Acquisto di servizi;9;Manutenzione ordinaria e riparazioni;8;Manutenzione ordinaria e riparazioni di beni immobili;2017-01-19;
42;1;"126,66";"126,66";ECONOMO COMUNALE; ;RIMBORSO SPESE ECONOMATO IV^ TRIMESTRE 2016 - MESE DI DICEMBRE -;12-01-2017;2120;7;247;1;Spese correnti;3;Acquisto di beni e servizi;2;Acquisto di servizi;9;Manutenzione ordinaria e riparazioni;11;Manutenzione ordinaria e riparazioni di altri beni materiali;2017-01-19;
43;1;"228,99";"228,99";ECONOMO COMUNALE; ;RIMBORSO SPESE ECONOMATO IV^ TRIMESTRE 2016 - MESE DI DICEMBRE -;12-01-2017;2140;6;254;1;Spese correnti;3;Acquisto di beni e servizi;1;Acquisto di beni;2;Altri beni di consumo;6;Materiale informatico;2017-01-19;
44;1;"860,21";"860,21";ECONOMO COMUNALE; ;RIMBORSO SPESE ECONOMATO IV^ TRIMESTRE 2016 - MESE DI DICEMBRE -;12-01-2017;3010;3;242;2;Spese in conto capitale;2;Investimenti fissi lordi e acquisto di terreni;1;Beni materiali;9;Beni immobili;1;Fabbricati ad uso abitativo;2017-01-19;
45;1;"59,29";"59,29";ECONOMO COMUNALE; ;RIMBORSO SPESE ECONOMATO IV^ TRIMESTRE 2016 - MESE DI DICEMBRE -;12-01-2017;6050;1;227;1;Spese correnti;3;Acquisto di beni e servizi;1;Acquisto di beni;2;Altri beni di consumo;1;"Carta, cancelleria e stampati";2017-01-19;
46;1;"159,09";"159,09";ECONOMO COMUNALE; ;RIMBORSO SPESE ECONOMATO IV^ TRIMESTRE 2016 - MESE DI DICEMBRE -;12-01-2017;6050;2;228;1;Spese correnti;3;Acquisto di beni e servizi;1;Acquisto di beni;2;Altri beni di consumo;1;"Carta, cancelleria e stampati";2017-01-19;
47;1;"40,00";"40,00";ECONOMO COMUNALE; ;RIMBORSO SPESE ECONOMATO IV^ TRIMESTRE 2016 - MESE DI DICEMBRE -;12-01-2017;6050;4;251;1;Spese correnti;3;Acquisto di beni e servizi;1;Acquisto di beni;2;Altri beni di consumo;1;"Carta, cancelleria e stampati";2017-01-19;
48;1;"10,95";"10,95";ECONOMO COMUNALE; ;RIMBORSO SPESE ECONOMATO IV^ TRIMESTRE 2016 - MESE DI DICEMBRE -;12-01-2017;6050;6;256;1;Spese correnti;3;Acquisto di beni e servizi;1;Acquisto di beni;2;Altri beni di consumo;1;"Carta, cancelleria e stampati";2017-01-19;
49;1;"114,50";"114,50";ECONOMO COMUNALE; ;RIMBORSO SPESE ECONOMATO IV^ TRIMESTRE 2016 - MESE DI DICEMBRE -;12-01-2017;6050;9;252;1;Spese correnti;3;Acquisto di beni e servizi;1;Acquisto di beni;2;Altri beni di consumo;1;"Carta, cancelleria e stampati";2017-01-19;
50;1;"32,90";"32,90";ECONOMO COMUNALE; ;RIMBORSO SPESE ECONOMATO IV^ TRIMESTRE 2016 - MESE DI DICEMBRE -;12-01-2017;6050;13;220;1;Spese correnti;3;Acquisto di beni e servizi;1;Acquisto di beni;2;Altri beni di consumo;1;"Carta, cancelleria e stampati";2017-01-19;
51;1;"112,83";"112,83";ECONOMO COMUNALE; ;RIMBORSO SPESE ECONOMATO IV^ TRIMESTRE 2016 - MESE DI DICEMBRE -;12-01-2017;6050;14;221;1;Spese correnti;3;Acquisto di beni e servizi;1;Acquisto di beni;2;Altri beni di consumo;1;"Carta, cancelleria e stampati";2017-01-19;
52;1;"115,68";"115,68";ECONOMO COMUNALE; ;RIMBORSO SPESE ECONOMATO IV^ TRIMESTRE 2016 - MESE DI DICEMBRE -;12-01-2017;6120;0;245;1;Spese correnti;3;Acquisto di beni e servizi;2;Acquisto di servizi;9;Manutenzione ordinaria e riparazioni;8;Manutenzione ordinaria e riparazioni di beni immobili;2017-01-19;
53;1;"287,52";"287,52";ECONOMO COMUNALE; ;RIMBORSO SPESE ECONOMATO IV^ TRIMESTRE 2016 - MESE DI DICEMBRE -;12-01-2017;6120;6;246;1;Spese correnti;3;Acquisto di beni e servizi;2;Acquisto di servizi;9;Manutenzione ordinaria e riparazioni;8;Manutenzione ordinaria e riparazioni di beni immobili;2017-01-19;
54;1;"92,00";"92,00";ECONOMO COMUNALE; ;"RIMBORSO SPESE ECONOMATO PER REVISIONE,LAVAGGI,RIPARAZIONE PNEUMATICI ECC. PER GLI AUTOMEZZI COMUNALI";12-01-2017;6070;1;541;1;Spese correnti;3;Acquisto di beni e servizi;2;Acquisto di servizi;9;Manutenzione ordinaria e riparazioni;1;"Manutenzione ordinaria e riparazioni di mezzi di trasporto ad uso civile, di sicurezza e ordine pubblico";2017-01-19;
55;1;"50,00";"50,00";ECONOMO COMUNALE; ;"RIMBORSO SPESE ECONOMATO PER REVISIONE,LAVAGGI,RIPARAZIONE PNEUMATICI ECC. PER GLI AUTOMEZZI COMUNALI";12-01-2017;6070;2;542;1;Spese correnti;3;Acquisto di beni e servizi;2;Acquisto di servizi;9;Manutenzione ordinaria e riparazioni;1;"Manutenzione ordinaria e riparazioni di mezzi di trasporto ad uso civile, di sicurezza e ordine pubblico";2017-01-19;
56;1;"92,00";"92,00";ECONOMO COMUNALE; ;"RIMBORSO SPESE ECONOMATO PER REVISIONE,LAVAGGI,RIPARAZIONE PNEUMATICI ECC. PER GLI AUTOMEZZI COMUNALI";12-01-2017;6070;4;543;1;Spese correnti;3;Acquisto di beni e servizi;2;Acquisto di servizi;9;Manutenzione ordinaria e riparazioni;1;"Manutenzione ordinaria e riparazioni di mezzi di trasporto ad uso civile, di sicurezza e ordine pubblico";2017-01-19;
57;1;"309,16";"309,16";ECONOMO COMUNALE; ;"RIMBORSO SPESE ECONOMATO PER REVISIONE,LAVAGGI,RIPARAZIONE PNEUMATICI ECC. PER GLI AUTOMEZZI COMUNALI";12-01-2017;6070;5;544;1;Spese correnti;3;Acquisto di beni e servizi;2;Acquisto di servizi;9;Manutenzione ordinaria e riparazioni;1;"Manutenzione ordinaria e riparazioni di mezzi di trasporto ad uso civile, di sicurezza e ordine pubblico";2017-01-19;
58;1;"134,88";"134,88";ECONOMO COMUNALE; ;"RIMBORSO SPESE ECONOMATO PER REVISIONE,LAVAGGI,RIPARAZIONE PNEUMATICI ECC. PER GLI AUTOMEZZI COMUNALI";12-01-2017;6070;7;545;1;Spese correnti;3;Acquisto di beni e servizi;2;Acquisto di servizi;9;Manutenzione ordinaria e riparazioni;1;"Manutenzione ordinaria e riparazioni di mezzi di trasporto ad uso civile, di sicurezza e ordine pubblico";2017-01-19;
59;1;"760,03";"760,03";ECONOMO COMUNALE; ;"RIMBORSO SPESE ECONOMATO PER REVISIONE,LAVAGGI,RIPARAZIONE PNEUMATICI ECC. PER GLI AUTOMEZZI COMUNALI";12-01-2017;6070;9;546;1;Spese correnti;3;Acquisto di beni e servizi;2;Acquisto di servizi;9;Manutenzione ordinaria e riparazioni;1;"Manutenzione ordinaria e riparazioni di mezzi di trasporto ad uso civile, di sicurezza e ordine pubblico";2017-01-19;
60;1;"2.678,45";"2.678,45";ECONOMO COMUNALE; ;"RIMBORSO SPESE ECONOMATO PER MANIFESTAZIONE IN ONORE DELLA POETESSA,PITTRICE E SCRITTRICE SAMPIETRINA HELLE BUSACCA";12-01-2017;1476;0;408;1;Spese correnti;10;Altre spese correnti;99;Altre spese correnti n.a.c.;99;Altre spese correnti n.a.c.;999;Altre spese correnti n.a.c.;2017-01-19;
61;1;"344,04";"344,04";ELICON SERVICE SNC;Z281BEE7F4;SALDO Fatt.n. 3/PA  del 13/12/2016 Affidamento per Acquisto Materiale Monouso per il Confezionamento dei Pasti degli Utenti del Servizio di Assistenza Domiciliare Dtermina n. 81 Protocollo 13306/139 del 09/11/2016;12-01-2017;1878;19;310;1;Spese correnti;3;Acquisto di beni e servizi;1;Acquisto di beni;2;Altri beni di consumo;11;Generi alimentari;2017-01-19;
62;1;"0,24";"2.828,71";TELECOM ITALIA S.P.A.; ;Fatt.n. 8V00645118 del 06/12/2016 1BIM 2017;12-01-2017;6040;5;426;1;Spese correnti;3;Acquisto di beni e servizi;2;Acquisto di servizi;5;Utenze e canoni;1;Telefonia fissa;2017-01-24;
62;2;"1,52";"2.828,71";TELECOM ITALIA S.P.A.; ;Fatt.n. 8V00643950 del 06/12/2016 1BIM 2017;12-01-2017;6040;5;426;1;Spese correnti;3;Acquisto di beni e servizi;2;Acquisto di servizi;5;Utenze e canoni;1;Telefonia fissa;2017-01-24;
62;3;"1,00";"2.828,71";TELECOM ITALIA S.P.A.; ;Fatt.n. 8V00646962 del 06/12/2016 1BIM 2017;12-01-2017;6040;5;426;1;Spese correnti;3;Acquisto di beni e servizi;2;Acquisto di servizi;5;Utenze e canoni;1;Telefonia fissa;2017-01-24;
62;4;"5,86";"2.828,71";TELECOM ITALIA S.P.A.; ;Fatt.n. 8A01058453 del 06/12/2016 1BIM 2017;12-01-2017;6040;5;426;1;Spese correnti;3;Acquisto di beni e servizi;2;Acquisto di servizi;5;Utenze e canoni;1;Telefonia fissa;2017-01-24;
62;5;"67,17";"2.828,71";TELECOM ITALIA S.P.A.; ;Fatt.n. 8V00646962 del 06/12/2016 1BIM 2017;12-01-2017;6040;5;426;1;Spese correnti;3;Acquisto di beni e servizi;2;Acquisto di servizi;5;Utenze e canoni;1;Telefonia fissa;2017-01-24;
62;6;"386,52";"2.828,71";TELECOM ITALIA S.P.A.; ;Fatt.n. 8V00645118 del 06/12/2016 1BIM 2017;12-01-2017;6040;5;426;1;Spese correnti;3;Acquisto di beni e servizi;2;Acquisto di servizi;5;Utenze e canoni;1;Telefonia fissa;2017-01-24;
62;7;"529,29";"2.828,71";TELECOM ITALIA S.P.A.; ;Fatt.n. 4220917800013890 del 06/12/2016 1BIM 2017;12-01-2017;6040;5;426;1;Spese correnti;3;Acquisto di beni e servizi;2;Acquisto di servizi;5;Utenze e canoni;1;Telefonia fissa;2017-01-24;
62;8;"826,09";"2.828,71";TELECOM ITALIA S.P.A.; ;Fatt.n. 8V00643950 del 06/12/2016 1BIM 2017;12-01-2017;6040;5;426;1;Spese correnti;3;Acquisto di beni e servizi;2;Acquisto di servizi;5;Utenze e canoni;1;Telefonia fissa;2017-01-24;
62;9;"1.013,02";"2.828,71";TELECOM ITALIA S.P.A.; ;Fatt.n. 4220917800013890 del 06/12/2016 1BIM 2017;12-01-2017;6040;5;426;1;Spese correnti;3;Acquisto di beni e servizi;2;Acquisto di servizi;5;Utenze e canoni;1;Telefonia fissa;2017-01-24;
63;1;"0,05";"199,71";TELECOM ITALIA S.P.A.; ;Fatt.n. 8V00645826 del 06/12/2016 1BIM 2017;12-01-2017;6040;6;427;1;Spese correnti;3;Acquisto di beni e servizi;2;Acquisto di servizi;5;Utenze e canoni;1;Telefonia fissa;2017-01-24;
63;2;"1,46";"199,71";TELECOM ITALIA S.P.A.; ;Fatt.n. 4220917800013959 del 06/12/2016 1BIM 2017;12-01-2017;6040;6;427;1;Spese correnti;3;Acquisto di beni e servizi;2;Acquisto di servizi;5;Utenze e canoni;1;Telefonia fissa;2017-01-24;
63;3;"76,64";"199,71";TELECOM ITALIA S.P.A.; ;Fatt.n. 8V00645826 del 06/12/2016 1BIM 2017;12-01-2017;6040;6;427;1;Spese correnti;3;Acquisto di beni e servizi;2;Acquisto di servizi;5;Utenze e canoni;1;Telefonia fissa;2017-01-24;
63;4;"122,56";"199,71";TELECOM ITALIA S.P.A.; ;Fatt.n. 4220917800013959 del 06/12/2016 1BIM 2017;12-01-2017;6040;6;427;1;Spese correnti;3;Acquisto di beni e servizi;2;Acquisto di servizi;5;Utenze e canoni;1;Telefonia fissa;2017-01-24;
64;1;"0,05";"148,47";TELECOM ITALIA S.P.A.; ;Fatt.n. 8V00644042 del 06/12/2016 1BIM 2017;12-01-2017;6040;10;429;1;Spese correnti;3;Acquisto di beni e servizi;2;Acquisto di servizi;5;Utenze e canoni;1;Telefonia fissa;2017-01-24;
64;2;"73,78";"148,47";TELECOM ITALIA S.P.A.; ;Fatt.n. 4220917800013890 del 06/12/2016 1BIM 2017;12-01-2017;6040;10;429;1;Spese correnti;3;Acquisto di beni e servizi;2;Acquisto di servizi;5;Utenze e canoni;1;Telefonia fissa;2017-01-24;
64;3;"76,64";"148,47";TELECOM ITALIA S.P.A.; ;Fatt.n. 8V00644042 del 06/12/2016 1BIM 2017;12-01-2017;6040;10;429;1;Spese correnti;3;Acquisto di beni e servizi;2;Acquisto di servizi;5;Utenze e canoni;1;Telefonia fissa;2017-01-24;
65;1;"766,84";"1.915,60";LEONE ALBA; ;BONUS SOCIO SANITARIO ANNO 2015;13-01-2017;1884;1;450;1;Spese correnti;4;Trasferimenti correnti;2;Trasferimenti correnti a Famiglie;1;Interventi previdenziali;999;Altri sussidi e assegni;2017-01-19;
65;2;"1.149,76";"1.915,60";LOJACONO GAETANO; ;BONUS SOCIO SANITARIO ANNO 2015;13-01-2017;1884;1;450;1;Spese correnti;4;Trasferimenti correnti;2;Trasferimenti correnti a Famiglie;1;Interventi previdenziali;999;Altri sussidi e assegni;2017-01-23;
66;1;"383,92";"383,92";LEONE ALBA; ;BONUS SOCIO SANITARIO ANNO 2015-QUOTA 20%;13-01-2017;1884;0;451;1;Spese correnti;4;Trasferimenti correnti;1;Trasferimenti correnti a Amministrazioni Pubbliche;2;Trasferimenti correnti a Amministrazioni Locali;11;Trasferimenti correnti a Aziende sanitarie locali  n.a.f.;2017-01-19;
67;1;"1.383,55";"1.383,55";GENOVESE GIUSEPPE; ;SALDO Fatt.n. 1-2016  del 06/12/2016 ATTO DI APPELLO CORTE D'APPELLO DI MESSINA;13-01-2017;1058;2;521;1;Spese correnti;3;Acquisto di beni e servizi;2;Acquisto di servizi;99;Altri servizi;2;Altre spese legali;2017-01-20;
68;1;"0,01";"6.340,47";SOCIETA' COOP.  NUOVI ORIZZONTI ARL;Z97182650D;"SALDO Fatt.n. 56/P.A.  del 20/12/2016 SERVIZIO DI ASSISTENZA DOMICILIARE RIVOLTO AGLI ANZIANI, AI DIVERSAMENTE ABILI, AI MINORI ED AI NUCLEI FAMILIARI IN CONDIZIONI DI DISAGIO. - ANNO 2016 CIG:Z97182650D CONTRATTO NÂ° 149 DEL 13/06/2016";13-01-2017;1878;2;22;1;Spese correnti;3;Acquisto di beni e servizi;2;Acquisto di servizi;15;Contratti di servizio pubblico;9;Contratti di servizio di assistenza sociale domiciliare;2017-01-20;
68;2;"6.340,48";"6.340,47";SOCIETA' COOP.  NUOVI ORIZZONTI ARL;Z97182650D;"SALDO Fatt.n. 56/P.A.  del 20/12/2016 SERVIZIO DI ASSISTENZA DOMICILIARE RIVOLTO AGLI ANZIANI, AI DIVERSAMENTE ABILI, AI MINORI ED AI NUCLEI FAMILIARI IN CONDIZIONI DI DISAGIO. - ANNO 2016 CIG:Z97182650D CONTRATTO NÂ° 149 DEL 13/06/2016";13-01-2017;1878;2;22;1;Spese correnti;3;Acquisto di beni e servizi;2;Acquisto di servizi;15;Contratti di servizio pubblico;9;Contratti di servizio di assistenza sociale domiciliare;2017-01-20;
69;1;"2,61";"2,61";MINISTERO DELL'INTERNO-ALBO NAZ.SEGRETARI COM. E PROV.; ;DIRITTI SEGRETERIA I TRIM. 2016;16-01-2017;1037;1;68;1;Spese correnti;4;Trasferimenti correnti;1;Trasferimenti correnti a Amministrazioni Pubbliche;2;Trasferimenti correnti a Amministrazioni Locali;999;Trasferimenti correnti a altre Amministrazioni Locali n.a.c.;2017-01-19;
70;1;"6,37";"6,37";MINISTERO DELL'INTERNO-ALBO NAZ.SEGRETARI COM. E PROV.; ;Diritti segreteria III trim.2016;16-01-2017;1037;1;202;1;Spese correnti;4;Trasferimenti correnti;1;Trasferimenti correnti a Amministrazioni Pubbliche;2;Trasferimenti correnti a Amministrazioni Locali;999;Trasferimenti correnti a altre Amministrazioni Locali n.a.c.;2017-01-19;
71;1;"5,86";"5,86";MINISTERO DELL'INTERNO-ALBO NAZ.SEGRETARI COM. E PROV.; ;DIRITTI SEGRETERIA IV TRIM. 2016;16-01-2017;1037;1;443;1;Spese correnti;4;Trasferimenti correnti;1;Trasferimenti correnti a Amministrazioni Pubbliche;2;Trasferimenti correnti a Amministrazioni Locali;999;Trasferimenti correnti a altre Amministrazioni Locali n.a.c.;2017-01-19;
72;1;"34,06";"34,06";MyO S.R.L.; ;SALDO Fatt.n. 2040/160033863  del 14/12/2016 carta per fotocopiatori;17-01-2017;6050;2;228;1;Spese correnti;3;Acquisto di beni e servizi;1;Acquisto di beni;2;Altri beni di consumo;1;"Carta, cancelleria e stampati";2017-01-19;
73;1;"58,08";"119,58";DUEERRE di ROBERTO RICCIARDELLO; ;SALDO Fatt.n. 11/E  del 22/12/2016 MANIFESTI E BROCHURE;17-01-2017;1476;0;408;1;Spese correnti;10;Altre spese correnti;99;Altre spese correnti n.a.c.;99;Altre spese correnti n.a.c.;999;Altre spese correnti n.a.c.;2017-01-19;
73;2;"61,50";"119,58";ONDA AZZURRA SOCIETA' COOPERATIVA; ;SALDO Fatt.n. 2  del 19/12/2016 SERVIZIO PUBBLICITARIO RADIOFONICO CONVEGNO HELLE BUSACCA;17-01-2017;1476;0;408;1;Spese correnti;10;Altre spese correnti;99;Altre spese correnti n.a.c.;99;Altre spese correnti n.a.c.;999;Altre spese correnti n.a.c.;2017-01-19;
75;1;"140,00";"556,48";SCAFIDI GIUSEPPE;ZC417E0C95;SALDO Fatt.n. 000038-2016-FE  del 05/12/2016 RIFERIMENTO PREVENTIVO 102/2016 DEL 03/11/2016 SU SCUOLABUS IVECO DAILY TG CT940ML;17-01-2017;6070;9;616;1;Spese correnti;3;Acquisto di beni e servizi;2;Acquisto di servizi;9;Manutenzione ordinaria e riparazioni;1;"Manutenzione ordinaria e riparazioni di mezzi di trasporto ad uso civile, di sicurezza e ordine pubblico";2017-01-19;
75;2;"416,48";"556,48";SCAFIDI GIUSEPPE;ZC417E0C95;SALDO Fatt.n. 000037-2016-FE  del 01/12/2016 RIFERIMENTO PREVENTIVO 99/2016 DEL 03/11/2016 SU SCUOLABUS IVECO DAILY TG CT940ML;17-01-2017;6070;9;616;1;Spese correnti;3;Acquisto di beni e servizi;2;Acquisto di servizi;9;Manutenzione ordinaria e riparazioni;1;"Manutenzione ordinaria e riparazioni di mezzi di trasporto ad uso civile, di sicurezza e ordine pubblico";2017-01-19;
76;1;"38,88";"38,88";SCAFIDI GIUSEPPE;ZC417E0C95;SALDO Fatt.n. 000035-2016-FE  del 30/11/2016 RIFERIMENTO PREVENTIVO 96/2016 DEL 06/10/2016 SU  FIAT IVECO DAILY TG CW015TH;17-01-2017;6070;9;270;1;Spese correnti;3;Acquisto di beni e servizi;2;Acquisto di servizi;9;Manutenzione ordinaria e riparazioni;1;"Manutenzione ordinaria e riparazioni di mezzi di trasporto ad uso civile, di sicurezza e ordine pubblico";2017-01-19;
77;1;"650,00";"2.900,00";ARLOTTA MARIA CATENA; ;ASSISTENZA ECONOMICA FAMIGLIE E PERSONE BISOGNOSE ANNO 2016;18-01-2017;1900;0;452;1;Spese correnti;4;Trasferimenti correnti;2;Trasferimenti correnti a Famiglie;1;Interventi previdenziali;999;Altri sussidi e assegni;2017-02-07;
77;2;"400,00";"2.900,00";FRONTINO STEFANIA; ;ASSISTENZA ECONOMICA FAMIGLIE E PERSONE BISOGNOSE ANNO 2016;18-01-2017;1900;0;452;1;Spese correnti;4;Trasferimenti correnti;2;Trasferimenti correnti a Famiglie;1;Interventi previdenziali;999;Altri sussidi e assegni;2017-01-27;
77;3;"400,00";"2.900,00";MAGRETTI SILVANA RITA; ;ASSISTENZA ECONOMICA FAMIGLIE E PERSONE BISOGNOSE ANNO 2016;18-01-2017;1900;0;452;1;Spese correnti;4;Trasferimenti correnti;2;Trasferimenti correnti a Famiglie;1;Interventi previdenziali;999;Altri sussidi e assegni;2017-01-25;
77;4;"400,00";"2.900,00";MASTRANTONIO LUISA; ;ASSISTENZA ECONOMICA FAMIGLIE E PERSONE BISOGNOSE ANNO 2016;18-01-2017;1900;0;452;1;Spese correnti;4;Trasferimenti correnti;2;Trasferimenti correnti a Famiglie;1;Interventi previdenziali;999;Altri sussidi e assegni;2017-01-24;
77;5;"650,00";"2.900,00";RADU ZAMFIRA; ;ASSISTENZA ECONOMICA FAMIGLIE E PERSONE BISOGNOSE ANNO 2016;18-01-2017;1900;0;452;1;Spese correnti;4;Trasferimenti correnti;2;Trasferimenti correnti a Famiglie;1;Interventi previdenziali;999;Altri sussidi e assegni;2017-01-24;
77;6;"400,00";"2.900,00";SCAGLIONE GIUSEPPE; ;ASSISTENZA ECONOMICA FAMIGLIE E PERSONE BISOGNOSE ANNO 2016;18-01-2017;1900;0;452;1;Spese correnti;4;Trasferimenti correnti;2;Trasferimenti correnti a Famiglie;1;Interventi previdenziali;999;Altri sussidi e assegni;2017-01-25;
78;1;"2.100,00";"2.100,00";REGIONE SICILIANA; ;VERSARE IN -C/ENTRATA DELLA REGIONE SICILIANA CAP.4264 CAPO 12-D.A. N.235 DEL 25/10/2016-INDENNITA' COMMISSARIO STRAORDINARIO PERIODO 31/10-31/12/2016;23-01-2017;1001;0;384;1;Spese correnti;3;Acquisto di beni e servizi;2;Acquisto di servizi;1;Organi e incarichi istituzionali dell'amministrazione;1;Organi istituzionali dell'amministrazione - Indennità;2017-01-24;
82;1;"449,48";"449,48";SCAFIDI GIUSEPPE;ZC417E0C95;SALDO Fatt.n. 000034-2016-FE  del 30/11/2016 RIFERIMENTO PREVENTIVO97/2016 DEL 06/10/2016 SU MOTOFALCE;23-01-2017;6070;4;613;1;Spese correnti;3;Acquisto di beni e servizi;2;Acquisto di servizi;9;Manutenzione ordinaria e riparazioni;1;"Manutenzione ordinaria e riparazioni di mezzi di trasporto ad uso civile, di sicurezza e ordine pubblico";2017-01-24;
83;1;"102,81";"1.889,39";SCAFIDI GIUSEPPE;ZC417E0C95;SALDO Fatt.n. 000039-2016-FE  del 09/12/2016 RIFERIMENTO PREVENTIVO 101/2016 DEL 03/11/2016  FIAT PANDA TG BE181ZH;23-01-2017;6070;5;614;1;Spese correnti;3;Acquisto di beni e servizi;2;Acquisto di servizi;9;Manutenzione ordinaria e riparazioni;1;"Manutenzione ordinaria e riparazioni di mezzi di trasporto ad uso civile, di sicurezza e ordine pubblico";2017-01-24;
83;2;"1.788,58";"1.889,39";SCAFIDI GIUSEPPE;ZC417E0C95;SALDO Fatt.n. 000036-2016-FE  del 30/11/2016 RIFERIMENTO PREVENTIVO 98/2016 DEL 06/10/2016 SU AUTOBOTTE TG ME 394965;23-01-2017;6070;5;614;1;Spese correnti;3;Acquisto di beni e servizi;2;Acquisto di servizi;9;Manutenzione ordinaria e riparazioni;1;"Manutenzione ordinaria e riparazioni di mezzi di trasporto ad uso civile, di sicurezza e ordine pubblico";2017-01-24;
84;1;"101,16";"101,16";SCAFIDI GIUSEPPE;ZCB17E106E;SALDO Fatt.n. 000040-2016-FE  del 21/12/2016 RIFERIMENTO PREVENTIVO N.100/2016 DEL 03/11/2016 SU FIAT PANDA TG BE181ZH;23-01-2017;6070;5;620;1;Spese correnti;3;Acquisto di beni e servizi;2;Acquisto di servizi;9;Manutenzione ordinaria e riparazioni;1;"Manutenzione ordinaria e riparazioni di mezzi di trasporto ad uso civile, di sicurezza e ordine pubblico";2017-01-24;
85;1;"784,08";"784,08";Pi.Eco S.r.l.;Z1D1B9D2D9;SALDO Fatt.n. 52 2016  del 27/12/2016 CONFERIMENTO RIFIUTI BIODEGRADABILI NOV.2016;23-01-2017;1743;0;466;1;Spese correnti;3;Acquisto di beni e servizi;2;Acquisto di servizi;15;Contratti di servizio pubblico;5;Contratti di servizio per il conferimento in discarica dei rifiuti;2017-01-24;
86;1;"6.823,00";"6.823,00";AZIENDA SICILIANA TRASPORTI;Z071B12FD8;SALDO Fatt.n. 150/S4  del 16/12/2016 TRASPORTO ALUNNI  NOV.2016;23-01-2017;2000;9;170;1;Spese correnti;3;Acquisto di beni e servizi;2;Acquisto di servizi;15;Contratti di servizio pubblico;2;Contratti di servizio di trasporto scolastico;2017-01-30;
87;1;"-6,74";"398,23";T.A.I. SRL;ZAE1B134A8;SALDO Fatt.n. 30E/2016  del 27/12/2016 CORRISPETTIVO TRASPORTO GRATUITO STUDENTI NEL MESE DI  DICEMBRE  2016;23-01-2017;2000;9;177;1;Spese correnti;3;Acquisto di beni e servizi;2;Acquisto di servizi;15;Contratti di servizio pubblico;2;Contratti di servizio di trasporto scolastico;2017-01-30;
87;2;"404,97";"398,23";T.A.I. SRL;Z2F15DF255;SALDO Fatt.n. 30E/2016  del 27/12/2016 CORRISPETTIVO TRASPORTO GRATUITO STUDENTI NEL MESE DI  DICEMBRE  2016;23-01-2017;2000;9;177;1;Spese correnti;3;Acquisto di beni e servizi;2;Acquisto di servizi;15;Contratti di servizio pubblico;2;Contratti di servizio di trasporto scolastico;2017-01-30;
88;1;"1.194,01";"1.194,01";GIARDINA VIAGGI SRL;ZD41B1341D;SALDO Fatt.n. 250E  del 20/12/2016 TRASPORTO SCOLASTICO NOVEMBRE 2016;23-01-2017;2000;9;176;1;Spese correnti;3;Acquisto di beni e servizi;2;Acquisto di servizi;15;Contratti di servizio pubblico;2;Contratti di servizio di trasporto scolastico;2017-01-30;
155;1;"75,09";"897,24";ENEL ENERGIA SPA; ;Fatt.n. 004800031266 del 12/01/2017 sc. 27/01/2017 fatt. nov./dic.2016;24-01-2017;6030;5;508;1;Spese correnti;3;Acquisto di beni e servizi;2;Acquisto di servizi;5;Utenze e canoni;4;Energia elettrica;2017-01-26;
155;2;"822,15";"897,24";ENEL ENERGIA SPA; ;Fatt.n. 004800033838 del 12/01/2017 sc. 27/01/2017 fatt. dic.2016;24-01-2017;6030;5;508;1;Spese correnti;3;Acquisto di beni e servizi;2;Acquisto di servizi;5;Utenze e canoni;4;Energia elettrica;2017-01-26;
156;1;"137,88";"137,88";ENEL ENERGIA SPA; ;Fatt.n. 004800013129 del 08/01/2017 sc. 23/01/2017 fatt. nov./dic.2016;24-01-2017;6030;8;511;1;Spese correnti;3;Acquisto di beni e servizi;2;Acquisto di servizi;5;Utenze e canoni;4;Energia elettrica;2017-01-26;
157;1;"229,82";"229,82";ENEL ENERGIA SPA; ;Fatt.n. 004800013128 del 08/01/2017 sc. 23/01/2017 fatt. dic.2016;24-01-2017;6030;9;512;1;Spese correnti;3;Acquisto di beni e servizi;2;Acquisto di servizi;5;Utenze e canoni;4;Energia elettrica;2017-01-26;
158;1;"805,74";"805,74";ENEL ENERGIA SPA; ;Fatt.n. 004800033840 del 12/01/2017 sc. 27/01/2017 fatt. dic.2016;24-01-2017;6030;10;513;1;Spese correnti;3;Acquisto di beni e servizi;2;Acquisto di servizi;5;Utenze e canoni;4;Energia elettrica;2017-01-26;
159;1;"36,58";"16.348,70";ENEL ENERGIA SPA; ;Fatt.n. 004800033826 del 12/01/2017 sc. 27/01/2017 fatt. dic.2016;24-01-2017;6030;12;515;1;Spese correnti;3;Acquisto di beni e servizi;2;Acquisto di servizi;5;Utenze e canoni;4;Energia elettrica;2017-01-26;
159;2;"53,08";"16.348,70";ENEL ENERGIA SPA; ;Fatt.n. 004800033836 del 12/01/2017 sc. 27/01/2017 fatt. dic.2016;24-01-2017;6030;12;515;1;Spese correnti;3;Acquisto di beni e servizi;2;Acquisto di servizi;5;Utenze e canoni;4;Energia elettrica;2017-01-26;
159;3;"57,79";"16.348,70";ENEL ENERGIA SPA; ;Fatt.n. 004800008182 del 08/01/2017 sc. 23/01/2017 fatt. dic.2016;24-01-2017;6030;12;515;1;Spese correnti;3;Acquisto di beni e servizi;2;Acquisto di servizi;5;Utenze e canoni;4;Energia elettrica;2017-01-26;
159;4;"81,17";"16.348,70";ENEL ENERGIA SPA;0000000000;Fatt.n. 004800020134 del 09/01/2017 sc. 24/01/2017 FATT. NOV./DIC.2016;24-01-2017;6030;12;515;1;Spese correnti;3;Acquisto di beni e servizi;2;Acquisto di servizi;5;Utenze e canoni;4;Energia elettrica;2017-01-26;
159;5;"93,92";"16.348,70";ENEL ENERGIA SPA; ;Fatt.n. 004800033833 del 12/01/2017 sc. 27/01/2017 fatt. dic.2016;24-01-2017;6030;12;515;1;Spese correnti;3;Acquisto di beni e servizi;2;Acquisto di servizi;5;Utenze e canoni;4;Energia elettrica;2017-01-26;
159;6;"94,65";"16.348,70";ENEL ENERGIA SPA; ;Fatt.n. 004800033823 del 12/01/2017 sc. 27/01/2017 fatt. dic.2016;24-01-2017;6030;12;515;1;Spese correnti;3;Acquisto di beni e servizi;2;Acquisto di servizi;5;Utenze e canoni;4;Energia elettrica;2017-01-26;
159;7;"106,21";"16.348,70";ENEL ENERGIA SPA; ;Fatt.n. 004800033825 del 12/01/2017 sc. 27/01/2017 fatt. dic.2016;24-01-2017;6030;12;515;1;Spese correnti;3;Acquisto di beni e servizi;2;Acquisto di servizi;5;Utenze e canoni;4;Energia elettrica;2017-01-26;
159;8;"116,64";"16.348,70";ENEL ENERGIA SPA; ;Fatt.n. 004800033837 del 12/01/2017 sc. 27/01/2017 fatt. dic.2016;24-01-2017;6030;12;515;1;Spese correnti;3;Acquisto di beni e servizi;2;Acquisto di servizi;5;Utenze e canoni;4;Energia elettrica;2017-01-26;
159;9;"124,98";"16.348,70";ENEL ENERGIA SPA; ;Fatt.n. 004800033821 del 12/01/2017 sc. 27/01/2017 fatt. dic.2016;24-01-2017;6030;12;515;1;Spese correnti;3;Acquisto di beni e servizi;2;Acquisto di servizi;5;Utenze e canoni;4;Energia elettrica;2017-01-26;
159;10;"133,65";"16.348,70";ENEL ENERGIA SPA; ;Fatt.n. 004800033831 del 12/01/2017 sc. 27/01/2017 fatt. dic.2016;24-01-2017;6030;12;515;1;Spese correnti;3;Acquisto di beni e servizi;2;Acquisto di servizi;5;Utenze e canoni;4;Energia elettrica;2017-01-26;
159;11;"136,86";"16.348,70";ENEL ENERGIA SPA; ;Fatt.n. 004800033830 del 12/01/2017 sc. 27/01/2017 fatt. dic.2016;24-01-2017;6030;12;515;1;Spese correnti;3;Acquisto di beni e servizi;2;Acquisto di servizi;5;Utenze e canoni;4;Energia elettrica;2017-01-26;
159;12;"163,05";"16.348,70";ENEL ENERGIA SPA; ;Fatt.n. 004800036196 del 12/01/2017 sc. 27/01/2017 fatt. dic.2016;24-01-2017;6030;12;515;1;Spese correnti;3;Acquisto di beni e servizi;2;Acquisto di servizi;5;Utenze e canoni;4;Energia elettrica;2017-01-26;
159;13;"167,96";"16.348,70";ENEL ENERGIA SPA; ;Fatt.n. 004800012242 del 08/01/2017 sc. 23/01/2017 FATT. DIC.2016;24-01-2017;6030;12;515;1;Spese correnti;3;Acquisto di beni e servizi;2;Acquisto di servizi;5;Utenze e canoni;4;Energia elettrica;2017-01-26;
159;14;"171,43";"16.348,70";ENEL ENERGIA SPA; ;Fatt.n. 004800005616 del 08/01/2017 sc. 23/01/2017 FATT. DIC.2016;24-01-2017;6030;12;515;1;Spese correnti;3;Acquisto di beni e servizi;2;Acquisto di servizi;5;Utenze e canoni;4;Energia elettrica;2017-01-26;
159;15;"195,75";"16.348,70";ENEL ENERGIA SPA; ;Fatt.n. 004800033832 del 12/01/2017 sc. 27/01/2017 fatt. dic.2016;24-01-2017;6030;12;515;1;Spese correnti;3;Acquisto di beni e servizi;2;Acquisto di servizi;5;Utenze e canoni;4;Energia elettrica;2017-01-26;
159;16;"266,78";"16.348,70";ENEL ENERGIA SPA; ;Fatt.n. 004800033828 del 12/01/2017 sc. 27/01/2017 fatt. dic.2016;24-01-2017;6030;12;515;1;Spese correnti;3;Acquisto di beni e servizi;2;Acquisto di servizi;5;Utenze e canoni;4;Energia elettrica;2017-01-26;
159;17;"320,18";"16.348,70";ENEL ENERGIA SPA; ;Fatt.n. 004800033822 del 12/01/2017 sc. 27/01/2017 fatt. dic.2016;24-01-2017;6030;12;515;1;Spese correnti;3;Acquisto di beni e servizi;2;Acquisto di servizi;5;Utenze e canoni;4;Energia elettrica;2017-01-26;
159;18;"380,49";"16.348,70";ENEL ENERGIA SPA; ;Fatt.n. 004800033824 del 12/01/2017 sc. 27/01/2017 fatt. dic.2016;24-01-2017;6030;12;515;1;Spese correnti;3;Acquisto di beni e servizi;2;Acquisto di servizi;5;Utenze e canoni;4;Energia elettrica;2017-01-26;
159;19;"397,04";"16.348,70";ENEL ENERGIA SPA; ;Fatt.n. 004800033820 del 12/01/2017 sc. 27/01/2017 fatt. dic.2016;24-01-2017;6030;12;515;1;Spese correnti;3;Acquisto di beni e servizi;2;Acquisto di servizi;5;Utenze e canoni;4;Energia elettrica;2017-01-26;
159;20;"525,69";"16.348,70";ENEL ENERGIA SPA; ;Fatt.n. 004800033829 del 12/01/2017 sc. 27/01/2017 fatt. dic.2016;24-01-2017;6030;12;515;1;Spese correnti;3;Acquisto di beni e servizi;2;Acquisto di servizi;5;Utenze e canoni;4;Energia elettrica;2017-01-26;
159;21;"581,95";"16.348,70";ENEL ENERGIA SPA; ;Fatt.n. 004800033819 del 12/01/2017 sc. 27/01/2017 fatt. dic.2016;24-01-2017;6030;12;515;1;Spese correnti;3;Acquisto di beni e servizi;2;Acquisto di servizi;5;Utenze e canoni;4;Energia elettrica;2017-01-26;
159;22;"712,61";"16.348,70";ENEL ENERGIA SPA; ;Fatt.n. 004800000443 del 03/01/2017 sc. 23/01/2017 CONGUAGLIO ANNUALE ANNO 2013;24-01-2017;6030;12;515;1;Spese correnti;3;Acquisto di beni e servizi;2;Acquisto di servizi;5;Utenze e canoni;4;Energia elettrica;2017-01-26;
159;23;"835,85";"16.348,70";ENEL ENERGIA SPA; ;Fatt.n. 004800033818 del 12/01/2017 sc. 27/01/2017 fatt. dic.2016;24-01-2017;6030;12;515;1;Spese correnti;3;Acquisto di beni e servizi;2;Acquisto di servizi;5;Utenze e canoni;4;Energia elettrica;2017-01-26;
159;24;"864,10";"16.348,70";ENEL ENERGIA SPA; ;Fatt.n. 004800033834 del 12/01/2017 sc. 27/01/2017 fatt. dic.2016;24-01-2017;6030;12;515;1;Spese correnti;3;Acquisto di beni e servizi;2;Acquisto di servizi;5;Utenze e canoni;4;Energia elettrica;2017-01-26;
159;25;"2.860,46";"16.348,70";ENEL ENERGIA SPA; ;Fatt.n. 004800033827 del 12/01/2017 sc. 27/01/2017 fatt. dic.2016;24-01-2017;6030;12;515;1;Spese correnti;3;Acquisto di beni e servizi;2;Acquisto di servizi;5;Utenze e canoni;4;Energia elettrica;2017-01-26;
159;26;"6.884,83";"16.348,70";ENEL ENERGIA SPA; ;Fatt.n. 004800033835 del 12/01/2017 sc. 27/01/2017 fatt. dic.2016;24-01-2017;6030;12;515;1;Spese correnti;3;Acquisto di beni e servizi;2;Acquisto di servizi;5;Utenze e canoni;4;Energia elettrica;2017-01-26;
160;1;"872,79";"872,79";ENEL ENERGIA SPA; ;Fatt.n. 004800033839 del 12/01/2017 sc. 27/01/2017 fatt. dic.2016;24-01-2017;6030;13;516;1;Spese correnti;3;Acquisto di beni e servizi;2;Acquisto di servizi;5;Utenze e canoni;4;Energia elettrica;2017-01-26;
161;1;"783,48";"783,48";ENEL ENERGIA SPA; ;Fatt.n. 004800031266 del 12/01/2017 sc. 27/01/2017 fatt. nov./dic.2016;24-01-2017;6030;16;261;1;Spese correnti;3;Acquisto di beni e servizi;2;Acquisto di servizi;5;Utenze e canoni;4;Energia elettrica;2017-01-26;
162;1;"80,21";"80,21";ENEL ENERGIA SPA; ;Fatt.n. 004800031266 del 12/01/2017 sc. 27/01/2017 fatt. nov./dic.2016;24-01-2017;6030;16;518;1;Spese correnti;3;Acquisto di beni e servizi;2;Acquisto di servizi;5;Utenze e canoni;4;Energia elettrica;2017-01-26;
163;1;"7.313,77";"7.313,77";MANNINO MARIO; ;RICONOSCIMENTO DEBITO F.B. SENTENZA N.214/2015 GIUDICE DI PACE TRIB. DI PATTI-GIUDIZIO MANNINO MARIO;24-01-2017;2177;0;321;1;Spese correnti;10;Altre spese correnti;5;"Spese dovute a sanzioni, risarcimenti e indennizzi";4;Oneri da contenzioso;1;Oneri da contenzioso;2017-01-26;
164;1;"7.174,60";"7.174,60";CREDITO SICILIANO; ;SALDO Fatt.n. 10  del 27/12/2016 Compenso per il servizio di tesoreria del periodo 01/01/2016 - 31/12/2016;24-01-2017;1054;0;266;1;Spese correnti;3;Acquisto di beni e servizi;2;Acquisto di servizi;15;Contratti di servizio pubblico;999;Altre spese per contratti di servizio pubblico;2017-01-26;
165;1;"931,48";"20.217,68";PIZZO PIPPO; ;SALDO Fatt.n. 172/2015  del 18/09/2015 RAC. E TRASPORTO RRSSUU 17/08-17/09/2015;24-01-2017;2177;1;522;1;Spese correnti;10;Altre spese correnti;99;Altre spese correnti n.a.c.;99;Altre spese correnti n.a.c.;999;Altre spese correnti n.a.c.;2017-01-26;
165;2;"19.285,20";"20.217,68";PIZZO PIPPO;Z2715632A6;SALDO Fatt.n. 201|2015  del 19/10/2015 SER. RACC. E TRASP. RRSSUU 17/09-17/10/2015;24-01-2017;2177;1;522;1;Spese correnti;10;Altre spese correnti;99;Altre spese correnti n.a.c.;99;Altre spese correnti n.a.c.;999;Altre spese correnti n.a.c.;2017-01-26;
168;1;"672,79";"672,79";ENEL ENERGIA SPA; ;SALDO Fatt.n. 004800071846  del 14/01/2017 FATT. DIC.2016;30-01-2017;6030;9;512;1;Spese correnti;3;Acquisto di beni e servizi;2;Acquisto di servizi;5;Utenze e canoni;4;Energia elettrica;2017-02-01;
169;1;"350,74";"753,62";ENEL ENERGIA SPA; ;SALDO Fatt.n. 004800071845  del 14/01/2017 FATT. DIC.2016;30-01-2017;6030;12;515;1;Spese correnti;3;Acquisto di beni e servizi;2;Acquisto di servizi;5;Utenze e canoni;4;Energia elettrica;2017-02-01;
169;2;"403,88";"753,62";ENEL ENERGIA SPA; ;SALDO Fatt.n. 004800071844  del 14/01/2017 FATT. DIC.2016;30-01-2017;6030;12;515;1;Spese correnti;3;Acquisto di beni e servizi;2;Acquisto di servizi;5;Utenze e canoni;4;Energia elettrica;2017-02-01;
171;1;"2.453,17";"2.453,17";FONDO SICILIANO ASSISTENZA E COLLOCAM.LAV.DISOCCUPATI; ;REVISIONE CANTIERE LAVORO N.8704967 ME1486;30-01-2017;3348;0;476;2;Spese in conto capitale;2;Investimenti fissi lordi e acquisto di terreni;1;Beni materiali;9;Beni immobili;13;Altre vie di comunicazione;2017-02-01;
172;1;"3.484,00";"3.484,00";COMPONENTI SEGGI ELETTORALI; ;REFERENDUM COSTITUZIONALE DEL 4 DICEMBRE 2016-ONORARI COMPONENTI SEGGI;30-01-2017;1031;0;395;1;Spese correnti;3;Acquisto di beni e servizi;2;Acquisto di servizi;99;Altri servizi;4;Altre spese per consultazioni elettorali dell'ente;2017-02-01;
172;1;"3.484,00";"3.484,00";COMPONENTI SEGGI ELETTORALI; ;REFERENDUM COSTITUZIONALE DEL 4 DICEMBRE 2016-ONORARI COMPONENTI SEGGI;30-01-2017;1031;0;395;1;Spese correnti;3;Acquisto di beni e servizi;2;Acquisto di servizi;99;Altri servizi;4;Altre spese per consultazioni elettorali dell'ente;2017-03-15;
172;1;"3.484,00";"3.484,00";COMPONENTI SEGGI ELETTORALI; ;REFERENDUM COSTITUZIONALE DEL 4 DICEMBRE 2016-ONORARI COMPONENTI SEGGI;30-01-2017;1031;0;395;1;Spese correnti;3;Acquisto di beni e servizi;2;Acquisto di servizi;99;Altri servizi;4;Altre spese per consultazioni elettorali dell'ente;2017-02-01;
172;1;"3.484,00";"3.484,00";COMPONENTI SEGGI ELETTORALI; ;REFERENDUM COSTITUZIONALE DEL 4 DICEMBRE 2016-ONORARI COMPONENTI SEGGI;30-01-2017;1031;0;395;1;Spese correnti;3;Acquisto di beni e servizi;2;Acquisto di servizi;99;Altri servizi;4;Altre spese per consultazioni elettorali dell'ente;2017-02-01;
172;1;"3.484,00";"3.484,00";COMPONENTI SEGGI ELETTORALI; ;REFERENDUM COSTITUZIONALE DEL 4 DICEMBRE 2016-ONORARI COMPONENTI SEGGI;30-01-2017;1031;0;395;1;Spese correnti;3;Acquisto di beni e servizi;2;Acquisto di servizi;99;Altri servizi;4;Altre spese per consultazioni elettorali dell'ente;2017-02-01;
172;1;"3.484,00";"3.484,00";COMPONENTI SEGGI ELETTORALI; ;REFERENDUM COSTITUZIONALE DEL 4 DICEMBRE 2016-ONORARI COMPONENTI SEGGI;30-01-2017;1031;0;395;1;Spese correnti;3;Acquisto di beni e servizi;2;Acquisto di servizi;99;Altri servizi;4;Altre spese per consultazioni elettorali dell'ente;2017-02-01;
172;1;"3.484,00";"3.484,00";COMPONENTI SEGGI ELETTORALI; ;REFERENDUM COSTITUZIONALE DEL 4 DICEMBRE 2016-ONORARI COMPONENTI SEGGI;30-01-2017;1031;0;395;1;Spese correnti;3;Acquisto di beni e servizi;2;Acquisto di servizi;99;Altri servizi;4;Altre spese per consultazioni elettorali dell'ente;2017-02-01;
172;1;"3.484,00";"3.484,00";COMPONENTI SEGGI ELETTORALI; ;REFERENDUM COSTITUZIONALE DEL 4 DICEMBRE 2016-ONORARI COMPONENTI SEGGI;30-01-2017;1031;0;395;1;Spese correnti;3;Acquisto di beni e servizi;2;Acquisto di servizi;99;Altri servizi;4;Altre spese per consultazioni elettorali dell'ente;2017-02-01;
172;1;"3.484,00";"3.484,00";COMPONENTI SEGGI ELETTORALI; ;REFERENDUM COSTITUZIONALE DEL 4 DICEMBRE 2016-ONORARI COMPONENTI SEGGI;30-01-2017;1031;0;395;1;Spese correnti;3;Acquisto di beni e servizi;2;Acquisto di servizi;99;Altri servizi;4;Altre spese per consultazioni elettorali dell'ente;2017-02-01;
172;1;"3.484,00";"3.484,00";COMPONENTI SEGGI ELETTORALI; ;REFERENDUM COSTITUZIONALE DEL 4 DICEMBRE 2016-ONORARI COMPONENTI SEGGI;30-01-2017;1031;0;395;1;Spese correnti;3;Acquisto di beni e servizi;2;Acquisto di servizi;99;Altri servizi;4;Altre spese per consultazioni elettorali dell'ente;2017-02-01;
172;1;"3.484,00";"3.484,00";COMPONENTI SEGGI ELETTORALI; ;REFERENDUM COSTITUZIONALE DEL 4 DICEMBRE 2016-ONORARI COMPONENTI SEGGI;30-01-2017;1031;0;395;1;Spese correnti;3;Acquisto di beni e servizi;2;Acquisto di servizi;99;Altri servizi;4;Altre spese per consultazioni elettorali dell'ente;2017-02-01;
172;1;"3.484,00";"3.484,00";COMPONENTI SEGGI ELETTORALI; ;REFERENDUM COSTITUZIONALE DEL 4 DICEMBRE 2016-ONORARI COMPONENTI SEGGI;30-01-2017;1031;0;395;1;Spese correnti;3;Acquisto di beni e servizi;2;Acquisto di servizi;99;Altri servizi;4;Altre spese per consultazioni elettorali dell'ente;2017-02-01;
172;1;"3.484,00";"3.484,00";COMPONENTI SEGGI ELETTORALI; ;REFERENDUM COSTITUZIONALE DEL 4 DICEMBRE 2016-ONORARI COMPONENTI SEGGI;30-01-2017;1031;0;395;1;Spese correnti;3;Acquisto di beni e servizi;2;Acquisto di servizi;99;Altri servizi;4;Altre spese per consultazioni elettorali dell'ente;2017-02-01;
172;1;"3.484,00";"3.484,00";COMPONENTI SEGGI ELETTORALI; ;REFERENDUM COSTITUZIONALE DEL 4 DICEMBRE 2016-ONORARI COMPONENTI SEGGI;30-01-2017;1031;0;395;1;Spese correnti;3;Acquisto di beni e servizi;2;Acquisto di servizi;99;Altri servizi;4;Altre spese per consultazioni elettorali dell'ente;2017-02-01;
172;1;"3.484,00";"3.484,00";COMPONENTI SEGGI ELETTORALI; ;REFERENDUM COSTITUZIONALE DEL 4 DICEMBRE 2016-ONORARI COMPONENTI SEGGI;30-01-2017;1031;0;395;1;Spese correnti;3;Acquisto di beni e servizi;2;Acquisto di servizi;99;Altri servizi;4;Altre spese per consultazioni elettorali dell'ente;2017-02-01;
172;1;"3.484,00";"3.484,00";COMPONENTI SEGGI ELETTORALI; ;REFERENDUM COSTITUZIONALE DEL 4 DICEMBRE 2016-ONORARI COMPONENTI SEGGI;30-01-2017;1031;0;395;1;Spese correnti;3;Acquisto di beni e servizi;2;Acquisto di servizi;99;Altri servizi;4;Altre spese per consultazioni elettorali dell'ente;2017-02-01;
172;1;"3.484,00";"3.484,00";COMPONENTI SEGGI ELETTORALI; ;REFERENDUM COSTITUZIONALE DEL 4 DICEMBRE 2016-ONORARI COMPONENTI SEGGI;30-01-2017;1031;0;395;1;Spese correnti;3;Acquisto di beni e servizi;2;Acquisto di servizi;99;Altri servizi;4;Altre spese per consultazioni elettorali dell'ente;2017-02-01;
172;1;"3.484,00";"3.484,00";COMPONENTI SEGGI ELETTORALI; ;REFERENDUM COSTITUZIONALE DEL 4 DICEMBRE 2016-ONORARI COMPONENTI SEGGI;30-01-2017;1031;0;395;1;Spese correnti;3;Acquisto di beni e servizi;2;Acquisto di servizi;99;Altri servizi;4;Altre spese per consultazioni elettorali dell'ente;2017-02-01;
172;1;"3.484,00";"3.484,00";COMPONENTI SEGGI ELETTORALI; ;REFERENDUM COSTITUZIONALE DEL 4 DICEMBRE 2016-ONORARI COMPONENTI SEGGI;30-01-2017;1031;0;395;1;Spese correnti;3;Acquisto di beni e servizi;2;Acquisto di servizi;99;Altri servizi;4;Altre spese per consultazioni elettorali dell'ente;2017-02-01;
172;1;"3.484,00";"3.484,00";COMPONENTI SEGGI ELETTORALI; ;REFERENDUM COSTITUZIONALE DEL 4 DICEMBRE 2016-ONORARI COMPONENTI SEGGI;30-01-2017;1031;0;395;1;Spese correnti;3;Acquisto di beni e servizi;2;Acquisto di servizi;99;Altri servizi;4;Altre spese per consultazioni elettorali dell'ente;2017-02-01;
172;1;"3.484,00";"3.484,00";COMPONENTI SEGGI ELETTORALI; ;REFERENDUM COSTITUZIONALE DEL 4 DICEMBRE 2016-ONORARI COMPONENTI SEGGI;30-01-2017;1031;0;395;1;Spese correnti;3;Acquisto di beni e servizi;2;Acquisto di servizi;99;Altri servizi;4;Altre spese per consultazioni elettorali dell'ente;2017-02-01;
172;1;"3.484,00";"3.484,00";COMPONENTI SEGGI ELETTORALI; ;REFERENDUM COSTITUZIONALE DEL 4 DICEMBRE 2016-ONORARI COMPONENTI SEGGI;30-01-2017;1031;0;395;1;Spese correnti;3;Acquisto di beni e servizi;2;Acquisto di servizi;99;Altri servizi;4;Altre spese per consultazioni elettorali dell'ente;2017-02-01;
172;1;"3.484,00";"3.484,00";COMPONENTI SEGGI ELETTORALI; ;REFERENDUM COSTITUZIONALE DEL 4 DICEMBRE 2016-ONORARI COMPONENTI SEGGI;30-01-2017;1031;0;395;1;Spese correnti;3;Acquisto di beni e servizi;2;Acquisto di servizi;99;Altri servizi;4;Altre spese per consultazioni elettorali dell'ente;2017-02-01;
172;1;"3.484,00";"3.484,00";COMPONENTI SEGGI ELETTORALI; ;REFERENDUM COSTITUZIONALE DEL 4 DICEMBRE 2016-ONORARI COMPONENTI SEGGI;30-01-2017;1031;0;395;1;Spese correnti;3;Acquisto di beni e servizi;2;Acquisto di servizi;99;Altri servizi;4;Altre spese per consultazioni elettorali dell'ente;2017-04-05;
172;1;"3.484,00";"3.484,00";COMPONENTI SEGGI ELETTORALI; ;REFERENDUM COSTITUZIONALE DEL 4 DICEMBRE 2016-ONORARI COMPONENTI SEGGI;30-01-2017;1031;0;395;1;Spese correnti;3;Acquisto di beni e servizi;2;Acquisto di servizi;99;Altri servizi;4;Altre spese per consultazioni elettorali dell'ente;2017-02-01;
172;1;"3.484,00";"3.484,00";COMPONENTI SEGGI ELETTORALI; ;REFERENDUM COSTITUZIONALE DEL 4 DICEMBRE 2016-ONORARI COMPONENTI SEGGI;30-01-2017;1031;0;395;1;Spese correnti;3;Acquisto di beni e servizi;2;Acquisto di servizi;99;Altri servizi;4;Altre spese per consultazioni elettorali dell'ente;2017-02-01;
172;1;"3.484,00";"3.484,00";COMPONENTI SEGGI ELETTORALI; ;REFERENDUM COSTITUZIONALE DEL 4 DICEMBRE 2016-ONORARI COMPONENTI SEGGI;30-01-2017;1031;0;395;1;Spese correnti;3;Acquisto di beni e servizi;2;Acquisto di servizi;99;Altri servizi;4;Altre spese per consultazioni elettorali dell'ente;2017-02-01;
172;1;"3.484,00";"3.484,00";COMPONENTI SEGGI ELETTORALI; ;REFERENDUM COSTITUZIONALE DEL 4 DICEMBRE 2016-ONORARI COMPONENTI SEGGI;30-01-2017;1031;0;395;1;Spese correnti;3;Acquisto di beni e servizi;2;Acquisto di servizi;99;Altri servizi;4;Altre spese per consultazioni elettorali dell'ente;2017-02-01;
172;1;"3.484,00";"3.484,00";COMPONENTI SEGGI ELETTORALI; ;REFERENDUM COSTITUZIONALE DEL 4 DICEMBRE 2016-ONORARI COMPONENTI SEGGI;30-01-2017;1031;0;395;1;Spese correnti;3;Acquisto di beni e servizi;2;Acquisto di servizi;99;Altri servizi;4;Altre spese per consultazioni elettorali dell'ente;2017-03-22;
172;1;"3.484,00";"3.484,00";COMPONENTI SEGGI ELETTORALI; ;REFERENDUM COSTITUZIONALE DEL 4 DICEMBRE 2016-ONORARI COMPONENTI SEGGI;30-01-2017;1031;0;395;1;Spese correnti;3;Acquisto di beni e servizi;2;Acquisto di servizi;99;Altri servizi;4;Altre spese per consultazioni elettorali dell'ente;2017-02-01;
172;1;"3.484,00";"3.484,00";COMPONENTI SEGGI ELETTORALI; ;REFERENDUM COSTITUZIONALE DEL 4 DICEMBRE 2016-ONORARI COMPONENTI SEGGI;30-01-2017;1031;0;395;1;Spese correnti;3;Acquisto di beni e servizi;2;Acquisto di servizi;99;Altri servizi;4;Altre spese per consultazioni elettorali dell'ente;2017-02-01;
172;1;"3.484,00";"3.484,00";COMPONENTI SEGGI ELETTORALI; ;REFERENDUM COSTITUZIONALE DEL 4 DICEMBRE 2016-ONORARI COMPONENTI SEGGI;30-01-2017;1031;0;395;1;Spese correnti;3;Acquisto di beni e servizi;2;Acquisto di servizi;99;Altri servizi;4;Altre spese per consultazioni elettorali dell'ente;2017-02-01;
173;1;"4.800,00";"4.800,00";BENFATTA SALVATORE & C. S.N.C.;ZAF17CEE82;SALDO Fatt.n. 000005-2016-FATTURE  del 27/12/2016 MANUTENZIONE RETE IDRICA CENTRO E FRAZIONI ANNO 2016;30-01-2017;4035;0;460;2;Spese in conto capitale;2;Investimenti fissi lordi e acquisto di terreni;1;Beni materiali;9;Beni immobili;13;Altre vie di comunicazione;2017-02-01;
175;1;"15.562,86";"15.562,86";CITTA'  METROPOLITANA DI MESSINA; ;RIVERSAMENTO TEFA ANNI DAL 2011 AL 2016;30-01-2017;1752;1;331;1;Spese correnti;4;Trasferimenti correnti;1;Trasferimenti correnti a Amministrazioni Pubbliche;2;Trasferimenti correnti a Amministrazioni Locali;2;Trasferimenti correnti a Province;2017-02-01;
176;1;"4.000,00";"4.000,00";ASSOCIAZIONE FRATERNITA' MISERICORDIA; ;contributo realizzazione progetto ludoteca estiva;30-01-2017;1878;16;343;1;Spese correnti;3;Acquisto di beni e servizi;1;Acquisto di beni;2;Altri beni di consumo;999;Altri beni e materiali di consumo n.a.c.;2017-02-01;
177;1;"8.000,00";"8.000,00";ASSOCIAZIONE FRATERNITA' MISERICORDIA; ;contributo realizzazione progetto ludoteca estiva;30-01-2017;1910;0;344;1;Spese correnti;3;Acquisto di beni e servizi;2;Acquisto di servizi;99;Altri servizi;999;Altri servizi diversi n.a.c.;2017-02-01;
178;1;"1.200,00";"1.200,00";COOP. YOUNG PEOPLE POWER; ;CONTRIBUTI ALLE ASSOCIAZIONI per manifestazioni estate sampietrina 2016;30-01-2017;2000;0;315;1;Spese correnti;4;Trasferimenti correnti;4;Trasferimenti correnti a Istituzioni Sociali Private;1;Trasferimenti correnti a Istituzioni Sociali Private;1;Trasferimenti correnti a Istituzioni Sociali Private;2017-02-01;
179;1;"1.883,48";"1.883,48";CASSA PER I SERVIZI ENERGETICI E AMBIENTALI; ;SERVIZIO IDRICO INTEGRATO-PAGAMENTO COMPONENTI TARIFFARIE UI1;30-01-2017;1687;0;442;1;Spese correnti;4;Trasferimenti correnti;3;Trasferimenti correnti a Imprese;99;Trasferimenti correnti a altre imprese;999;Trasferimenti correnti a altre imprese;2017-02-03;
180;1;"432,70";"432,70";ASMEL; ;QUOTE SOCIETARIE CENTRALE DI COMMITENZA ASMEL CONSORTILE ARL;30-01-2017;1060;9;322;1;Spese correnti;4;Trasferimenti correnti;1;Trasferimenti correnti a Amministrazioni Pubbliche;2;Trasferimenti correnti a Amministrazioni Locali;999;Trasferimenti correnti a altre Amministrazioni Locali n.a.c.;2017-02-01;
181;1;"505,69";"505,69";CIRCOLO CASINO DI COMPAGNIA; ;rimborso spese energia elettrica casino di compagnia;30-01-2017;1505;1;337;1;Spese correnti;4;Trasferimenti correnti;3;Trasferimenti correnti a Imprese;99;Trasferimenti correnti a altre imprese;999;Trasferimenti correnti a altre imprese;2017-02-02;
183;1;"2.520,00";"2.520,00";ASSOCIAZIONE FRATERNITA' MISERICORDIA;ZE713CC945;INTERVENTO A SOSTEGNO DIVERSAMENTE ABILI NELLE SCUOLE A.S.2016/2017-nov.-dic.2016;30-01-2017;1775;0;296;1;Spese correnti;3;Acquisto di beni e servizi;2;Acquisto di servizi;15;Contratti di servizio pubblico;999;Altre spese per contratti di servizio pubblico;2017-02-01;
184;1;"51,00";"204,00";FERRARO FILIPPO; ;TIRO A SEGNO ANNO 2016-rimborso spese;30-01-2017;1267;0;286;1;Spese correnti;3;Acquisto di beni e servizi;2;Acquisto di servizi;99;Altri servizi;999;Altri servizi diversi n.a.c.;2017-02-01;
184;2;"51,00";"204,00";LAMANCUSA CARMELA; ;TIRO A SEGNO ANNO 2016-rimborso spese;30-01-2017;1267;0;286;1;Spese correnti;3;Acquisto di beni e servizi;2;Acquisto di servizi;99;Altri servizi;999;Altri servizi diversi n.a.c.;2017-02-01;
184;3;"51,00";"204,00";RIZZO ADALGISA; ;TIRO A SEGNO ANNO 2016-rimborso spese;30-01-2017;1267;0;286;1;Spese correnti;3;Acquisto di beni e servizi;2;Acquisto di servizi;99;Altri servizi;999;Altri servizi diversi n.a.c.;2017-02-01;
184;4;"51,00";"204,00";TRUGLIO CARMELO; ;TIRO A SEGNO ANNO 2016-rimborso spese;30-01-2017;1267;0;286;1;Spese correnti;3;Acquisto di beni e servizi;2;Acquisto di servizi;99;Altri servizi;999;Altri servizi diversi n.a.c.;2017-02-01;
185;1;"322,00";"322,00";TESORIERE COMUNALE-CREDITO SICILIANO;6343524999;Lavori manutenzione straordinaria e messa a norma impianti istituto comprensivo-Rimborso somma anticipata per PUBBLICAZ. GARA;30-01-2017;4056;0;375;2;Spese in conto capitale;4;Altri trasferimenti in conto capitale;1;Altri trasferimenti in conto capitale per assunzione di debiti di amministrazioni pubbliche;1;Altri trasferimenti in conto capitale per assunzione di debiti di Amministrazioni Centrali;1;Altri trasferimenti in conto capitale per assunzione di debiti di Ministeri;2017-02-02;
186;1;"1.135,60";"1.135,60";TESORIERE COMUNALE-CREDITO SICILIANO;6343524999;Lavori manutenzione straordinaria e messa a norma impianti istituto comprensivo-PUBBLICAZ. BANDO SU 2 QUOTIDIANI-Rimborso somma anticipata;30-01-2017;4056;0;376;2;Spese in conto capitale;4;Altri trasferimenti in conto capitale;1;Altri trasferimenti in conto capitale per assunzione di debiti di amministrazioni pubbliche;1;Altri trasferimenti in conto capitale per assunzione di debiti di Amministrazioni Centrali;1;Altri trasferimenti in conto capitale per assunzione di debiti di Ministeri;2017-02-02;
189;1;"1.270,37";"33.030,69";"AB2 Engineering Progettazione &amp; Costruzione s.r.l."; ;SALDO Fatt.n. 8/PA  del 09/11/2016 LAVORI RECUPERO EDILIZIO NEL CENTRO URBANO-COMP. REDAZIONE PERIZIA DI VARIANTE;30-01-2017;5064;0;1428;2;Spese in conto capitale;2;Investimenti fissi lordi e acquisto di terreni;1;Beni materiali;9;Beni immobili;1;Fabbricati ad uso abitativo;2017-02-01;
189;2;"31.759,32";"33.030,69";"AB2 Engineering Progettazione &amp; Costruzione s.r.l.";59998993D9;ACCONTO Fatt.n. 8/PA  del 09/11/2016 LAVORI RECUPERO EDILIZIO NEL CENTRO URBANO-COMP. REDAZIONE PERIZIA DI VARIANTE;30-01-2017;5064;0;1428;2;Spese in conto capitale;2;Investimenti fissi lordi e acquisto di terreni;1;Beni materiali;9;Beni immobili;1;Fabbricati ad uso abitativo;2017-02-01;
190;1;"-2.080,36";"20.804,57";TECNOTEAM COSTRUZIONI S.R.L.; ;SALDO Fatt.n. 14  del 09/11/2016 lavori in economia realizz. alloggi popolari;30-01-2017;5064;0;1428;2;Spese in conto capitale;2;Investimenti fissi lordi e acquisto di terreni;1;Beni materiali;9;Beni immobili;1;Fabbricati ad uso abitativo;2017-02-01;
190;2;"22.884,93";"20.804,57";TECNOTEAM COSTRUZIONI S.R.L.;6188038280;SALDO Fatt.n. 14  del 09/11/2016 lavori in economia realizz. alloggi popolari;30-01-2017;5064;0;1428;2;Spese in conto capitale;2;Investimenti fissi lordi e acquisto di terreni;1;Beni materiali;9;Beni immobili;1;Fabbricati ad uso abitativo;2017-02-01;
193;1;"11.966,46";"11.966,46";GULLO FILIPPO;ZE51CBC54E;ACCONTO Fatt.n. 01  del 13/04/2012 progettazione definitiva Recupero palazzo Boscogrande;01-02-2017;14490;0;473;2;Spese in conto capitale;2;Investimenti fissi lordi e acquisto di terreni;3;Beni immateriali;5;Incarichi professionali per la realizzazione di investimenti;1;Incarichi professionali per la realizzazione di investimenti;2017-02-03;
194;1;"20.282,69";"20.282,69";GULLO FILIPPO;ZE51CBC54E;SALDO Fatt.n. 01  del 13/04/2012 progettazione definitiva Recupero palazzo Boscogrande;01-02-2017;4490;0;474;2;Spese in conto capitale;2;Investimenti fissi lordi e acquisto di terreni;3;Beni immateriali;5;Incarichi professionali per la realizzazione di investimenti;1;Incarichi professionali per la realizzazione di investimenti;2017-02-03;
195;1;"1.300,00";"1.300,00";ASSOCIAZIONE LA VOCE DELLE DONNE; ;CONCESSIONE CONTRIBUTO PER ATTIVITA' E MANIFESTAZIONI ESTATE 2016;01-02-2017;2000;7;467;1;Spese correnti;4;Trasferimenti correnti;4;Trasferimenti correnti a Istituzioni Sociali Private;1;Trasferimenti correnti a Istituzioni Sociali Private;1;Trasferimenti correnti a Istituzioni Sociali Private;2017-02-09;
196;1;"0,03";"856,65";AL CENTESIMO SOC. COOP. S.R.L.;Z8017E2D3D;"SALDO Fatt.n. 27/E  del 27/12/2016 GENERI ALIMENTARI,CARNE E MATERIALE D'USO PER ASILO NIDO DIC.2016";01-02-2017;1776;1;25;1;Spese correnti;3;Acquisto di beni e servizi;1;Acquisto di beni;2;Altri beni di consumo;999;Altri beni e materiali di consumo n.a.c.;2017-02-09;
196;2;"2,78";"856,65";AL CENTESIMO SOC. COOP. S.R.L.;Z67119FE43;"SALDO Fatt.n. 27/E  del 27/12/2016 GENERI ALIMENTARI,CARNE E MATERIALE D'USO PER ASILO NIDO DIC.2016";01-02-2017;1776;1;25;1;Spese correnti;3;Acquisto di beni e servizi;1;Acquisto di beni;2;Altri beni di consumo;999;Altri beni e materiali di consumo n.a.c.;2017-02-09;
196;3;"854,90";"856,65";AL CENTESIMO SOC. COOP. S.R.L.;Z67119FE43;"ACCONTO Fatt.n. 27/E  del 27/12/2016 GENERI ALIMENTARI,CARNE E MATERIALE D'USO PER ASILO NIDO DIC.2016";01-02-2017;1776;1;25;1;Spese correnti;3;Acquisto di beni e servizi;1;Acquisto di beni;2;Altri beni di consumo;999;Altri beni e materiali di consumo n.a.c.;2017-02-09;
198;1;"204,00";"204,00";AZIENDA SANITARIA PROVINCIALE N.5; ;VIDIMAZIONE TABELLE DIETETICHE ASILO NIDO ANNO 2017;01-02-2017;1776;1;197;1;Spese correnti;3;Acquisto di beni e servizi;1;Acquisto di beni;2;Altri beni di consumo;999;Altri beni e materiali di consumo n.a.c.;2017-02-10;
200;1;"665,13";"665,13";TESORIERE COMUNALE-CREDITO SICILIANO; ;SERVIZIO TESORERIA COMUNALE ANNO 2016 - BOLLI E SPESE SOSTENUTE NELL'ES.2016;02-02-2017;1054;0;265;1;Spese correnti;3;Acquisto di beni e servizi;2;Acquisto di servizi;15;Contratti di servizio pubblico;999;Altre spese per contratti di servizio pubblico;2017-02-07;
202;1;"15.432,22";"15.432,22";ASSOCIAZIONE FRATERNITA' MISERICORDIA; ;CONTRIBUTO REGIONALE DI PROTEZIONE CIVILE ALL'ASSOCIAZIONE FRATERNITA' MISERICORDIA;06-02-2017;1851;0;478;1;Spese correnti;4;Trasferimenti correnti;4;Trasferimenti correnti a Istituzioni Sociali Private;1;Trasferimenti correnti a Istituzioni Sociali Private;1;Trasferimenti correnti a Istituzioni Sociali Private;2017-02-14;
203;1;"3.523,47";"3.523,47";ASSOCIAZIONE FRATERNITA' MISERICORDIA; ;CONTRIBUTO REGIONALE DI PROTEZIONE CIVILE ALL'ASSOCIAZIONE FRATERNITA' MISERICORDIA;06-02-2017;1851;0;478;1;Spese correnti;4;Trasferimenti correnti;4;Trasferimenti correnti a Istituzioni Sociali Private;1;Trasferimenti correnti a Istituzioni Sociali Private;1;Trasferimenti correnti a Istituzioni Sociali Private;2017-02-14;
205;1;"5.564,66";"5.564,66";CARDACI BASILIO; ;SALDO Fatt.n. FATTPA 2_16  del 06/01/2016 SUPPORTO AL RUP REDAZIONE P.V. LAVORI CONSOLIDAMENTO CENTRO ABITATO;07-02-2017;2177;1;525;1;Spese correnti;10;Altre spese correnti;99;Altre spese correnti n.a.c.;99;Altre spese correnti n.a.c.;999;Altre spese correnti n.a.c.;2017-02-10;
206;1;"1.270,59";"1.270,59";BENFATTA SALVATORE & C. S.N.C.;ZEC1CC3210;SALDO Fatt.n. 000001-2017-FATTURE  del 09/01/2017 LAVORI MANUTENZIONE RETE IDRICA ANNO 2016;07-02-2017;3304;8;471;2;Spese in conto capitale;2;Investimenti fissi lordi e acquisto di terreni;1;Beni materiali;9;Beni immobili;10;Infrastrutture idrauliche;2017-02-10;
207;1;"1.341,35";"1.341,35";HALLEY SUD SRL;ZB51260E31;ACCONTO Fatt.n. 201700004  del 04/01/2017 Canone di assistenza Software dal 01/10/2016 al 31/12/2016;07-02-2017;2100;2;62;1;Spese correnti;3;Acquisto di beni e servizi;2;Acquisto di servizi;19;Servizi informatici e di telecomunicazioni;5;Servizi per i sistemi e relativa manutenzione;2017-02-10;
208;1;"717,40";"717,40";HALLEY SUD SRL;ZB51260E31;SALDO Fatt.n. 201700004  del 04/01/2017 Canone di assistenza Software dal 01/10/2016 al 31/12/2016;07-02-2017;2100;6;63;1;Spese correnti;3;Acquisto di beni e servizi;2;Acquisto di servizi;19;Servizi informatici e di telecomunicazioni;5;Servizi per i sistemi e relativa manutenzione;2017-02-10;
209;1;"3.242,88";"3.242,88";GENTILE SALVATORE; ;SALDO Fatt.n. FATTPA 1_17  del 10/01/2017 saldo onorario giudizio ass. reg. agricoltura;07-02-2017;1058;0;236;1;Spese correnti;3;Acquisto di beni e servizi;2;Acquisto di servizi;99;Altri servizi;2;Altre spese legali;2017-02-10;
210;1;"4.781,47";"4.781,47";LA TECNICA DI MONDELLO SANTI; ;SALDO Fatt.n. FATTPA 28_16  del 20/12/2016 LAVORI SMALTIMENTO FANGHI IMPIANTO DEPURAZIONE ARABITE ANNO 2015-SALDO;07-02-2017;2177;1;523;1;Spese correnti;10;Altre spese correnti;99;Altre spese correnti n.a.c.;99;Altre spese correnti n.a.c.;999;Altre spese correnti n.a.c.;2017-02-10;
211;1;"5,60";"5,60";MAGRETTI MARIA; ;CONTRIBUTO LIBRI DI TESTO A.S.2016/2017-acconto;07-02-2017;2000;10;365;1;Spese correnti;3;Acquisto di beni e servizi;2;Acquisto di servizi;99;Altri servizi;999;Altri servizi diversi n.a.c.;2017-02-07;
212;1;"14,00";"14,00";MAGRETTI MARIA; ;CONTRIBUTO LIBRI DI TESTO A.S.2016/2017-SALDO;07-02-2017;2000;10;556;1;Spese correnti;3;Acquisto di beni e servizi;2;Acquisto di servizi;99;Altri servizi;999;Altri servizi diversi n.a.c.;2017-02-07;
213;1;"1.000,00";"1.000,00";PARROCCHIA S.MARIA E S.PANCRAZIO; ;CONCESSIONE CONTRIBUTO festa SAN Biagio;07-02-2017;2000;7;468;1;Spese correnti;4;Trasferimenti correnti;4;Trasferimenti correnti a Istituzioni Sociali Private;1;Trasferimenti correnti a Istituzioni Sociali Private;1;Trasferimenti correnti a Istituzioni Sociali Private;2017-02-14;
214;1;"3.170,23";"3.170,23";SOCIETA' COOP.  NUOVI ORIZZONTI ARL;Z97182650D;"SALDO Fatt.n. 2/P.A.  del 26/01/2017 SERVIZIO DI ASSISTENZA DOMICILIARE RIVOLTO AGLI ANZIANI, AI DIVERSAMENTE ABILI, AI MINORI ED AI NUCLEI FAMILIARI IN CONDIZIONI DI DISAGIO. - ANNO 2016 CIG:Z97182650D CONTRATTO NÂ° 149 DEL 13/06/2016";07-02-2017;1878;2;22;1;Spese correnti;3;Acquisto di beni e servizi;2;Acquisto di servizi;15;Contratti di servizio pubblico;9;Contratti di servizio di assistenza sociale domiciliare;2017-02-14;
215;1;"450,00";"450,00";MARSH S.P.A.;Z8B1CB3182;POLIZZA ASS.VA CENTRO RICREATIVO ANZIANI 2016/2017;07-02-2017;1878;9;461;1;Spese correnti;3;Acquisto di beni e servizi;1;Acquisto di beni;2;Altri beni di consumo;999;Altri beni e materiali di consumo n.a.c.;2017-02-14;
216;1;"18,36";"18,36";AL CENTESIMO SOC. COOP. S.R.L.;Z6D1B4C695;ACCONTO Fatt.n. 29/E  del 27/12/2016 CARNE PER MENSA SCOLASTICA DIC.2016;07-02-2017;2000;8;335;1;Spese correnti;3;Acquisto di beni e servizi;2;Acquisto di servizi;15;Contratti di servizio pubblico;6;Contratti di servizio per le mense scolastiche;2017-02-14;
217;1;"0,01";"862,57";AL CENTESIMO SOC. COOP. S.R.L.;Z6D1B4C695;ACCONTO Fatt.n. 29/E  del 27/12/2016 CARNE PER MENSA SCOLASTICA DIC.2016;07-02-2017;2000;8;185;1;Spese correnti;3;Acquisto di beni e servizi;2;Acquisto di servizi;15;Contratti di servizio pubblico;6;Contratti di servizio per le mense scolastiche;2017-02-14;
217;2;"862,56";"862,57";AL CENTESIMO SOC. COOP. S.R.L.;Z6D1B4C695;SALDO Fatt.n. 29/E  del 27/12/2016 CARNE PER MENSA SCOLASTICA DIC.2016;07-02-2017;2000;8;185;1;Spese correnti;3;Acquisto di beni e servizi;2;Acquisto di servizi;15;Contratti di servizio pubblico;6;Contratti di servizio per le mense scolastiche;2017-02-14;
218;1;"0,05";"22,66";AL CENTESIMO SOC. COOP. S.R.L.;ZD51B4C729;ACCONTO Fatt.n. 26/E  del 06/12/2016 GENERI ALIMENTAR E MATERIALE D'USO PER MENSA SCOLASTICA NOV.2016;07-02-2017;2000;8;334;1;Spese correnti;3;Acquisto di beni e servizi;2;Acquisto di servizi;15;Contratti di servizio pubblico;6;Contratti di servizio per le mense scolastiche;2017-02-14;
218;2;"6,24";"22,66";AL CENTESIMO SOC. COOP. S.R.L.;ZD51B4C729;ACCONTO Fatt.n. 26/E  del 06/12/2016 GENERI ALIMENTAR E MATERIALE D'USO PER MENSA SCOLASTICA NOV.2016;07-02-2017;2000;8;334;1;Spese correnti;3;Acquisto di beni e servizi;2;Acquisto di servizi;15;Contratti di servizio pubblico;6;Contratti di servizio per le mense scolastiche;2017-02-14;
218;3;"15,37";"22,66";AL CENTESIMO SOC. COOP. S.R.L.;ZD51B4C729;ACCONTO Fatt.n. 26/E  del 06/12/2016 GENERI ALIMENTAR E MATERIALE D'USO PER MENSA SCOLASTICA NOV.2016;07-02-2017;2000;8;334;1;Spese correnti;3;Acquisto di beni e servizi;2;Acquisto di servizi;15;Contratti di servizio pubblico;6;Contratti di servizio per le mense scolastiche;2017-02-14;
219;1;"0,03";"8.173,60";AL CENTESIMO SOC. COOP. S.R.L.;ZD51B4C729;SALDO Fatt.n. 28/E  del 27/12/2016 GENERI ALIMENTARI E MATERIALE D'USO PER MENSA SCOLASTICA DIC.2016;07-02-2017;2000;8;185;1;Spese correnti;3;Acquisto di beni e servizi;2;Acquisto di servizi;15;Contratti di servizio pubblico;6;Contratti di servizio per le mense scolastiche;2017-02-14;
219;2;"5,35";"8.173,60";AL CENTESIMO SOC. COOP. S.R.L.;ZD51B4C729;ACCONTO Fatt.n. 28/E  del 27/12/2016 GENERI ALIMENTARI E MATERIALE D'USO PER MENSA SCOLASTICA DIC.2016;07-02-2017;2000;8;185;1;Spese correnti;3;Acquisto di beni e servizi;2;Acquisto di servizi;15;Contratti di servizio pubblico;6;Contratti di servizio per le mense scolastiche;2017-02-14;
219;3;"2.523,09";"8.173,60";AL CENTESIMO SOC. COOP. S.R.L.;ZD51B4C729;ACCONTO Fatt.n. 28/E  del 27/12/2016 GENERI ALIMENTARI E MATERIALE D'USO PER MENSA SCOLASTICA DIC.2016;07-02-2017;2000;8;185;1;Spese correnti;3;Acquisto di beni e servizi;2;Acquisto di servizi;15;Contratti di servizio pubblico;6;Contratti di servizio per le mense scolastiche;2017-02-14;
219;4;"5.644,13";"8.173,60";AL CENTESIMO SOC. COOP. S.R.L.;ZD51B4C729;SALDO Fatt.n. 26/E  del 06/12/2016 GENERI ALIMENTAR E MATERIALE D'USO PER MENSA SCOLASTICA NOV.2016;07-02-2017;2000;8;185;1;Spese correnti;3;Acquisto di beni e servizi;2;Acquisto di servizi;15;Contratti di servizio pubblico;6;Contratti di servizio per le mense scolastiche;2017-02-14;
220;1;"732,00";"732,00";BONDI' ANTONINO; ;"SALDO Fatt.n. 3/E  del 19/01/2017 CONTROVERSIA MONDELLO MARIO/COMUNE DI SAN PIERO PATTI , DETERMINA SINDACALE N. 39 DEL 19.9.2016";07-02-2017;1058;2;184;1;Spese correnti;3;Acquisto di beni e servizi;2;Acquisto di servizi;99;Altri servizi;2;Altre spese legali;2017-03-06;
238;1;"2.080,00";"2.080,00";AGENZIA DELLE ENTRATE; ;INAIL SALDO ANNO 2016 E AUTOLIQUIDAZIONE ANNO 2017;08-02-2017;2158;1;548;1;Spese correnti;3;Acquisto di beni e servizi;2;Acquisto di servizi;99;Altri servizi;999;Altri servizi diversi n.a.c.;2017-02-13;
243;1;"60,26";"60,26";TESORIERE COMUNALE-CREDITO SICILIANO; ;TELEPASS GEN. 2017;10-02-2017;1017;0;38;1;Spese correnti;3;Acquisto di beni e servizi;2;Acquisto di servizi;99;Altri servizi;999;Altri servizi diversi n.a.c.;2017-02-10;
244;1;"124,22";"124,22";KUWAIT PETROLEUM ITALIA S.P.A.;6516542493;Fatt.n. PJ00063331 del 31/12/2016 CARBURANTE AUTOMEZZI COMUNALI DIC. 2016;10-02-2017;6080;1;476;1;Spese correnti;3;Acquisto di beni e servizi;1;Acquisto di beni;2;Altri beni di consumo;2;"Carburanti, combustibili e lubrificanti";2017-02-10;
245;1;"99,28";"99,28";KUWAIT PETROLEUM ITALIA S.P.A.;6516542493;Fatt.n. PJ00063331 del 31/12/2016 CARBURANTE AUTOMEZZI COMUNALI DIC. 2016;10-02-2017;6080;2;497;1;Spese correnti;3;Acquisto di beni e servizi;1;Acquisto di beni;2;Altri beni di consumo;2;"Carburanti, combustibili e lubrificanti";2017-02-10;
246;1;"773,49";"773,49";KUWAIT PETROLEUM ITALIA S.P.A.;6516542493;Fatt.n. PJ00063331 del 31/12/2016 CARBURANTE AUTOMEZZI COMUNALI DIC. 2016;10-02-2017;6080;3;493;1;Spese correnti;3;Acquisto di beni e servizi;1;Acquisto di beni;2;Altri beni di consumo;2;"Carburanti, combustibili e lubrificanti";2017-02-10;
247;1;"217,91";"217,91";KUWAIT PETROLEUM ITALIA S.P.A.;6516542493;Fatt.n. PJ00063331 del 31/12/2016 CARBURANTE AUTOMEZZI COMUNALI DIC. 2016;10-02-2017;6080;4;494;1;Spese correnti;3;Acquisto di beni e servizi;1;Acquisto di beni;2;Altri beni di consumo;2;"Carburanti, combustibili e lubrificanti";2017-02-10;
248;1;"665,74";"665,74";KUWAIT PETROLEUM ITALIA S.P.A.;6516542493;Fatt.n. PJ00063331 del 31/12/2016 CARBURANTE AUTOMEZZI COMUNALI DIC. 2016;10-02-2017;6080;5;495;1;Spese correnti;3;Acquisto di beni e servizi;1;Acquisto di beni;2;Altri beni di consumo;2;"Carburanti, combustibili e lubrificanti";2017-02-10;
249;1;"126,42";"126,42";KUWAIT PETROLEUM ITALIA S.P.A.;6516542493;Fatt.n. PJ00063331 del 31/12/2016 CARBURANTE AUTOMEZZI COMUNALI DIC. 2016;10-02-2017;6080;7;496;1;Spese correnti;3;Acquisto di beni e servizi;1;Acquisto di beni;2;Altri beni di consumo;2;"Carburanti, combustibili e lubrificanti";2017-02-10;
250;1;"167,65";"167,65";TELECOM ITALIA S.P.A.; ;SALDO Fatt.n. 8V00012487  del 10/01/2017 FATT. I BIM.2017;10-02-2017;6040;9;428;1;Spese correnti;3;Acquisto di beni e servizi;2;Acquisto di servizi;5;Utenze e canoni;1;Telefonia fissa;2017-02-14;
252;1;"1.500,00";"1.500,00";GENOVESE VENERA SEBASTIANA;ZEE17A7C4D;SALDO Fatt.n. 1 / FE  del 17/01/2017 autocontrollo sanitario asilo nido;10-02-2017;1776;0;558;1;Spese correnti;3;Acquisto di beni e servizi;1;Acquisto di beni;2;Altri beni di consumo;999;Altri beni e materiali di consumo n.a.c.;2017-02-10;
253;1;"40,66";"40,66";AUTOMOBILE CLUB D'ITALIA; ;SALDO Fatt.n. 0000030653  del 16/12/2016 CONSULTAZIONE PRA;10-02-2017;1272;0;163;1;Spese correnti;3;Acquisto di beni e servizi;2;Acquisto di servizi;99;Altri servizi;999;Altri servizi diversi n.a.c.;2017-02-10;
254;1;"828,99";"828,99";GAS NATURALVENDITA ITALIA SPA; ;SALDO Fatt.n. FI17366000000114  del 17/01/2017 CANONI E CONSUMI GAS METANO 01/12-31/12/16;13-02-2017;6160;3;529;1;Spese correnti;3;Acquisto di beni e servizi;2;Acquisto di servizi;5;Utenze e canoni;6;Gas;2017-02-23;
256;1;"0,26";"1.324,01";FERRAMEDILCERAM DI SCHEPISI GIANNI;Z1D1C78501;SALDO Fatt.n. 000001-2017-PA  del 11/01/2017 Fornitura di materiale elettrico e ferramenta per la realizzazione del progetto di democrazia partecipata denominato "presepe nel borgo".;14-02-2017;1478;0;399;1;Spese correnti;10;Altre spese correnti;99;Altre spese correnti n.a.c.;99;Altre spese correnti n.a.c.;999;Altre spese correnti n.a.c.;2017-02-16;
256;2;"1.324,75";"1.324,01";FERRAMEDILCERAM DI SCHEPISI GIANNI;Z1D1C78501;ACCONTO Fatt.n. 000001-2017-PA  del 11/01/2017 Fornitura di materiale elettrico e ferramenta per la realizzazione del progetto di democrazia partecipata denominato "presepe nel borgo".;14-02-2017;1478;0;399;1;Spese correnti;10;Altre spese correnti;99;Altre spese correnti n.a.c.;99;Altre spese correnti n.a.c.;999;Altre spese correnti n.a.c.;2017-02-16;
257;1;"0,01";"200,99";INTERDONATO GIACOMO S.N.C.;Z1D1C78501;SALDO Fatt.n. 000003-2017-INT G  del 24/01/2017 FORNITURA MATERIALE DI CANCELLERIA E DECORAZIONI  VARIE PER LA REALIZZAZIONE DEL PRESEPE NEL BORGO;14-02-2017;1478;0;400;1;Spese correnti;10;Altre spese correnti;99;Altre spese correnti n.a.c.;99;Altre spese correnti n.a.c.;999;Altre spese correnti n.a.c.;2017-02-16;
257;2;"200,98";"200,99";INTERDONATO GIACOMO S.N.C.;Z1D1C78501;ACCONTO Fatt.n. 000003-2017-INT G  del 24/01/2017 FORNITURA MATERIALE DI CANCELLERIA E DECORAZIONI  VARIE PER LA REALIZZAZIONE DEL PRESEPE NEL BORGO;14-02-2017;1478;0;400;1;Spese correnti;10;Altre spese correnti;99;Altre spese correnti n.a.c.;99;Altre spese correnti n.a.c.;999;Altre spese correnti n.a.c.;2017-02-16;
258;1;"2.000,00";"2.000,00";CTS CENTRO TEATRALE SICILIANO;B1B9G5;SALDO Fatt.n. FATTPA 1_17  del 30/01/2017 Delibera n. 234 del 28/12/2016-SPETTACOLO TATRALE 28/12/2016;14-02-2017;1477;0;531;1;Spese correnti;10;Altre spese correnti;99;Altre spese correnti n.a.c.;99;Altre spese correnti n.a.c.;999;Altre spese correnti n.a.c.;2017-02-16;
259;1;"0,01";"6.340,47";SOCIETA' COOP.  NUOVI ORIZZONTI ARL; ;"SALDO Fatt.n. 4/P.A.  del 02/02/2017 SERVIZIO DI ASSISTENZA DOMICILIARE RIVOLTO AGLI ANZIANI, AI DIVERSAMENTE ABILI, AI MINORI ED AI NUCLEI FAMILIARI IN CONDIZIONI DI DISAGIO. - ANNO 2016 CIG:Z97182650D CONTRATTO NÂ° 149 DEL 13/06/2016";14-02-2017;1878;2;329;1;Spese correnti;3;Acquisto di beni e servizi;2;Acquisto di servizi;15;Contratti di servizio pubblico;9;Contratti di servizio di assistenza sociale domiciliare;2017-02-16;
259;2;"6.340,48";"6.340,47";SOCIETA' COOP.  NUOVI ORIZZONTI ARL;Z97182650D;"SALDO Fatt.n. 4/P.A.  del 02/02/2017 SERVIZIO DI ASSISTENZA DOMICILIARE RIVOLTO AGLI ANZIANI, AI DIVERSAMENTE ABILI, AI MINORI ED AI NUCLEI FAMILIARI IN CONDIZIONI DI DISAGIO. - ANNO 2016 CIG:Z97182650D CONTRATTO NÂ° 149 DEL 13/06/2016";14-02-2017;1878;2;329;1;Spese correnti;3;Acquisto di beni e servizi;2;Acquisto di servizi;15;Contratti di servizio pubblico;9;Contratti di servizio di assistenza sociale domiciliare;2017-02-16;
266;1;"1.831,73";"1.831,73";TESORIERE COMUNALE-CREDITO SICILIANO;6343524999;Lavori manutenzione straordinaria e messa a norma impianti istituto comprensivo-COORD. SICUREZZA IN FASE PROGETTAZ.;16-02-2017;4056;0;373;2;Spese in conto capitale;4;Altri trasferimenti in conto capitale;1;Altri trasferimenti in conto capitale per assunzione di debiti di amministrazioni pubbliche;1;Altri trasferimenti in conto capitale per assunzione di debiti di Amministrazioni Centrali;1;Altri trasferimenti in conto capitale per assunzione di debiti di Ministeri;2017-02-28;
268;1;"1.526,61";"1.526,61";TESORIERE COMUNALE-CREDITO SICILIANO;6343524999;Lavori manutenzione straordinaria e messa a norma impianti istituto comprensivo-COMP. RUP 50%;16-02-2017;4056;0;373;2;Spese in conto capitale;4;Altri trasferimenti in conto capitale;1;Altri trasferimenti in conto capitale per assunzione di debiti di amministrazioni pubbliche;1;Altri trasferimenti in conto capitale per assunzione di debiti di Amministrazioni Centrali;1;Altri trasferimenti in conto capitale per assunzione di debiti di Ministeri;2017-02-28;
270;1;"5.035,51";"5.035,51";TESORIERE COMUNALE-CREDITO SICILIANO;6343524999;Lavori manutenzione straordinaria e messa a norma impianti istituto comprensivo-COMP. PROGETTAZIONE;16-02-2017;4056;0;373;2;Spese in conto capitale;4;Altri trasferimenti in conto capitale;1;Altri trasferimenti in conto capitale per assunzione di debiti di amministrazioni pubbliche;1;Altri trasferimenti in conto capitale per assunzione di debiti di Amministrazioni Centrali;1;Altri trasferimenti in conto capitale per assunzione di debiti di Ministeri;2017-02-28;
282;1;"995,10";"6.413,88";GIAMBRONE MASSIMILIANO; ;indennita' funzione GEN. 2017;16-02-2017;1001;0;42;1;Spese correnti;3;Acquisto di beni e servizi;2;Acquisto di servizi;1;Organi e incarichi istituzionali dell'amministrazione;1;Organi istituzionali dell'amministrazione - Indennità;2017-02-23;
282;2;"995,10";"6.413,88";LAURIA FRANCESCA; ;indennita' funzione GEN. 2017;16-02-2017;1001;0;42;1;Spese correnti;3;Acquisto di beni e servizi;2;Acquisto di servizi;1;Organi e incarichi istituzionali dell'amministrazione;1;Organi istituzionali dell'amministrazione - Indennità;2017-02-23;
282;3;"1.216,24";"6.413,88";TARANTO SALVATORE; ;indennita' funzione GEN. 2017;16-02-2017;1001;0;42;1;Spese correnti;3;Acquisto di beni e servizi;2;Acquisto di servizi;1;Organi e incarichi istituzionali dell'amministrazione;1;Organi istituzionali dell'amministrazione - Indennità;2017-02-23;
282;4;"995,10";"6.413,88";TODARO ANTONINO; ;indennita' funzione GEN. 2017;16-02-2017;1001;0;42;1;Spese correnti;3;Acquisto di beni e servizi;2;Acquisto di servizi;1;Organi e incarichi istituzionali dell'amministrazione;1;Organi istituzionali dell'amministrazione - Indennità;2017-02-23;
282;5;"2.211,34";"6.413,88";TROVATO ORNELLA; ;indennita' funzione GEN. 2017;16-02-2017;1001;0;42;1;Spese correnti;3;Acquisto di beni e servizi;2;Acquisto di servizi;1;Organi e incarichi istituzionali dell'amministrazione;1;Organi istituzionali dell'amministrazione - Indennità;2017-02-23;
295;1;"186,91";"186,91";"Libreria Mosca sas di Mosca Antonio &amp; C."; ;SALDO Fatt.n. 4  del 02/02/2017 BUONI LIBRO;16-02-2017;2000;10;394;1;Spese correnti;3;Acquisto di beni e servizi;2;Acquisto di servizi;99;Altri servizi;999;Altri servizi diversi n.a.c.;2017-02-17;
296;1;"781,98";"781,98";GIARDINA VIAGGI SRL;ZD41B1341D;SALDO Fatt.n. 3E  del 07/02/2017 TRASPORTO STUDENTI DIC. 2016;16-02-2017;2000;9;176;1;Spese correnti;3;Acquisto di beni e servizi;2;Acquisto di servizi;15;Contratti di servizio pubblico;2;Contratti di servizio di trasporto scolastico;2017-02-23;
297;1;"920,88";"920,88";RADICI MAURIZIO; ;SALDO Fatt.n. 2  del 16/01/2017 TRIBUNALE ORDINARIO DI PATTI - RG 1162/2016;16-02-2017;1058;2;277;1;Spese correnti;3;Acquisto di beni e servizi;2;Acquisto di servizi;99;Altri servizi;2;Altre spese legali;2017-02-23;
298;1;"4.411,90";"4.411,90";CREDITORI DIVERSI; ;BORSE D STUDIO A.S.2011/2012;16-02-2017;1425;0;447;1;Spese correnti;4;Trasferimenti correnti;2;Trasferimenti correnti a Famiglie;1;Interventi previdenziali;999;Altri sussidi e assegni;2017-03-27;
298;1;"4.411,90";"4.411,90";CREDITORI DIVERSI; ;BORSE D STUDIO A.S.2011/2012;16-02-2017;1425;0;447;1;Spese correnti;4;Trasferimenti correnti;2;Trasferimenti correnti a Famiglie;1;Interventi previdenziali;999;Altri sussidi e assegni;2017-03-21;
298;1;"4.411,90";"4.411,90";CREDITORI DIVERSI; ;BORSE D STUDIO A.S.2011/2012;16-02-2017;1425;0;447;1;Spese correnti;4;Trasferimenti correnti;2;Trasferimenti correnti a Famiglie;1;Interventi previdenziali;999;Altri sussidi e assegni;2017-04-11;
298;1;"4.411,90";"4.411,90";CREDITORI DIVERSI; ;BORSE D STUDIO A.S.2011/2012;16-02-2017;1425;0;447;1;Spese correnti;4;Trasferimenti correnti;2;Trasferimenti correnti a Famiglie;1;Interventi previdenziali;999;Altri sussidi e assegni;2017-03-28;
298;1;"4.411,90";"4.411,90";CREDITORI DIVERSI; ;BORSE D STUDIO A.S.2011/2012;16-02-2017;1425;0;447;1;Spese correnti;4;Trasferimenti correnti;2;Trasferimenti correnti a Famiglie;1;Interventi previdenziali;999;Altri sussidi e assegni;2017-05-08;
298;1;"4.411,90";"4.411,90";CREDITORI DIVERSI; ;BORSE D STUDIO A.S.2011/2012;16-02-2017;1425;0;447;1;Spese correnti;4;Trasferimenti correnti;2;Trasferimenti correnti a Famiglie;1;Interventi previdenziali;999;Altri sussidi e assegni;2017-03-24;
298;1;"4.411,90";"4.411,90";CREDITORI DIVERSI; ;BORSE D STUDIO A.S.2011/2012;16-02-2017;1425;0;447;1;Spese correnti;4;Trasferimenti correnti;2;Trasferimenti correnti a Famiglie;1;Interventi previdenziali;999;Altri sussidi e assegni;2017-04-07;
298;1;"4.411,90";"4.411,90";CREDITORI DIVERSI; ;BORSE D STUDIO A.S.2011/2012;16-02-2017;1425;0;447;1;Spese correnti;4;Trasferimenti correnti;2;Trasferimenti correnti a Famiglie;1;Interventi previdenziali;999;Altri sussidi e assegni;2017-03-28;
298;1;"4.411,90";"4.411,90";CREDITORI DIVERSI; ;BORSE D STUDIO A.S.2011/2012;16-02-2017;1425;0;447;1;Spese correnti;4;Trasferimenti correnti;2;Trasferimenti correnti a Famiglie;1;Interventi previdenziali;999;Altri sussidi e assegni;2017-05-09;
298;1;"4.411,90";"4.411,90";CREDITORI DIVERSI; ;BORSE D STUDIO A.S.2011/2012;16-02-2017;1425;0;447;1;Spese correnti;4;Trasferimenti correnti;2;Trasferimenti correnti a Famiglie;1;Interventi previdenziali;999;Altri sussidi e assegni;2017-03-24;
298;1;"4.411,90";"4.411,90";CREDITORI DIVERSI; ;BORSE D STUDIO A.S.2011/2012;16-02-2017;1425;0;447;1;Spese correnti;4;Trasferimenti correnti;2;Trasferimenti correnti a Famiglie;1;Interventi previdenziali;999;Altri sussidi e assegni;2017-04-03;
298;1;"4.411,90";"4.411,90";CREDITORI DIVERSI; ;BORSE D STUDIO A.S.2011/2012;16-02-2017;1425;0;447;1;Spese correnti;4;Trasferimenti correnti;2;Trasferimenti correnti a Famiglie;1;Interventi previdenziali;999;Altri sussidi e assegni;2017-03-29;
298;1;"4.411,90";"4.411,90";CREDITORI DIVERSI; ;BORSE D STUDIO A.S.2011/2012;16-02-2017;1425;0;447;1;Spese correnti;4;Trasferimenti correnti;2;Trasferimenti correnti a Famiglie;1;Interventi previdenziali;999;Altri sussidi e assegni;2017-05-11;
298;1;"4.411,90";"4.411,90";CREDITORI DIVERSI; ;BORSE D STUDIO A.S.2011/2012;16-02-2017;1425;0;447;1;Spese correnti;4;Trasferimenti correnti;2;Trasferimenti correnti a Famiglie;1;Interventi previdenziali;999;Altri sussidi e assegni;2017-03-24;
298;1;"4.411,90";"4.411,90";CREDITORI DIVERSI; ;BORSE D STUDIO A.S.2011/2012;16-02-2017;1425;0;447;1;Spese correnti;4;Trasferimenti correnti;2;Trasferimenti correnti a Famiglie;1;Interventi previdenziali;999;Altri sussidi e assegni;2017-04-05;
298;1;"4.411,90";"4.411,90";CREDITORI DIVERSI; ;BORSE D STUDIO A.S.2011/2012;16-02-2017;1425;0;447;1;Spese correnti;4;Trasferimenti correnti;2;Trasferimenti correnti a Famiglie;1;Interventi previdenziali;999;Altri sussidi e assegni;2017-03-29;
298;1;"4.411,90";"4.411,90";CREDITORI DIVERSI; ;BORSE D STUDIO A.S.2011/2012;16-02-2017;1425;0;447;1;Spese correnti;4;Trasferimenti correnti;2;Trasferimenti correnti a Famiglie;1;Interventi previdenziali;999;Altri sussidi e assegni;2017-03-31;
298;1;"4.411,90";"4.411,90";CREDITORI DIVERSI; ;BORSE D STUDIO A.S.2011/2012;16-02-2017;1425;0;447;1;Spese correnti;4;Trasferimenti correnti;2;Trasferimenti correnti a Famiglie;1;Interventi previdenziali;999;Altri sussidi e assegni;2017-03-23;
298;1;"4.411,90";"4.411,90";CREDITORI DIVERSI; ;BORSE D STUDIO A.S.2011/2012;16-02-2017;1425;0;447;1;Spese correnti;4;Trasferimenti correnti;2;Trasferimenti correnti a Famiglie;1;Interventi previdenziali;999;Altri sussidi e assegni;2017-04-05;
298;1;"4.411,90";"4.411,90";CREDITORI DIVERSI; ;BORSE D STUDIO A.S.2011/2012;16-02-2017;1425;0;447;1;Spese correnti;4;Trasferimenti correnti;2;Trasferimenti correnti a Famiglie;1;Interventi previdenziali;999;Altri sussidi e assegni;2017-03-14;
298;1;"4.411,90";"4.411,90";CREDITORI DIVERSI; ;BORSE D STUDIO A.S.2011/2012;16-02-2017;1425;0;447;1;Spese correnti;4;Trasferimenti correnti;2;Trasferimenti correnti a Famiglie;1;Interventi previdenziali;999;Altri sussidi e assegni;2017-04-24;
298;1;"4.411,90";"4.411,90";CREDITORI DIVERSI; ;BORSE D STUDIO A.S.2011/2012;16-02-2017;1425;0;447;1;Spese correnti;4;Trasferimenti correnti;2;Trasferimenti correnti a Famiglie;1;Interventi previdenziali;999;Altri sussidi e assegni;2017-03-23;
298;1;"4.411,90";"4.411,90";CREDITORI DIVERSI; ;BORSE D STUDIO A.S.2011/2012;16-02-2017;1425;0;447;1;Spese correnti;4;Trasferimenti correnti;2;Trasferimenti correnti a Famiglie;1;Interventi previdenziali;999;Altri sussidi e assegni;2017-03-21;
298;1;"4.411,90";"4.411,90";CREDITORI DIVERSI; ;BORSE D STUDIO A.S.2011/2012;16-02-2017;1425;0;447;1;Spese correnti;4;Trasferimenti correnti;2;Trasferimenti correnti a Famiglie;1;Interventi previdenziali;999;Altri sussidi e assegni;2017-03-08;
298;1;"4.411,90";"4.411,90";CREDITORI DIVERSI; ;BORSE D STUDIO A.S.2011/2012;16-02-2017;1425;0;447;1;Spese correnti;4;Trasferimenti correnti;2;Trasferimenti correnti a Famiglie;1;Interventi previdenziali;999;Altri sussidi e assegni;2017-04-11;
357;1;"282,70";"282,70";MAGGIOLI S.p.A.;Z7441C0E2C;SALDO Fatt.n. 0002150337  del 23/12/2016 REGISTRI STATO CIVILE;20-02-2017;6050;4;336;1;Spese correnti;3;Acquisto di beni e servizi;1;Acquisto di beni;2;Altri beni di consumo;1;"Carta, cancelleria e stampati";2017-02-28;
358;1;"2.000,00";"2.000,00";RAIMONDO CARMELO;Z0D1C72F50;SALDO Fatt.n. FATTPA 1_17  del 19/01/2017 LUMINARIE ARTISTICHE FESTIVITA' NATALIZIE 2016;20-02-2017;1520;1;390;1;Spese correnti;3;Acquisto di beni e servizi;2;Acquisto di servizi;2;"Organizzazione eventi, pubblicita` e servizi per trasferta";5;Organizzazione e partecipazione a manifestazioni e convegni;2017-02-28;
359;1;"1.496,00";"1.496,00";CAFARELLI TINDARO;Z601CFA9E4;SALDO Fatt.n. 000001-2017-CATI  del 24/01/2017 FORNITURA DI GASOLIO PER IL RISCALDAMENTO DEL PALAZZO MUNICIPALE;20-02-2017;6060;5;22;1;Spese correnti;3;Acquisto di beni e servizi;1;Acquisto di beni;2;Altri beni di consumo;2;"Carburanti, combustibili e lubrificanti";2017-02-28;
360;1;"971,22";"971,22";ENEL ENERGIA SPA; ;Fatt.n. 004800210095 del 11/02/2017 FATT. GEN.2017;20-02-2017;6030;5;412;1;Spese correnti;3;Acquisto di beni e servizi;2;Acquisto di servizi;5;Utenze e canoni;4;Energia elettrica;2017-02-28;
361;1;"115,24";"115,24";ENEL ENERGIA SPA; ;Fatt.n. 004800210110 del 11/02/2017 FATT. DIC.2016-GEN.2017;20-02-2017;6030;6;413;1;Spese correnti;3;Acquisto di beni e servizi;2;Acquisto di servizi;5;Utenze e canoni;4;Energia elettrica;2017-02-28;
362;1;"144,68";"144,68";ENEL ENERGIA SPA; ;Fatt.n. 004800210102 del 11/02/2017 FATT. DIC.2016-GEN.2017;20-02-2017;6030;7;414;1;Spese correnti;3;Acquisto di beni e servizi;2;Acquisto di servizi;5;Utenze e canoni;4;Energia elettrica;2017-02-28;
363;1;"97,38";"270,40";ENEL ENERGIA SPA; ;Fatt.n. 004800210106 del 11/02/2017 FATT. DIC.2016-GEN.2017;20-02-2017;6030;8;415;1;Spese correnti;3;Acquisto di beni e servizi;2;Acquisto di servizi;5;Utenze e canoni;4;Energia elettrica;2017-02-28;
363;2;"173,02";"270,40";ENEL ENERGIA SPA; ;Fatt.n. 004800210097 del 11/02/2017 FATT. DIC.2016-GEN.2017;20-02-2017;6030;8;415;1;Spese correnti;3;Acquisto di beni e servizi;2;Acquisto di servizi;5;Utenze e canoni;4;Energia elettrica;2017-02-28;
364;1;"847,96";"847,96";ENEL ENERGIA SPA; ;Fatt.n. 004800210100 del 11/02/2017 fatt. gen.2017;20-02-2017;6030;10;417;1;Spese correnti;3;Acquisto di beni e servizi;2;Acquisto di servizi;5;Utenze e canoni;4;Energia elettrica;2017-02-28;
365;1;"970,24";"970,24";ENEL ENERGIA SPA; ;Fatt.n. 004800210101 del 11/02/2017 FATT. DIC.2016-GEN.2017;20-02-2017;6030;11;418;1;Spese correnti;3;Acquisto di beni e servizi;2;Acquisto di servizi;5;Utenze e canoni;4;Energia elettrica;2017-02-28;
366;1;"36,71";"8.845,61";ENEL ENERGIA SPA; ;Fatt.n. 004800210083 del 11/02/2017 FATT. GEN.2017;20-02-2017;6030;12;419;1;Spese correnti;3;Acquisto di beni e servizi;2;Acquisto di servizi;5;Utenze e canoni;4;Energia elettrica;2017-02-28;
366;2;"38,37";"8.845,61";ENEL ENERGIA SPA; ;Fatt.n. 004800210105 del 11/02/2017 FATT. DIC.2016-GEN.2017;20-02-2017;6030;12;419;1;Spese correnti;3;Acquisto di beni e servizi;2;Acquisto di servizi;5;Utenze e canoni;4;Energia elettrica;2017-02-28;
366;3;"47,04";"8.845,61";ENEL ENERGIA SPA; ;Fatt.n. 004800208168 del 11/02/2017 fatt. i.p. gen.2017;20-02-2017;6030;12;419;1;Spese correnti;3;Acquisto di beni e servizi;2;Acquisto di servizi;5;Utenze e canoni;4;Energia elettrica;2017-02-28;
366;4;"53,69";"8.845,61";ENEL ENERGIA SPA; ;Fatt.n. 004800210092 del 11/02/2017 FATT. GEN.2017;20-02-2017;6030;12;419;1;Spese correnti;3;Acquisto di beni e servizi;2;Acquisto di servizi;5;Utenze e canoni;4;Energia elettrica;2017-02-28;
366;5;"53,20";"8.845,61";ENEL ENERGIA SPA; ;Fatt.n. 004800180235 del 07/02/2017 FATT. I.P. GEN.2017;20-02-2017;6030;12;419;1;Spese correnti;3;Acquisto di beni e servizi;2;Acquisto di servizi;5;Utenze e canoni;4;Energia elettrica;2017-02-28;
366;6;"92,15";"8.845,61";ENEL ENERGIA SPA; ;Fatt.n. 004800210080 del 11/02/2017 FATT. GEN.2017;20-02-2017;6030;12;419;1;Spese correnti;3;Acquisto di beni e servizi;2;Acquisto di servizi;5;Utenze e canoni;4;Energia elettrica;2017-02-28;
366;7;"95,15";"8.845,61";ENEL ENERGIA SPA; ;Fatt.n. 004800210090 del 11/02/2017 FATT. GEN.2017;20-02-2017;6030;12;419;1;Spese correnti;3;Acquisto di beni e servizi;2;Acquisto di servizi;5;Utenze e canoni;4;Energia elettrica;2017-02-28;
366;8;"100,74";"8.845,61";ENEL ENERGIA SPA; ;Fatt.n. 004800210082 del 11/02/2017 FATT. GEN.2017;20-02-2017;6030;12;419;1;Spese correnti;3;Acquisto di beni e servizi;2;Acquisto di servizi;5;Utenze e canoni;4;Energia elettrica;2017-02-28;
366;9;"104,27";"8.845,61";ENEL ENERGIA SPA; ;Fatt.n. 004800210093 del 11/02/2017 FATT. GEN.2017;20-02-2017;6030;12;419;1;Spese correnti;3;Acquisto di beni e servizi;2;Acquisto di servizi;5;Utenze e canoni;4;Energia elettrica;2017-02-28;
366;10;"121,26";"8.845,61";ENEL ENERGIA SPA; ;Fatt.n. 004800210078 del 11/02/2017 FATT. GEN.2017;20-02-2017;6030;12;419;1;Spese correnti;3;Acquisto di beni e servizi;2;Acquisto di servizi;5;Utenze e canoni;4;Energia elettrica;2017-02-28;
366;11;"132,10";"8.845,61";ENEL ENERGIA SPA; ;Fatt.n. 004800210088 del 11/02/2017 FATT. GEN.2017;20-02-2017;6030;12;419;1;Spese correnti;3;Acquisto di beni e servizi;2;Acquisto di servizi;5;Utenze e canoni;4;Energia elettrica;2017-02-28;
366;12;"134,88";"8.845,61";ENEL ENERGIA SPA; ;Fatt.n. 004800210087 del 11/02/2017 FATT. GEN.2017;20-02-2017;6030;12;419;1;Spese correnti;3;Acquisto di beni e servizi;2;Acquisto di servizi;5;Utenze e canoni;4;Energia elettrica;2017-02-28;
366;13;"153,79";"8.845,61";ENEL ENERGIA SPA; ;Fatt.n. 004800207627 del 11/02/2017 FATT. GEN.2017;20-02-2017;6030;12;419;1;Spese correnti;3;Acquisto di beni e servizi;2;Acquisto di servizi;5;Utenze e canoni;4;Energia elettrica;2017-02-28;
366;14;"158,93";"8.845,61";ENEL ENERGIA SPA; ;Fatt.n. 004800194842 del 08/02/2017 fatt. i.p. gen.2017;20-02-2017;6030;12;419;1;Spese correnti;3;Acquisto di beni e servizi;2;Acquisto di servizi;5;Utenze e canoni;4;Energia elettrica;2017-02-28;
366;15;"162,87";"8.845,61";ENEL ENERGIA SPA; ;Fatt.n. 004800196557 del 08/02/2017 fatt. i.p. gen.2017;20-02-2017;6030;12;419;1;Spese correnti;3;Acquisto di beni e servizi;2;Acquisto di servizi;5;Utenze e canoni;4;Energia elettrica;2017-02-28;
366;16;"173,12";"8.845,61";ENEL ENERGIA SPA; ;Fatt.n. 004800206281 del 11/02/2017 fatt. i.p. gen.2017;20-02-2017;6030;12;419;1;Spese correnti;3;Acquisto di beni e servizi;2;Acquisto di servizi;5;Utenze e canoni;4;Energia elettrica;2017-02-28;
366;17;"188,25";"8.845,61";ENEL ENERGIA SPA; ;Fatt.n. 004800210089 del 11/02/2017 FATT. GEN.2017;20-02-2017;6030;12;419;1;Spese correnti;3;Acquisto di beni e servizi;2;Acquisto di servizi;5;Utenze e canoni;4;Energia elettrica;2017-02-28;
366;18;"261,86";"8.845,61";ENEL ENERGIA SPA; ;Fatt.n. 004800210085 del 11/02/2017 FATT. GEN.2017;20-02-2017;6030;12;419;1;Spese correnti;3;Acquisto di beni e servizi;2;Acquisto di servizi;5;Utenze e canoni;4;Energia elettrica;2017-02-28;
366;19;"315,48";"8.845,61";ENEL ENERGIA SPA; ;Fatt.n. 004800210079 del 11/02/2017 FATT. GEN.2017;20-02-2017;6030;12;419;1;Spese correnti;3;Acquisto di beni e servizi;2;Acquisto di servizi;5;Utenze e canoni;4;Energia elettrica;2017-02-28;
366;20;"362,41";"8.845,61";ENEL ENERGIA SPA; ;Fatt.n. 004800210081 del 11/02/2017 FATT. GEN.2017;20-02-2017;6030;12;419;1;Spese correnti;3;Acquisto di beni e servizi;2;Acquisto di servizi;5;Utenze e canoni;4;Energia elettrica;2017-02-28;
366;21;"433,77";"8.845,61";ENEL ENERGIA SPA; ;Fatt.n. 004800210077 del 11/02/2017 FATT. GEN.2017;20-02-2017;6030;12;419;1;Spese correnti;3;Acquisto di beni e servizi;2;Acquisto di servizi;5;Utenze e canoni;4;Energia elettrica;2017-02-28;
366;22;"523,86";"8.845,61";ENEL ENERGIA SPA; ;Fatt.n. 004800210086 del 11/02/2017 FATT. GEN.2017;20-02-2017;6030;12;419;1;Spese correnti;3;Acquisto di beni e servizi;2;Acquisto di servizi;5;Utenze e canoni;4;Energia elettrica;2017-02-28;
366;23;"576,01";"8.845,61";ENEL ENERGIA SPA; ;Fatt.n. 004800210076 del 11/02/2017 FATT. GEN.2017;20-02-2017;6030;12;419;1;Spese correnti;3;Acquisto di beni e servizi;2;Acquisto di servizi;5;Utenze e canoni;4;Energia elettrica;2017-02-28;
366;24;"859,40";"8.845,61";ENEL ENERGIA SPA; ;Fatt.n. 004800210075 del 11/02/2017 FATT. GEN.2017;20-02-2017;6030;12;419;1;Spese correnti;3;Acquisto di beni e servizi;2;Acquisto di servizi;5;Utenze e canoni;4;Energia elettrica;2017-02-28;
366;25;"872,14";"8.845,61";ENEL ENERGIA SPA; ;Fatt.n. 004800210091 del 11/02/2017 FATT. GEN.2017;20-02-2017;6030;12;419;1;Spese correnti;3;Acquisto di beni e servizi;2;Acquisto di servizi;5;Utenze e canoni;4;Energia elettrica;2017-02-28;
366;26;"2.803,16";"8.845,61";ENEL ENERGIA SPA; ;Fatt.n. 004800210084 del 11/02/2017 fatt. i.p. gen.2017;20-02-2017;6030;12;419;1;Spese correnti;3;Acquisto di beni e servizi;2;Acquisto di servizi;5;Utenze e canoni;4;Energia elettrica;2017-02-28;
367;1;"36,51";"3.104,46";ENEL ENERGIA SPA; ;Fatt.n. 004800206282 del 11/02/2017 FATT. DIC.2016-GEN.2017;20-02-2017;6030;13;420;1;Spese correnti;3;Acquisto di beni e servizi;2;Acquisto di servizi;5;Utenze e canoni;4;Energia elettrica;2017-02-28;
367;2;"77,97";"3.104,46";ENEL ENERGIA SPA; ;Fatt.n. 004800210074 del 11/02/2017 fatt.dic.2016 gen.2017;20-02-2017;6030;13;420;1;Spese correnti;3;Acquisto di beni e servizi;2;Acquisto di servizi;5;Utenze e canoni;4;Energia elettrica;2017-02-28;
367;3;"77,97";"3.104,46";ENEL ENERGIA SPA; ;Fatt.n. 004800210104 del 11/02/2017 FATT. DIC.2016-GEN.2017;20-02-2017;6030;13;420;1;Spese correnti;3;Acquisto di beni e servizi;2;Acquisto di servizi;5;Utenze e canoni;4;Energia elettrica;2017-02-28;
367;4;"82,62";"3.104,46";ENEL ENERGIA SPA; ;Fatt.n. 004800210103 del 11/02/2017 FATT. DIC.2016-GEN.2017;20-02-2017;6030;13;420;1;Spese correnti;3;Acquisto di beni e servizi;2;Acquisto di servizi;5;Utenze e canoni;4;Energia elettrica;2017-02-28;
367;5;"124,16";"3.104,46";ENEL ENERGIA SPA; ;Fatt.n. 004800210098 del 11/02/2017 FATT. DIC.2016-GEN.2017;20-02-2017;6030;13;420;1;Spese correnti;3;Acquisto di beni e servizi;2;Acquisto di servizi;5;Utenze e canoni;4;Energia elettrica;2017-02-28;
367;6;"125,06";"3.104,46";ENEL ENERGIA SPA; ;Fatt.n. 004800210108 del 11/02/2017 FATT. DIC.2016-GEN.2017;20-02-2017;6030;13;420;1;Spese correnti;3;Acquisto di beni e servizi;2;Acquisto di servizi;5;Utenze e canoni;4;Energia elettrica;2017-02-28;
367;7;"1.008,09";"3.104,46";ENEL ENERGIA SPA; ;Fatt.n. 004800210099 del 11/02/2017 FATT. GEN.2017;20-02-2017;6030;13;420;1;Spese correnti;3;Acquisto di beni e servizi;2;Acquisto di servizi;5;Utenze e canoni;4;Energia elettrica;2017-02-28;
367;8;"1.576,08";"3.104,46";ENEL ENERGIA SPA; ;Fatt.n. 004800210109 del 11/02/2017 FATT. DIC.2016-GEN.2017;20-02-2017;6030;13;420;1;Spese correnti;3;Acquisto di beni e servizi;2;Acquisto di servizi;5;Utenze e canoni;4;Energia elettrica;2017-02-28;
368;1;"454,49";"454,49";ENEL ENERGIA SPA; ;Fatt.n. 004800211120 del 11/02/2017 FATT. DIC.2016-GEN.2017;20-02-2017;6030;14;421;1;Spese correnti;3;Acquisto di beni e servizi;2;Acquisto di servizi;5;Utenze e canoni;4;Energia elettrica;2017-02-28;
369;1;"99,14";"99,14";ENEL ENERGIA SPA; ;Fatt.n. 004800210096 del 11/02/2017 FATT. DIC.2016-GEN.2017;20-02-2017;6030;16;422;1;Spese correnti;3;Acquisto di beni e servizi;2;Acquisto di servizi;5;Utenze e canoni;4;Energia elettrica;2017-02-28;
370;1;"592,72";"592,72";ENEL ENERGIA SPA; ;Fatt.n. 004800210073 del 11/02/2017 fatt. dic.- gen.2017;20-02-2017;6030;17;423;1;Spese correnti;3;Acquisto di beni e servizi;2;Acquisto di servizi;5;Utenze e canoni;4;Energia elettrica;2017-02-28;
371;1;"77,97";"77,97";ENEL ENERGIA SPA; ;Fatt.n. 004800210094 del 11/02/2017 FATT. DIC.2016-GEN.2017;20-02-2017;6030;18;424;1;Spese correnti;3;Acquisto di beni e servizi;2;Acquisto di servizi;5;Utenze e canoni;4;Energia elettrica;2017-02-28;
372;1;"221,92";"221,92";ENEL ENERGIA SPA; ;Fatt.n. 004800210107 del 11/02/2017 FATT. DIC.2016-GEN.2017;20-02-2017;6030;19;425;1;Spese correnti;3;Acquisto di beni e servizi;2;Acquisto di servizi;5;Utenze e canoni;4;Energia elettrica;2017-02-28;
381;1;"600,00";"600,00";ACCADEMIA P.C.E. S.R.L.;Z1D1C78501;SALDO Fatt.n. FATTPA 1_17  del 10/01/2017 PROMOZIONE TELEVISIVA PRESEPE NEL BORGO;24-02-2017;1478;0;393;1;Spese correnti;10;Altre spese correnti;99;Altre spese correnti n.a.c.;99;Altre spese correnti n.a.c.;999;Altre spese correnti n.a.c.;2017-03-02;
382;1;"400,00";"400,00";S.G.S. SRL;Z411BB841D;Fatt.n. 37/PA del 04/12/2016 PROGETTO CABLAGGIO RETE LAN;24-02-2017;2120;0;287;1;Spese correnti;3;Acquisto di beni e servizi;2;Acquisto di servizi;9;Manutenzione ordinaria e riparazioni;11;Manutenzione ordinaria e riparazioni di altri beni materiali;2017-03-02;
383;1;"500,00";"500,00";S.G.S. SRL;Z411BB841D;Fatt.n. 37/PA del 04/12/2016 PROGETTO CABLAGGIO RETE LAN;24-02-2017;2120;1;288;1;Spese correnti;3;Acquisto di beni e servizi;2;Acquisto di servizi;9;Manutenzione ordinaria e riparazioni;11;Manutenzione ordinaria e riparazioni di altri beni materiali;2017-03-02;
384;1;"500,00";"500,00";S.G.S. SRL;Z411BB841D;Fatt.n. 37/PA del 04/12/2016 PROGETTO CABLAGGIO RETE LAN;24-02-2017;2120;2;289;1;Spese correnti;3;Acquisto di beni e servizi;2;Acquisto di servizi;9;Manutenzione ordinaria e riparazioni;11;Manutenzione ordinaria e riparazioni di altri beni materiali;2017-03-02;
385;1;"500,00";"500,00";S.G.S. SRL;Z411BB841D;Fatt.n. 37/PA del 04/12/2016 PROGETTO CABLAGGIO RETE LAN;24-02-2017;2120;3;290;1;Spese correnti;3;Acquisto di beni e servizi;2;Acquisto di servizi;9;Manutenzione ordinaria e riparazioni;11;Manutenzione ordinaria e riparazioni di altri beni materiali;2017-03-02;
386;1;"300,00";"300,00";S.G.S. SRL;Z411BB841D;Fatt.n. 37/PA del 04/12/2016 PROGETTO CABLAGGIO RETE LAN;24-02-2017;2120;4;291;1;Spese correnti;3;Acquisto di beni e servizi;2;Acquisto di servizi;9;Manutenzione ordinaria e riparazioni;11;Manutenzione ordinaria e riparazioni di altri beni materiali;2017-03-02;
387;1;"300,00";"300,00";S.G.S. SRL;Z411BB841D;Fatt.n. 37/PA del 04/12/2016 PROGETTO CABLAGGIO RETE LAN;24-02-2017;2120;5;292;1;Spese correnti;3;Acquisto di beni e servizi;2;Acquisto di servizi;9;Manutenzione ordinaria e riparazioni;11;Manutenzione ordinaria e riparazioni di altri beni materiali;2017-03-02;
388;1;"500,00";"500,00";S.G.S. SRL;Z411BB841D;Fatt.n. 37/PA del 04/12/2016 PROGETTO CABLAGGIO RETE LAN;24-02-2017;2120;6;293;1;Spese correnti;3;Acquisto di beni e servizi;2;Acquisto di servizi;9;Manutenzione ordinaria e riparazioni;11;Manutenzione ordinaria e riparazioni di altri beni materiali;2017-03-02;
389;1;"500,00";"500,00";S.G.S. SRL;Z411BB841D;Fatt.n. 37/PA del 04/12/2016 PROGETTO CABLAGGIO RETE LAN;24-02-2017;2120;8;294;1;Spese correnti;3;Acquisto di beni e servizi;2;Acquisto di servizi;9;Manutenzione ordinaria e riparazioni;11;Manutenzione ordinaria e riparazioni di altri beni materiali;2017-03-02;
390;1;"500,00";"500,00";S.G.S. SRL;Z411BB841D;Fatt.n. 37/PA del 04/12/2016 PROGETTO CABLAGGIO RETE LAN;24-02-2017;2120;9;295;1;Spese correnti;3;Acquisto di beni e servizi;2;Acquisto di servizi;9;Manutenzione ordinaria e riparazioni;11;Manutenzione ordinaria e riparazioni di altri beni materiali;2017-03-02;
391;1;"11,98";"115,80";MAGGIOLI S.p.A.;Z7441C0E2C;SALDO Fatt.n. 0002101392  del 26/01/2017 FOGLI REGISTRI STATO CIVLE;24-02-2017;6050;4;336;1;Spese correnti;3;Acquisto di beni e servizi;1;Acquisto di beni;2;Altri beni di consumo;1;"Carta, cancelleria e stampati";2017-03-02;
391;2;"104,82";"115,80";MAGGIOLI S.p.A.;Z7441C0E2C;SALDO Fatt.n. 0002103205  del 30/01/2017 COPERTINA REGISTRI STATO CIVILE;24-02-2017;6050;4;336;1;Spese correnti;3;Acquisto di beni e servizi;1;Acquisto di beni;2;Altri beni di consumo;1;"Carta, cancelleria e stampati";2017-03-02;
392;1;"600,50";"600,50";INTERDONATO GIACOMO S.N.C.;Z5C1CAE421;SALDO Fatt.n. 000001-2017-INT G  del 20/01/2017 ACQUISTO MATERIALE LUDICO-DIDATTICO;24-02-2017;1479;0;457;1;Spese correnti;3;Acquisto di beni e servizi;2;Acquisto di servizi;99;Altri servizi;999;Altri servizi diversi n.a.c.;2017-03-02;
393;1;"833,11";"833,11";ENEL ENERGIA SPA; ;Fatt.n. 004800218397 del 12/02/2017 fatt. gen.2017;24-02-2017;6030;9;416;1;Spese correnti;3;Acquisto di beni e servizi;2;Acquisto di servizi;5;Utenze e canoni;4;Energia elettrica;2017-03-02;
394;1;"189,87";"189,87";ENEL ENERGIA SPA; ;Fatt.n. 004800234031 del 12/02/2017 fatt. gen.2017;24-02-2017;6030;11;418;1;Spese correnti;3;Acquisto di beni e servizi;2;Acquisto di servizi;5;Utenze e canoni;4;Energia elettrica;2017-03-02;
395;1;"349,93";"7.661,54";ENEL ENERGIA SPA; ;Fatt.n. 004800283255 del 17/02/2017 fatt. i.p. gen.2017;24-02-2017;6030;12;419;1;Spese correnti;3;Acquisto di beni e servizi;2;Acquisto di servizi;5;Utenze e canoni;4;Energia elettrica;2017-03-02;
395;2;"419,44";"7.661,54";ENEL ENERGIA SPA; ;Fatt.n. 004800218396 del 12/02/2017 fatt. gen.2017;24-02-2017;6030;12;419;1;Spese correnti;3;Acquisto di beni e servizi;2;Acquisto di servizi;5;Utenze e canoni;4;Energia elettrica;2017-03-02;
395;3;"6.892,17";"7.661,54";ENEL ENERGIA SPA; ;Fatt.n. 004800279648 del 15/02/2017 fatt. gen.2017;24-02-2017;6030;12;419;1;Spese correnti;3;Acquisto di beni e servizi;2;Acquisto di servizi;5;Utenze e canoni;4;Energia elettrica;2017-03-02;
396;1;"77,97";"77,97";ENEL ENERGIA SPA; ;Fatt.n. 004800218395 del 12/02/2017 fatt. dic.2016-gen.2017;24-02-2017;6030;13;420;1;Spese correnti;3;Acquisto di beni e servizi;2;Acquisto di servizi;5;Utenze e canoni;4;Energia elettrica;2017-03-02;
397;1;"176,69";"176,69";ENEL ENERGIA SPA; ;Fatt.n. 004800221892 del 12/02/2017 fatt. dic.2016-gen.2017;24-02-2017;6030;16;422;1;Spese correnti;3;Acquisto di beni e servizi;2;Acquisto di servizi;5;Utenze e canoni;4;Energia elettrica;2017-03-02;
398;1;"710,60";"710,60";XEROX ITALIA RENTAL SERVICES SRL;CIG ZFE02A;SALDO Fatt.n. 16049341  del 16/12/2016 noleggio fotocopiatori;24-02-2017;2110;3;76;1;Spese correnti;3;Acquisto di beni e servizi;2;Acquisto di servizi;7;Utilizzo di beni di terzi;8;Noleggi di impianti e macchinari;2017-03-02;
399;1;"-23.934,58";"239.336,81";TECNOTEAM COSTRUZIONI S.R.L.; ;SALDO Fatt.n. 16  del 16/11/2016 2 s.a.l.  realizz. alloggi popolari;24-02-2017;5064;0;1428;2;Spese in conto capitale;2;Investimenti fissi lordi e acquisto di terreni;1;Beni materiali;9;Beni immobili;1;Fabbricati ad uso abitativo;2017-02-24;
399;2;"263.269,39";"239.336,81";TECNOTEAM COSTRUZIONI S.R.L.;6188038280;SALDO Fatt.n. 16  del 16/11/2016 2 s.a.l.  realizz. alloggi popolari;24-02-2017;5064;0;1428;2;Spese in conto capitale;2;Investimenti fissi lordi e acquisto di terreni;1;Beni materiali;9;Beni immobili;1;Fabbricati ad uso abitativo;2017-02-24;
400;1;"-1.188,52";"5.398,82";TECNOTEAM COSTRUZIONI S.R.L.; ;SALDO Fatt.n. 12  del 09/11/2016 oneri conferimento in discarica lavori realizz. alloggi popolari;24-02-2017;5064;0;1428;2;Spese in conto capitale;2;Investimenti fissi lordi e acquisto di terreni;1;Beni materiali;9;Beni immobili;1;Fabbricati ad uso abitativo;2017-03-03;
400;2;"6.585,34";"5.398,82";TECNOTEAM COSTRUZIONI S.R.L.;6188038280;SALDO Fatt.n. 12  del 09/11/2016 oneri conferimento in discarica lavori realizz. alloggi popolari;24-02-2017;5064;0;1428;2;Spese in conto capitale;2;Investimenti fissi lordi e acquisto di terreni;1;Beni materiali;9;Beni immobili;1;Fabbricati ad uso abitativo;2017-03-03;
401;1;"730,91";"18.978,64";"AB2 Engineering Progettazione &amp; Costruzione s.r.l."; ;SALDO Fatt.n. 7/PA  del 08/11/2016 LAVORI RECUPERO EDILIZIO CENTRO URBANO PER REALIZZ. ALLOGGI-C.T. AL 2 S.A.L.;24-02-2017;5064;0;1428;2;Spese in conto capitale;2;Investimenti fissi lordi e acquisto di terreni;1;Beni materiali;9;Beni immobili;1;Fabbricati ad uso abitativo;2017-03-03;
401;2;"18.248,73";"18.978,64";"AB2 Engineering Progettazione &amp; Costruzione s.r.l.";59998993D9;ACCONTO Fatt.n. 7/PA  del 08/11/2016 LAVORI RECUPERO EDILIZIO CENTRO URBANO PER REALIZZ. ALLOGGI-C.T. AL 2 S.A.L.;24-02-2017;5064;0;1428;2;Spese in conto capitale;2;Investimenti fissi lordi e acquisto di terreni;1;Beni materiali;9;Beni immobili;1;Fabbricati ad uso abitativo;2017-03-03;
405;1;"1.411,13";"1.411,13";TESORIERE COMUNALE-CREDITO SICILIANO; ;INTERESSI SU ANTICIPAZIONE DI TESORERIA IV TRIM. 2016;02-03-2017;2161;0;268;1;Spese correnti;7;Interessi passivi;6;Altri interessi passivi;3;Interessi su conti della tesoreria dello Stato o di altre Amministrazioni pubbliche;999;Interessi ad altri soggetti su conti della tesoreria dello Stato o di altre Amministrazioni pubbliche;2017-03-02;
406;1;"11.000,00";"11.000,00";Interplay Associazione musicale;ZC81B60A27;SALDO Fatt.n. FATTPA 1_16  del 03/10/2016 ATTIVITA' CONCERTISTICA MANIFESTAZIONE PETE RUGOLO;03-03-2017;1512;0;195;1;Spese correnti;3;Acquisto di beni e servizi;2;Acquisto di servizi;2;"Organizzazione eventi, pubblicita` e servizi per trasferta";5;Organizzazione e partecipazione a manifestazioni e convegni;2017-03-03;
407;1;"995,10";"6.413,88";GIAMBRONE MASSIMILIANO; ;indennita' funzione febbraio 2017;03-03-2017;1001;0;42;1;Spese correnti;3;Acquisto di beni e servizi;2;Acquisto di servizi;1;Organi e incarichi istituzionali dell'amministrazione;1;Organi istituzionali dell'amministrazione - Indennità;2017-03-03;
407;2;"995,10";"6.413,88";LAURIA FRANCESCA; ;indennita' funzione febbraio 2017;03-03-2017;1001;0;42;1;Spese correnti;3;Acquisto di beni e servizi;2;Acquisto di servizi;1;Organi e incarichi istituzionali dell'amministrazione;1;Organi istituzionali dell'amministrazione - Indennità;2017-03-03;
407;3;"1.216,24";"6.413,88";TARANTO SALVATORE; ;indennita' funzione febbraio 2017;03-03-2017;1001;0;42;1;Spese correnti;3;Acquisto di beni e servizi;2;Acquisto di servizi;1;Organi e incarichi istituzionali dell'amministrazione;1;Organi istituzionali dell'amministrazione - Indennità;2017-03-03;
407;4;"995,10";"6.413,88";TODARO ANTONINO; ;indennita' funzione febbraio 2017;03-03-2017;1001;0;42;1;Spese correnti;3;Acquisto di beni e servizi;2;Acquisto di servizi;1;Organi e incarichi istituzionali dell'amministrazione;1;Organi istituzionali dell'amministrazione - Indennità;2017-03-03;
407;5;"2.211,34";"6.413,88";TROVATO ORNELLA; ;indennita' funzione febbraio 2017;03-03-2017;1001;0;42;1;Spese correnti;3;Acquisto di beni e servizi;2;Acquisto di servizi;1;Organi e incarichi istituzionali dell'amministrazione;1;Organi istituzionali dell'amministrazione - Indennità;2017-03-03;
413;1;"489,46";"489,46";SCAFIDI GIUSEPPE;ZCB17E106E;SALDO Fatt.n. 000006-2017-FE  del 07/02/2017 RIFERIMENTO PREVENTIVO N.114/2016 DEL 27/12/2016 SU MITSUBISHI PIKUP TG CN199JJ;09-03-2017;6070;5;620;1;Spese correnti;3;Acquisto di beni e servizi;2;Acquisto di servizi;9;Manutenzione ordinaria e riparazioni;1;"Manutenzione ordinaria e riparazioni di mezzi di trasporto ad uso civile, di sicurezza e ordine pubblico";2017-03-10;
414;1;"561,81";"561,81";SCAFIDI GIUSEPPE;ZC417E0C95;Fatt.n. 000003-2017-FE del 03/02/2017 RIFERIMENTO PREVENTIVO 113/2016 DEL 27/12/2016 SU PIAGGIO PORTER TG DD917SG;09-03-2017;6070;4;613;1;Spese correnti;3;Acquisto di beni e servizi;2;Acquisto di servizi;9;Manutenzione ordinaria e riparazioni;1;"Manutenzione ordinaria e riparazioni di mezzi di trasporto ad uso civile, di sicurezza e ordine pubblico";2017-03-10;
415;1;"124,48";"124,48";SCAFIDI GIUSEPPE;ZC417E0C95;Fatt.n. 000002-2017-FE del 03/02/2017 RIFERIMENTO PREVENTIVO 111/2016 DEL 28/11/2016 SU MITSUBISHI PIK UP TG CN190JJ;09-03-2017;6070;5;614;1;Spese correnti;3;Acquisto di beni e servizi;2;Acquisto di servizi;9;Manutenzione ordinaria e riparazioni;1;"Manutenzione ordinaria e riparazioni di mezzi di trasporto ad uso civile, di sicurezza e ordine pubblico";2017-03-10;
416;1;"208,73";"208,73";SCAFIDI GIUSEPPE;ZC417E0C95;Fatt.n. 000001-2017-FE del 03/02/2017 RIFERIMENTO PREVENTIVO 110/2016 DEL 28/11/2016 SU SCUOLABUS IVECO DAILY TG CT940ML;09-03-2017;6070;9;270;1;Spese correnti;3;Acquisto di beni e servizi;2;Acquisto di servizi;9;Manutenzione ordinaria e riparazioni;1;"Manutenzione ordinaria e riparazioni di mezzi di trasporto ad uso civile, di sicurezza e ordine pubblico";2017-03-10;
417;1;"110,92";"110,92";SCAFIDI GIUSEPPE;ZCB17E106E;SALDO Fatt.n. 000004-2017-FE  del 07/02/2017 RIFERIMENTO PREVENTIVO N.116/2016 DEL 29/12/2016 SU FIAT PANDA TG BE180ZH;09-03-2017;6070;7;513;1;Spese correnti;3;Acquisto di beni e servizi;2;Acquisto di servizi;9;Manutenzione ordinaria e riparazioni;1;"Manutenzione ordinaria e riparazioni di mezzi di trasporto ad uso civile, di sicurezza e ordine pubblico";2017-03-10;
418;1;"127,81";"127,81";SCAFIDI GIUSEPPE;ZC417E0C95;SALDO Fatt.n. 000005-2017-FE  del 07/02/2017 RIFERIMENTO PREVENTIVO 117/2016 DEL 29/12//2016  FIAT PANDA TG BE180ZH;09-03-2017;6070;7;406;1;Spese correnti;3;Acquisto di beni e servizi;2;Acquisto di servizi;9;Manutenzione ordinaria e riparazioni;1;"Manutenzione ordinaria e riparazioni di mezzi di trasporto ad uso civile, di sicurezza e ordine pubblico";2017-03-10;
419;1;"191,96";"191,96";NASELLO GIUSEPPE; ;D.A. N.235 DEL 25/10/2016-COMP. COMMISSARIO STRAORDINARIO;09-03-2017;1001;0;384;1;Spese correnti;3;Acquisto di beni e servizi;2;Acquisto di servizi;1;Organi e incarichi istituzionali dell'amministrazione;1;Organi istituzionali dell'amministrazione - Indennità;2017-03-10;
420;1;"426,29";"426,29";SIAE; ;SALDO Fatt.n. 1617004274  del 10/02/2017 diritti siae;09-03-2017;1512;1;349;1;Spese correnti;3;Acquisto di beni e servizi;2;Acquisto di servizi;2;"Organizzazione eventi, pubblicita` e servizi per trasferta";5;Organizzazione e partecipazione a manifestazioni e convegni;2017-03-10;
421;1;"41,32";"41,32";"Libreria Mosca sas di Mosca Antonio &amp; C."; ;SALDO Fatt.n. 20  del 10/02/2017 buono libro;09-03-2017;2000;10;394;1;Spese correnti;3;Acquisto di beni e servizi;2;Acquisto di servizi;99;Altri servizi;999;Altri servizi diversi n.a.c.;2017-03-10;
422;1;"0,02";"3.635,35";TELECOM ITALIA S.P.A.; ;Fatt.n. 4222217800000252 del 06/02/2017 2BIM 2017;09-03-2017;6040;5;426;1;Spese correnti;3;Acquisto di beni e servizi;2;Acquisto di servizi;5;Utenze e canoni;1;Telefonia fissa;2017-03-14;
422;2;"5,08";"3.635,35";TELECOM ITALIA S.P.A.; ;Fatt.n. 8A00080107 del 06/02/2017 2BIM 2017;09-03-2017;6040;5;426;1;Spese correnti;3;Acquisto di beni e servizi;2;Acquisto di servizi;5;Utenze e canoni;1;Telefonia fissa;2017-03-14;
422;3;"68,17";"3.635,35";TELECOM ITALIA S.P.A.; ;Fatt.n. 8V00051731 del 06/02/2017 2BIM 2017;09-03-2017;6040;5;426;1;Spese correnti;3;Acquisto di beni e servizi;2;Acquisto di servizi;5;Utenze e canoni;1;Telefonia fissa;2017-03-14;
422;4;"404,49";"3.635,35";TELECOM ITALIA S.P.A.; ;Fatt.n. 8V00048451 del 06/02/2017 2BIM 2017;09-03-2017;6040;5;426;1;Spese correnti;3;Acquisto di beni e servizi;2;Acquisto di servizi;5;Utenze e canoni;1;Telefonia fissa;2017-03-14;
422;5;"793,00";"3.635,35";TELECOM ITALIA S.P.A.; ;Fatt.n. 8V00051095 del 06/02/2017 2BIM 2017;09-03-2017;6040;5;426;1;Spese correnti;3;Acquisto di beni e servizi;2;Acquisto di servizi;5;Utenze e canoni;1;Telefonia fissa;2017-03-14;
422;6;"863,10";"3.635,35";TELECOM ITALIA S.P.A.; ;Fatt.n. 8V00051112 del 06/02/2017 2BIM 2017;09-03-2017;6040;5;426;1;Spese correnti;3;Acquisto di beni e servizi;2;Acquisto di servizi;5;Utenze e canoni;1;Telefonia fissa;2017-03-14;
422;7;"1.501,49";"3.635,35";TELECOM ITALIA S.P.A.; ;Fatt.n. 4220917800000683 del 06/02/2017 2BIM 2017;09-03-2017;6040;5;426;1;Spese correnti;3;Acquisto di beni e servizi;2;Acquisto di servizi;5;Utenze e canoni;1;Telefonia fissa;2017-03-14;
423;1;"79,37";"208,49";TELECOM ITALIA S.P.A.; ;Fatt.n. 8V00052053 del 06/02/2017 2BIM 2017;09-03-2017;6040;6;427;1;Spese correnti;3;Acquisto di beni e servizi;2;Acquisto di servizi;5;Utenze e canoni;1;Telefonia fissa;2017-03-14;
423;2;"129,12";"208,49";TELECOM ITALIA S.P.A.; ;Fatt.n. 4220917800000666 del 06/02/2017 2BIM 2017;09-03-2017;6040;6;427;1;Spese correnti;3;Acquisto di beni e servizi;2;Acquisto di servizi;5;Utenze e canoni;1;Telefonia fissa;2017-03-14;
424;1;"79,45";"184,35";TELECOM ITALIA S.P.A.; ;Fatt.n. 8V00050300 del 06/02/2017 2BIM 2017;09-03-2017;6040;10;429;1;Spese correnti;3;Acquisto di beni e servizi;2;Acquisto di servizi;5;Utenze e canoni;1;Telefonia fissa;2017-03-14;
424;2;"105,90";"184,35";TELECOM ITALIA S.P.A.; ;Fatt.n. 4220917800000683 del 06/02/2017 2BIM 2017;09-03-2017;6040;10;429;1;Spese correnti;3;Acquisto di beni e servizi;2;Acquisto di servizi;5;Utenze e canoni;1;Telefonia fissa;2017-03-14;
425;1;"7.000,00";"7.000,00";CONSORZIO INTERCOMUNALE TINDARI-NEBRODI; ;CONSORZIO INTERCOMUNALE TINDARI NEBRODI - QUOTA ANNO 2016;09-03-2017;1060;5;311;1;Spese correnti;4;Trasferimenti correnti;1;Trasferimenti correnti a Amministrazioni Pubbliche;2;Trasferimenti correnti a Amministrazioni Locali;5;Trasferimenti correnti a Unioni di Comuni;2017-03-10;
426;1;"2.892,58";"2.892,58";CONSORZIO INTERCOMUNALE TINDARI-NEBRODI; ;DISTRETTO TURISTICO THYRRENIUM TYNDARIS PARCO DEI MITI-QUOTA ANNO 2016;09-03-2017;1060;7;313;1;Spese correnti;4;Trasferimenti correnti;1;Trasferimenti correnti a Amministrazioni Pubbliche;2;Trasferimenti correnti a Amministrazioni Locali;3;Trasferimenti correnti a Comuni;2017-03-10;
427;1;"250,00";"250,00";COORDINAMENTO AGENDE 21 LOCALI ITALIANE; ;COORDINAMENTO AGENDE 21 - QUOTA ANNO 2016;09-03-2017;1060;1;312;1;Spese correnti;4;Trasferimenti correnti;1;Trasferimenti correnti a Amministrazioni Pubbliche;2;Trasferimenti correnti a Amministrazioni Locali;3;Trasferimenti correnti a Comuni;2017-03-10;
428;1;"500,00";"500,00";PARROCCHIA S.MARIA E S.PANCRAZIO; ;Spese funzionamento orologio pubblico anno 2016;09-03-2017;1160;1;479;1;Spese correnti;3;Acquisto di beni e servizi;2;Acquisto di servizi;9;Manutenzione ordinaria e riparazioni;11;Manutenzione ordinaria e riparazioni di altri beni materiali;2017-03-10;
429;1;"350,00";"350,00";PRO LOCO; ;CONTRIBUTO REALIZZAZIONE CALENDARIO STORICO;09-03-2017;1842;0;439;1;Spese correnti;4;Trasferimenti correnti;4;Trasferimenti correnti a Istituzioni Sociali Private;1;Trasferimenti correnti a Istituzioni Sociali Private;1;Trasferimenti correnti a Istituzioni Sociali Private;2017-03-10;
430;1;"2.500,00";"2.500,00";ASSOCIAZIONE PENTAMUSA ACCADEMIA MUSICALE NEBROIDEA; ;CONTRIBUTI ALLE ASSOCIAZIONI per manifestazioni estate sampietrina 2016;09-03-2017;2000;0;316;1;Spese correnti;4;Trasferimenti correnti;4;Trasferimenti correnti a Istituzioni Sociali Private;1;Trasferimenti correnti a Istituzioni Sociali Private;1;Trasferimenti correnti a Istituzioni Sociali Private;2017-03-10;
431;1;"2.500,00";"2.500,00";CTS CENTRO TEATRALE SICILIANO; ;CONTRIBUTO AL CENTRO TEATRALE SICILIANO PER REALIZZAZIONE THOLOS FESTIVAL;09-03-2017;1512;0;366;1;Spese correnti;3;Acquisto di beni e servizi;2;Acquisto di servizi;2;"Organizzazione eventi, pubblicita` e servizi per trasferta";5;Organizzazione e partecipazione a manifestazioni e convegni;2017-03-10;
432;1;"1.680,00";"1.680,00";ASSOCIAZIONE FRATERNITA' MISERICORDIA;ZE713CC945;INTERVENTO A SOSTEGNO DIVERSAMENTE ABILI NELLE SCUOLE A.S.2016/2017-GEN.2017;09-03-2017;1775;0;297;1;Spese correnti;3;Acquisto di beni e servizi;2;Acquisto di servizi;15;Contratti di servizio pubblico;999;Altre spese per contratti di servizio pubblico;2017-03-10;
433;1;"155,13";"155,13";COMUNE DI PATTI; ;SPESE C.E.CIRC. ANNO 2015;09-03-2017;1047;1;371;1;Spese correnti;4;Trasferimenti correnti;1;Trasferimenti correnti a Amministrazioni Pubbliche;2;Trasferimenti correnti a Amministrazioni Locali;3;Trasferimenti correnti a Comuni;2017-04-19;
434;1;"2.495,10";"2.495,10";TRUGLIO BARTOLO; ;RIMBORSO SPESE LEGALI;09-03-2017;1058;4;469;1;Spese correnti;4;Trasferimenti correnti;2;Trasferimenti correnti a Famiglie;5;Altri trasferimenti a famiglie;999;Altri trasferimenti a famiglie n.a.c.;2017-03-10;
435;1;"72,00";"72,00";CITTA'  METROPOLITANA DI MESSINA; ;QUOTA 20% PROVENTI RILASCIO TESSERINI RACCOLTA FUNGH ANNO 2016;09-03-2017;1200;0;491;1;Spese correnti;4;Trasferimenti correnti;1;Trasferimenti correnti a Amministrazioni Pubbliche;2;Trasferimenti correnti a Amministrazioni Locali;2;Trasferimenti correnti a Province;2017-03-14;
436;1;"108,00";"108,00";UNICREDIT-CASSA REG.LE MESSINA; ;QUOTA 50% PROVENTI RILASCIO TESSERINI RACCOLTA FUNGH ANNO 2016;09-03-2017;1200;1;492;1;Spese correnti;4;Trasferimenti correnti;1;Trasferimenti correnti a Amministrazioni Pubbliche;2;Trasferimenti correnti a Amministrazioni Locali;1;Trasferimenti correnti a Regioni e province autonome;2017-03-10;
439;1;"11,90";"11,90";P.A.G.M. DI MANNINO GIOVANNI; ;SALDO Fatt.n. FATTPA 1_17  del 15/02/2017 revisione automezzo;09-03-2017;6070;9;520;1;Spese correnti;3;Acquisto di beni e servizi;2;Acquisto di servizi;9;Manutenzione ordinaria e riparazioni;1;"Manutenzione ordinaria e riparazioni di mezzi di trasporto ad uso civile, di sicurezza e ordine pubblico";2017-03-15;
440;1;"124,96";"124,96";LA BOTTEGA DEL LETTORE DI MOSCA LUIGIA  & C. S.A.S.; ;SALDO Fatt.n. 2  del 16/02/2017 BUONO LIBRO;09-03-2017;2000;10;394;1;Spese correnti;3;Acquisto di beni e servizi;2;Acquisto di servizi;99;Altri servizi;999;Altri servizi diversi n.a.c.;2017-03-10;
441;1;"48,45";"48,45";TESORIERE COMUNALE-CREDITO SICILIANO; ;TELEPASS FEB.2017;10-03-2017;1017;0;38;1;Spese correnti;3;Acquisto di beni e servizi;2;Acquisto di servizi;99;Altri servizi;999;Altri servizi diversi n.a.c.;2017-03-10;
442;1;"2.167,33";"2.167,33";LA TECNICA DI MONDELLO SANTI;ZA11BB8384;SALDO Fatt.n. FATTPA 10_17  del 06/02/2017 LAVORI RIPRISTINO MOTORE ELETTRICO E POMPA DOSATORE DI CLORO IMP. DEPURAZIONE ARABITE;10-03-2017;3347;0;300;2;Spese in conto capitale;2;Investimenti fissi lordi e acquisto di terreni;1;Beni materiali;9;Beni immobili;10;Infrastrutture idrauliche;2017-03-10;
443;1;"4.130,70";"4.130,70";EREDI PASCALE A.N. DI PASCALE ADRIANO & C. SAS; ;SALDO Fatt.n. 000002-2016-FE  del 13/12/2016 ORDINANZA N.4 DEL 18/01/2016-LAVORI SGOMBERO NEVE;10-03-2017;2177;1;524;1;Spese correnti;10;Altre spese correnti;99;Altre spese correnti n.a.c.;99;Altre spese correnti n.a.c.;999;Altre spese correnti n.a.c.;2017-03-10;
446;1;"105,09";"105,09";KUWAIT PETROLEUM ITALIA S.P.A.;6516542493;Fatt.n. PJ00067179 del 31/01/2017 carburante per automezzi com.li gen.2017;13-03-2017;6080;1;24;1;Spese correnti;3;Acquisto di beni e servizi;1;Acquisto di beni;2;Altri beni di consumo;2;"Carburanti, combustibili e lubrificanti";2017-03-14;
447;1;"54,20";"54,20";KUWAIT PETROLEUM ITALIA S.P.A.;6516542493;Fatt.n. PJ00067179 del 31/01/2017 carburante per automezzi com.li gen.2017;13-03-2017;6080;2;25;1;Spese correnti;3;Acquisto di beni e servizi;1;Acquisto di beni;2;Altri beni di consumo;2;"Carburanti, combustibili e lubrificanti";2017-03-14;
448;1;"690,29";"690,29";KUWAIT PETROLEUM ITALIA S.P.A.;6516542493;Fatt.n. PJ00067179 del 31/01/2017 carburante per automezzi com.li gen.2017;13-03-2017;6080;3;26;1;Spese correnti;3;Acquisto di beni e servizi;1;Acquisto di beni;2;Altri beni di consumo;2;"Carburanti, combustibili e lubrificanti";2017-03-14;
449;1;"236,93";"236,93";KUWAIT PETROLEUM ITALIA S.P.A.;6516542493;Fatt.n. PJ00067179 del 31/01/2017 carburante per automezzi com.li gen.2017;13-03-2017;6080;4;27;1;Spese correnti;3;Acquisto di beni e servizi;1;Acquisto di beni;2;Altri beni di consumo;2;"Carburanti, combustibili e lubrificanti";2017-03-14;
450;1;"691,74";"691,74";KUWAIT PETROLEUM ITALIA S.P.A.;6516542493;Fatt.n. PJ00067179 del 31/01/2017 carburante per automezzi com.li gen.2017;13-03-2017;6080;5;28;1;Spese correnti;3;Acquisto di beni e servizi;1;Acquisto di beni;2;Altri beni di consumo;2;"Carburanti, combustibili e lubrificanti";2017-03-14;
451;1;"72,95";"72,95";KUWAIT PETROLEUM ITALIA S.P.A.;6516542493;Fatt.n. PJ00067179 del 31/01/2017 carburante per automezzi com.li gen.2017;13-03-2017;6080;7;29;1;Spese correnti;3;Acquisto di beni e servizi;1;Acquisto di beni;2;Altri beni di consumo;2;"Carburanti, combustibili e lubrificanti";2017-03-14;
452;1;"2.401,50";"2.401,50";VIDEOLAB SOC. COOP.;Z451CAE4CB;SALDO Fatt.n. FATTPA 1_17  del 01/02/2017 materiale per biblioteca;13-03-2017;1479;0;458;1;Spese correnti;3;Acquisto di beni e servizi;2;Acquisto di servizi;99;Altri servizi;999;Altri servizi diversi n.a.c.;2017-03-14;
453;1;"2.000,00";"2.000,00";CTS CENTRO TEATRALE SICILIANO;ZCE1CAFB03;SALDO Fatt.n. FATTPA 2_17  del 15/02/2017 Delibera n. 234 del 28/12/2016-spettacolo teatrale g.10/02/17;13-03-2017;1477;0;531;1;Spese correnti;10;Altre spese correnti;99;Altre spese correnti n.a.c.;99;Altre spese correnti n.a.c.;999;Altre spese correnti n.a.c.;2017-03-14;
454;1;"4,01";"4,01";AUTOMOBILE CLUB D'ITALIA; ;SALDO Fatt.n. 0000000563  del 19/01/2017 consultazione dati pra dic.2016;13-03-2017;1272;0;163;1;Spese correnti;3;Acquisto di beni e servizi;2;Acquisto di servizi;99;Altri servizi;999;Altri servizi diversi n.a.c.;2017-03-14;
455;1;"1.338,82";"1.338,82";GAS NATURALVENDITA ITALIA SPA; ;SALDO Fatt.n. FI17366000001648  del 23/02/2017 gas metano 12/08/2016-23/02/17;13-03-2017;6160;0;526;1;Spese correnti;3;Acquisto di beni e servizi;2;Acquisto di servizi;5;Utenze e canoni;6;Gas;2017-03-15;
456;1;"40,01";"40,01";GAS NATURALVENDITA ITALIA SPA; ;SALDO Fatt.n. FI17366000001691  del 23/02/2017 GAS METANO 17/12/2016-23/02/2017;13-03-2017;6160;2;432;1;Spese correnti;3;Acquisto di beni e servizi;2;Acquisto di servizi;5;Utenze e canoni;999;Utenze e canoni per altri servizi n.a.c.;2017-03-15;
457;1;"2.477,03";"2.477,03";GAS NATURALVENDITA ITALIA SPA; ;SALDO Fatt.n. FI17366000001956  del 23/02/2017 GAS METANO  01/01/17-23/02/17;13-03-2017;6160;3;433;1;Spese correnti;3;Acquisto di beni e servizi;2;Acquisto di servizi;5;Utenze e canoni;6;Gas;2017-03-15;
458;1;"24.976,28";"24.976,28";COMUNE DI MONTALBANO ELICONA; ;Convenzione segreteria comunale II sem.2016;13-03-2017;1026;0;459;1;Spese correnti;4;Trasferimenti correnti;1;Trasferimenti correnti a Amministrazioni Pubbliche;2;Trasferimenti correnti a Amministrazioni Locali;3;Trasferimenti correnti a Comuni;2017-04-19;
459;1;"90,00";"90,00";ANAC AUTORITA' NAZIONALE ANTICORRUZIONE;6343524999;LAVORI MANUTENZIONE IST. COMPRENSIVO-SPESE PUBBLICITA' ATTI DI GARA;13-03-2017;4056;1;381;2;Spese in conto capitale;5;Altre spese in conto capitale;99;Altre spese in conto capitale n.a.c.;99;Altre spese in conto capitale n.a.c.;999;Altre spese in conto capitale n.a.c.;2017-03-15;
460;1;"167,00";"167,00";G.U.R.S.;6343524999;SALDO Fatt.n. 0666/2017  del 31/03/2017 INSERZIONE IN GURS;13-03-2017;4056;1;381;2;Spese in conto capitale;5;Altre spese in conto capitale;99;Altre spese in conto capitale n.a.c.;99;Altre spese in conto capitale n.a.c.;999;Altre spese in conto capitale n.a.c.;2017-03-14;
464;1;"3.433,60";"3.433,60";AZIENDA SICILIANA TRASPORTI;Z071B12FD8;ACCONTO Fatt.n. 13/S4  del 16/01/2017 trasporto studenti dic.2016;16-03-2017;2000;9;170;1;Spese correnti;3;Acquisto di beni e servizi;2;Acquisto di servizi;15;Contratti di servizio pubblico;2;Contratti di servizio di trasporto scolastico;2017-03-23;
465;1;"1.278,70";"6.992,30";AZIENDA SICILIANA TRASPORTI;Z071B12FD8;SALDO Fatt.n. 13/S4  del 16/01/2017 trasporto studenti dic.2016;16-03-2017;2000;9;45;1;Spese correnti;3;Acquisto di beni e servizi;2;Acquisto di servizi;15;Contratti di servizio pubblico;2;Contratti di servizio di trasporto scolastico;2017-03-23;
465;2;"5.715,60";"6.992,30";AZIENDA SICILIANA TRASPORTI;Z071B12FD8;SALDO Fatt.n. 29/S4  del 13/02/2017 trasporto studenti;16-03-2017;2000;9;45;1;Spese correnti;3;Acquisto di beni e servizi;2;Acquisto di servizi;15;Contratti di servizio pubblico;2;Contratti di servizio di trasporto scolastico;2017-03-23;
466;1;"1.709,51";"1.709,51";SCAFIDI GIUSEPPE;ZC417E0C95;SALDO Fatt.n. 000007-2017-FE  del 22/02/2017 RIFERIMENTO PREVENTIVO 1/2017 DEL 31/01/2017 SU SCUOLABUS IVECO DAILY TG CT914ML;16-03-2017;6070;9;270;1;Spese correnti;3;Acquisto di beni e servizi;2;Acquisto di servizi;9;Manutenzione ordinaria e riparazioni;1;"Manutenzione ordinaria e riparazioni di mezzi di trasporto ad uso civile, di sicurezza e ordine pubblico";2017-03-23;
555;1;"788,75";"788,75";HALLEY CONSULTING;ZFA125648A;ACCONTO Fatt.n. 20170170  del 30/01/2017 FATTURA ELETTRONICA;21-03-2017;2100;2;41;1;Spese correnti;3;Acquisto di beni e servizi;2;Acquisto di servizi;19;Servizi informatici e di telecomunicazioni;5;Servizi per i sistemi e relativa manutenzione;2017-03-23;
556;1;"783,00";"783,00";HALLEY CONSULTING;ZFA125648A;SALDO Fatt.n. 20170170  del 30/01/2017 FATTURA ELETTRONICA;21-03-2017;2100;6;42;1;Spese correnti;3;Acquisto di beni e servizi;2;Acquisto di servizi;19;Servizi informatici e di telecomunicazioni;5;Servizi per i sistemi e relativa manutenzione;2017-03-23;
557;1;"2.100,00";"2.100,00";REGIONE SICILIANA; ;comp. commissario straord. D.A.  N.235 DEL 25/10/2016-PERIODO: 01/01-28/02/2017-VERSARE IN -C/ENTRATA DELLA REGIONE SICILIANA CAP.4264 CAPO 12;21-03-2017;1002;0;54;1;Spese correnti;3;Acquisto di beni e servizi;2;Acquisto di servizi;1;Organi e incarichi istituzionali dell'amministrazione;1;Organi istituzionali dell'amministrazione - Indennità;2017-03-23;
558;1;"692,83";"692,83";ENEL ENERGIA SPA; ;Fatt.n. 004800348365 del 11/03/2017 FATT. FEB. 2017;21-03-2017;6030;5;412;1;Spese correnti;3;Acquisto di beni e servizi;2;Acquisto di servizi;5;Utenze e canoni;4;Energia elettrica;2017-03-24;
559;1;"69,96";"69,96";ENEL ENERGIA SPA; ;Fatt.n. 004800403501 del 13/03/2017 fatt. feb.2017;21-03-2017;6030;7;414;1;Spese correnti;3;Acquisto di beni e servizi;2;Acquisto di servizi;5;Utenze e canoni;4;Energia elettrica;2017-03-24;
560;1;"38,78";"231,42";ENEL ENERGIA SPA; ;Fatt.n. 004800360225 del 12/03/2017 FATT. FEB.2017;21-03-2017;6030;8;415;1;Spese correnti;3;Acquisto di beni e servizi;2;Acquisto di servizi;5;Utenze e canoni;4;Energia elettrica;2017-03-24;
560;2;"97,82";"231,42";ENEL ENERGIA SPA; ;Fatt.n. 004800329566 del 08/03/2017 FATT. GEN./FEB.2017;21-03-2017;6030;8;415;1;Spese correnti;3;Acquisto di beni e servizi;2;Acquisto di servizi;5;Utenze e canoni;4;Energia elettrica;2017-03-24;
560;3;"97,82";"231,42";ENEL ENERGIA SPA; ;Fatt.n. 004800431067 del 16/03/2017 FATT. GEN./FEB.2017;21-03-2017;6030;8;415;1;Spese correnti;3;Acquisto di beni e servizi;2;Acquisto di servizi;5;Utenze e canoni;4;Energia elettrica;2017-03-24;
561;1;"872,62";"872,62";ENEL ENERGIA SPA; ;Fatt.n. 004800403500 del 13/03/2017 fatt. feb.2017;21-03-2017;6030;9;416;1;Spese correnti;3;Acquisto di beni e servizi;2;Acquisto di servizi;5;Utenze e canoni;4;Energia elettrica;2017-03-24;
562;1;"797,87";"797,87";ENEL ENERGIA SPA; ;Fatt.n. 004800360224 del 12/03/2017 FATT. FEB.2017;21-03-2017;6030;10;417;1;Spese correnti;3;Acquisto di beni e servizi;2;Acquisto di servizi;5;Utenze e canoni;4;Energia elettrica;2017-03-24;
563;1;"115,57";"919,32";ENEL ENERGIA SPA; ;Fatt.n. 004800431200 del 16/03/2017 FATT. FEB.2017;21-03-2017;6030;11;418;1;Spese correnti;3;Acquisto di beni e servizi;2;Acquisto di servizi;5;Utenze e canoni;4;Energia elettrica;2017-03-24;
563;2;"336,56";"919,32";ENEL ENERGIA SPA; ;Fatt.n. 004800429200 del 14/03/2017 FATT. FEB.2017;21-03-2017;6030;11;418;1;Spese correnti;3;Acquisto di beni e servizi;2;Acquisto di servizi;5;Utenze e canoni;4;Energia elettrica;2017-03-24;
563;3;"469,19";"919,32";ENEL ENERGIA SPA; ;Fatt.n. 004800430862 del 16/03/2017 FATT. FEB.2017;21-03-2017;6030;11;418;1;Spese correnti;3;Acquisto di beni e servizi;2;Acquisto di servizi;5;Utenze e canoni;4;Energia elettrica;2017-03-24;
564;1;"22,17";"14.959,59";ENEL ENERGIA SPA; ;Fatt.n. 004800372422 del 12/03/2017 FATT. FEB.2017;21-03-2017;6030;12;419;1;Spese correnti;3;Acquisto di beni e servizi;2;Acquisto di servizi;5;Utenze e canoni;4;Energia elettrica;2017-03-24;
564;2;"30,80";"14.959,59";ENEL ENERGIA SPA; ;Fatt.n. 004800348361 del 11/03/2017 FATT. FEB. 2017;21-03-2017;6030;12;419;1;Spese correnti;3;Acquisto di beni e servizi;2;Acquisto di servizi;5;Utenze e canoni;4;Energia elettrica;2017-03-24;
564;3;"30,80";"14.959,59";ENEL ENERGIA SPA; ;Fatt.n. 004800430859 del 16/03/2017 FATT. FEB.2017;21-03-2017;6030;12;419;1;Spese correnti;3;Acquisto di beni e servizi;2;Acquisto di servizi;5;Utenze e canoni;4;Energia elettrica;2017-03-24;
564;4;"44,49";"14.959,59";ENEL ENERGIA SPA; ;Fatt.n. 004800360221 del 12/03/2017 FATT. FEB.2017;21-03-2017;6030;12;419;1;Spese correnti;3;Acquisto di beni e servizi;2;Acquisto di servizi;5;Utenze e canoni;4;Energia elettrica;2017-03-24;
564;5;"45,20";"14.959,59";ENEL ENERGIA SPA; ;Fatt.n. 004800331592 del 08/03/2017 FATT. FEB. 2017;21-03-2017;6030;12;419;1;Spese correnti;3;Acquisto di beni e servizi;2;Acquisto di servizi;5;Utenze e canoni;4;Energia elettrica;2017-03-24;
564;6;"45,20";"14.959,59";ENEL ENERGIA SPA; ;Fatt.n. 004800429118 del 14/03/2017 FATT. FEB.2017;21-03-2017;6030;12;419;1;Spese correnti;3;Acquisto di beni e servizi;2;Acquisto di servizi;5;Utenze e canoni;4;Energia elettrica;2017-03-24;
564;7;"74,52";"14.959,59";ENEL ENERGIA SPA;0000000000;Fatt.n. 004800320372 del 07/03/2017 FATT. I.P. FEB.2017;21-03-2017;6030;12;419;1;Spese correnti;3;Acquisto di beni e servizi;2;Acquisto di servizi;5;Utenze e canoni;4;Energia elettrica;2017-03-24;
564;8;"77,18";"14.959,59";ENEL ENERGIA SPA; ;Fatt.n. 004800360217 del 12/03/2017 FATT. FEB.2017;21-03-2017;6030;12;419;1;Spese correnti;3;Acquisto di beni e servizi;2;Acquisto di servizi;5;Utenze e canoni;4;Energia elettrica;2017-03-24;
564;9;"85,50";"14.959,59";ENEL ENERGIA SPA; ;Fatt.n. 004800360220 del 12/03/2017 FATT. FEB.2017;21-03-2017;6030;12;419;1;Spese correnti;3;Acquisto di beni e servizi;2;Acquisto di servizi;5;Utenze e canoni;4;Energia elettrica;2017-03-24;
564;10;"85,25";"14.959,59";ENEL ENERGIA SPA; ;Fatt.n. 004800348360 del 11/03/2017 FATT. FEB. 2017;21-03-2017;6030;12;419;1;Spese correnti;3;Acquisto di beni e servizi;2;Acquisto di servizi;5;Utenze e canoni;4;Energia elettrica;2017-03-24;
564;11;"85,25";"14.959,59";ENEL ENERGIA SPA; ;Fatt.n. 004800430858 del 16/03/2017 FATT. FEB.2017;21-03-2017;6030;12;419;1;Spese correnti;3;Acquisto di beni e servizi;2;Acquisto di servizi;5;Utenze e canoni;4;Energia elettrica;2017-03-24;
564;12;"106,79";"14.959,59";ENEL ENERGIA SPA; ;Fatt.n. 004800360216 del 12/03/2017 FATT. FEB.2017;21-03-2017;6030;12;419;1;Spese correnti;3;Acquisto di beni e servizi;2;Acquisto di servizi;5;Utenze e canoni;4;Energia elettrica;2017-03-24;
564;13;"106,26";"14.959,59";ENEL ENERGIA SPA; ;Fatt.n. 004800360222 del 12/03/2017 FATT. FEB.2017;21-03-2017;6030;12;419;1;Spese correnti;3;Acquisto di beni e servizi;2;Acquisto di servizi;5;Utenze e canoni;4;Energia elettrica;2017-03-24;
564;14;"106,27";"14.959,59";ENEL ENERGIA SPA; ;Fatt.n. 004800378889 del 12/03/2017 FATT. FEB.2017;21-03-2017;6030;12;419;1;Spese correnti;3;Acquisto di beni e servizi;2;Acquisto di servizi;5;Utenze e canoni;4;Energia elettrica;2017-03-24;
564;15;"110,65";"14.959,59";ENEL ENERGIA SPA; ;Fatt.n. 004800430811 del 16/03/2017 FATT. FEB.2017;21-03-2017;6030;12;419;1;Spese correnti;3;Acquisto di beni e servizi;2;Acquisto di servizi;5;Utenze e canoni;4;Energia elettrica;2017-03-24;
564;16;"112,80";"14.959,59";ENEL ENERGIA SPA; ;Fatt.n. 004800360218 del 12/03/2017 FATT. FEB.2017;21-03-2017;6030;12;419;1;Spese correnti;3;Acquisto di beni e servizi;2;Acquisto di servizi;5;Utenze e canoni;4;Energia elettrica;2017-03-24;
564;17;"114,84";"14.959,59";ENEL ENERGIA SPA; ;Fatt.n. 004800388917 del 12/03/2017 FATT. FEB.2017;21-03-2017;6030;12;419;1;Spese correnti;3;Acquisto di beni e servizi;2;Acquisto di servizi;5;Utenze e canoni;4;Energia elettrica;2017-03-24;
564;18;"128,54";"14.959,59";ENEL ENERGIA SPA; ;Fatt.n. 004800403498 del 13/03/2017 fatt. feb.2017;21-03-2017;6030;12;419;1;Spese correnti;3;Acquisto di beni e servizi;2;Acquisto di servizi;5;Utenze e canoni;4;Energia elettrica;2017-03-24;
564;19;"133,43";"14.959,59";ENEL ENERGIA SPA; ;Fatt.n. 004800313898 del 07/03/2017 FATT. I.P. FEB.2017;21-03-2017;6030;12;419;1;Spese correnti;3;Acquisto di beni e servizi;2;Acquisto di servizi;5;Utenze e canoni;4;Energia elettrica;2017-03-24;
564;20;"138,38";"14.959,59";ENEL ENERGIA SPA; ;Fatt.n. 004800328878 del 08/03/2017 FATT. FEB. 2017;21-03-2017;6030;12;419;1;Spese correnti;3;Acquisto di beni e servizi;2;Acquisto di servizi;5;Utenze e canoni;4;Energia elettrica;2017-03-24;
564;21;"147,80";"14.959,59";ENEL ENERGIA SPA; ;Fatt.n. 004800430569 del 16/03/2017 conguaglio anno 2014;21-03-2017;6030;12;419;1;Spese correnti;3;Acquisto di beni e servizi;2;Acquisto di servizi;5;Utenze e canoni;4;Energia elettrica;2017-03-24;
564;22;"159,32";"14.959,59";ENEL ENERGIA SPA; ;Fatt.n. 004800360219 del 12/03/2017 FATT. FEB.2017;21-03-2017;6030;12;419;1;Spese correnti;3;Acquisto di beni e servizi;2;Acquisto di servizi;5;Utenze e canoni;4;Energia elettrica;2017-03-24;
564;23;"212,72";"14.959,59";ENEL ENERGIA SPA; ;Fatt.n. 004800348362 del 11/03/2017 FATT. FEB. 2017;21-03-2017;6030;12;419;1;Spese correnti;3;Acquisto di beni e servizi;2;Acquisto di servizi;5;Utenze e canoni;4;Energia elettrica;2017-03-24;
564;24;"277,40";"14.959,59";ENEL ENERGIA SPA; ;Fatt.n. 004800430568 del 16/03/2017 CONGUAGLIO ANNO 2013;21-03-2017;6030;12;419;1;Spese correnti;3;Acquisto di beni e servizi;2;Acquisto di servizi;5;Utenze e canoni;4;Energia elettrica;2017-03-24;
564;25;"287,10";"14.959,59";ENEL ENERGIA SPA; ;Fatt.n. 004800403496 del 13/03/2017 fatt. feb.2017;21-03-2017;6030;12;419;1;Spese correnti;3;Acquisto di beni e servizi;2;Acquisto di servizi;5;Utenze e canoni;4;Energia elettrica;2017-03-24;
564;26;"300,97";"14.959,59";ENEL ENERGIA SPA; ;Fatt.n. 004800429939 del 15/03/2017 FATT. FEB.2017;21-03-2017;6030;12;419;1;Spese correnti;3;Acquisto di beni e servizi;2;Acquisto di servizi;5;Utenze e canoni;4;Energia elettrica;2017-03-24;
564;27;"344,06";"14.959,59";ENEL ENERGIA SPA; ;Fatt.n. 004800430857 del 16/03/2017 FATT. FEB.2017;21-03-2017;6030;12;419;1;Spese correnti;3;Acquisto di beni e servizi;2;Acquisto di servizi;5;Utenze e canoni;4;Energia elettrica;2017-03-24;
564;28;"417,80";"14.959,59";ENEL ENERGIA SPA; ;Fatt.n. 004800360215 del 12/03/2017 FATT. FEB.2017;21-03-2017;6030;12;419;1;Spese correnti;3;Acquisto di beni e servizi;2;Acquisto di servizi;5;Utenze e canoni;4;Energia elettrica;2017-03-24;
564;29;"456,35";"14.959,59";ENEL ENERGIA SPA; ;Fatt.n. 004800348363 del 11/03/2017 FATT. FEB. 2017;21-03-2017;6030;12;419;1;Spese correnti;3;Acquisto di beni e servizi;2;Acquisto di servizi;5;Utenze e canoni;4;Energia elettrica;2017-03-24;
564;30;"456,35";"14.959,59";ENEL ENERGIA SPA; ;Fatt.n. 004800430860 del 16/03/2017 FATT. FEB.2017;21-03-2017;6030;12;419;1;Spese correnti;3;Acquisto di beni e servizi;2;Acquisto di servizi;5;Utenze e canoni;4;Energia elettrica;2017-03-24;
564;31;"475,02";"14.959,59";ENEL ENERGIA SPA; ;Fatt.n. 004800360214 del 12/03/2017 FATT. FEB.2017;21-03-2017;6030;12;419;1;Spese correnti;3;Acquisto di beni e servizi;2;Acquisto di servizi;5;Utenze e canoni;4;Energia elettrica;2017-03-24;
564;32;"762,84";"14.959,59";ENEL ENERGIA SPA; ;Fatt.n. 004800403495 del 13/03/2017 fatt. feb.2017;21-03-2017;6030;12;419;1;Spese correnti;3;Acquisto di beni e servizi;2;Acquisto di servizi;5;Utenze e canoni;4;Energia elettrica;2017-03-24;
564;33;"781,60";"14.959,59";ENEL ENERGIA SPA; ;Fatt.n. 004800403499 del 13/03/2017 fatt. feb.2017;21-03-2017;6030;12;419;1;Spese correnti;3;Acquisto di beni e servizi;2;Acquisto di servizi;5;Utenze e canoni;4;Energia elettrica;2017-03-24;
564;34;"2.388,86";"14.959,59";ENEL ENERGIA SPA; ;Fatt.n. 004800403497 del 13/03/2017 fatt. feb.2017;21-03-2017;6030;12;419;1;Spese correnti;3;Acquisto di beni e servizi;2;Acquisto di servizi;5;Utenze e canoni;4;Energia elettrica;2017-03-24;
564;35;"5.822,08";"14.959,59";ENEL ENERGIA SPA; ;Fatt.n. 004800348364 del 11/03/2017 FATT. FEB. 2017;21-03-2017;6030;12;419;1;Spese correnti;3;Acquisto di beni e servizi;2;Acquisto di servizi;5;Utenze e canoni;4;Energia elettrica;2017-03-24;
565;1;"18,85";"1.948,06";ENEL ENERGIA SPA; ;Fatt.n. 004800431000 del 16/03/2017 FATT. FEB.2017;21-03-2017;6030;13;420;1;Spese correnti;3;Acquisto di beni e servizi;2;Acquisto di servizi;5;Utenze e canoni;4;Energia elettrica;2017-03-24;
565;2;"35,89";"1.948,06";ENEL ENERGIA SPA; ;Fatt.n. 004800429230 del 14/03/2017 FATT. FEB.2017;21-03-2017;6030;13;420;1;Spese correnti;3;Acquisto di beni e servizi;2;Acquisto di servizi;5;Utenze e canoni;4;Energia elettrica;2017-03-24;
565;3;"38,78";"1.948,06";ENEL ENERGIA SPA; ;Fatt.n. 004800429231 del 14/03/2017 fatt. feb.2017;21-03-2017;6030;13;420;1;Spese correnti;3;Acquisto di beni e servizi;2;Acquisto di servizi;5;Utenze e canoni;4;Energia elettrica;2017-03-24;
565;4;"60,07";"1.948,06";ENEL ENERGIA SPA; ;Fatt.n. 004800430864 del 16/03/2017 FATT. FEB.2017;21-03-2017;6030;13;420;1;Spese correnti;3;Acquisto di beni e servizi;2;Acquisto di servizi;5;Utenze e canoni;4;Energia elettrica;2017-03-24;
565;5;"61,34";"1.948,06";ENEL ENERGIA SPA; ;Fatt.n. 004800429229 del 14/03/2017 fatt. feb.2017;21-03-2017;6030;13;420;1;Spese correnti;3;Acquisto di beni e servizi;2;Acquisto di servizi;5;Utenze e canoni;4;Energia elettrica;2017-03-24;
565;6;"798,27";"1.948,06";ENEL ENERGIA SPA; ;Fatt.n. 004800403502 del 13/03/2017 fatt. feb.2017;21-03-2017;6030;13;420;1;Spese correnti;3;Acquisto di beni e servizi;2;Acquisto di servizi;5;Utenze e canoni;4;Energia elettrica;2017-03-24;
565;7;"938,86";"1.948,06";ENEL ENERGIA SPA; ;Fatt.n. 004800348366 del 11/03/2017 FATT. FEB. 2017;21-03-2017;6030;13;420;1;Spese correnti;3;Acquisto di beni e servizi;2;Acquisto di servizi;5;Utenze e canoni;4;Energia elettrica;2017-03-24;
566;1;"198,16";"198,16";ENEL ENERGIA SPA; ;Fatt.n. 004800413704 del 13/03/2017 fatt. feb.2017;21-03-2017;6030;14;421;1;Spese correnti;3;Acquisto di beni e servizi;2;Acquisto di servizi;5;Utenze e canoni;4;Energia elettrica;2017-03-24;
567;1;"49,87";"1.009,72";ENEL ENERGIA SPA; ;Fatt.n. 004800430861 del 16/03/2017 FATT. FEB.2017;21-03-2017;6030;16;422;1;Spese correnti;3;Acquisto di beni e servizi;2;Acquisto di servizi;5;Utenze e canoni;4;Energia elettrica;2017-03-24;
567;2;"101,69";"1.009,72";ENEL ENERGIA SPA; ;Fatt.n. 004800398412 del 13/03/2017 fatt. gen./feb.2017;21-03-2017;6030;16;422;1;Spese correnti;3;Acquisto di beni e servizi;2;Acquisto di servizi;5;Utenze e canoni;4;Energia elettrica;2017-03-24;
567;3;"859,16";"1.009,72";ENEL ENERGIA SPA; ;Fatt.n. 004800398355 del 13/03/2017 fatt. gen./feb.2017;21-03-2017;6030;16;422;1;Spese correnti;3;Acquisto di beni e servizi;2;Acquisto di servizi;5;Utenze e canoni;4;Energia elettrica;2017-03-24;
568;1;"38,78";"38,78";ENEL ENERGIA SPA; ;Fatt.n. 004800360223 del 12/03/2017 FATT. FEB.2017;21-03-2017;6030;18;424;1;Spese correnti;3;Acquisto di beni e servizi;2;Acquisto di servizi;5;Utenze e canoni;4;Energia elettrica;2017-03-24;
569;1;"64,75";"64,75";ENEL ENERGIA SPA; ;Fatt.n. 004800430863 del 16/03/2017 FATT. FEB.2017;21-03-2017;6030;19;425;1;Spese correnti;3;Acquisto di beni e servizi;2;Acquisto di servizi;5;Utenze e canoni;4;Energia elettrica;2017-03-24;
570;1;"400,16";"400,16";DUEERRE di ROBERTO RICCIARDELLO;Z151CCB071;SALDO Fatt.n. 2/E  del 16/01/2017 fornitura manifesti;21-03-2017;2250;0;555;1;Spese correnti;3;Acquisto di beni e servizi;2;Acquisto di servizi;99;Altri servizi;999;Altri servizi diversi n.a.c.;2017-03-24;
571;1;"500,00";"500,00";ASS. BOOMBOOM;Z151CCB071;SALDO Fatt.n. 2/A/2017  del 31/01/2017 23/12/2016. GIUSTA DETERMINA NUMERO 293 DEL 31/12/2016. CIG. Z151CCB071 CUP. G69D13000510003;21-03-2017;2250;0;535;1;Spese correnti;3;Acquisto di beni e servizi;2;Acquisto di servizi;99;Altri servizi;999;Altri servizi diversi n.a.c.;2017-03-24;
572;1;"3.238,49";"3.238,49";ASSOCIAZIONE LA VOCE DELLE DONNE;Z151CCB071;SALDO Fatt.n. 000001-2017-FE  del 31/01/2017 RIFERIMENTO DETERMINA N.293 DEL 31/12/2016-REALIZZAZIONE MANIFESTAZIONE LA BEFANA;21-03-2017;2250;0;533;1;Spese correnti;3;Acquisto di beni e servizi;2;Acquisto di servizi;99;Altri servizi;999;Altri servizi diversi n.a.c.;2017-03-24;
573;1;"3.630,00";"3.630,00";Interplay Associazione musicale;Z151CCB071;SALDO Fatt.n. FATTPA 1_17  del 17/01/2017 attivita' concertistica 17/12/2016;21-03-2017;2250;0;534;1;Spese correnti;3;Acquisto di beni e servizi;2;Acquisto di servizi;99;Altri servizi;999;Altri servizi diversi n.a.c.;2017-03-24;
574;1;"300,00";"300,00";ASSOCIAZIONE P.F.M.;Z151CCB071;SALDO Fatt.n. FATTPA 1_17  del 13/01/2017 SERVIZIO GUIDA G.18/12/16 SENTIERO NATURALISTICO PROGETT ITINDARI;21-03-2017;2250;0;536;1;Spese correnti;3;Acquisto di beni e servizi;2;Acquisto di servizi;99;Altri servizi;999;Altri servizi diversi n.a.c.;2017-03-24;
577;1;"52,67";"52,67";AZIENDA SANITARIA PROVINCIALE; ;SALDO Fatt.n. 6/11  del 31/01/2017 VISITE FISCALI ANNO 2016;23-03-2017;1055;0;391;1;Spese correnti;3;Acquisto di beni e servizi;2;Acquisto di servizi;99;Altri servizi;999;Altri servizi diversi n.a.c.;2017-03-24;
578;1;"48,67";"48,67";AZIENDA SANITARIA PROVINCIALE; ;SALDO Fatt.n. 82/11  del 02/02/2017 VISITE FISCALI NOV.2016;23-03-2017;1055;0;391;1;Spese correnti;3;Acquisto di beni e servizi;2;Acquisto di servizi;99;Altri servizi;999;Altri servizi diversi n.a.c.;2017-03-24;
579;1;"7.585,96";"7.585,96";SICULA TRASPORTI S.R.L.;6150991658;SALDO Fatt.n. 159/03  del 31/01/2017 conderimento rifiuti discarica gen.2017;23-03-2017;1743;0;53;1;Spese correnti;3;Acquisto di beni e servizi;2;Acquisto di servizi;15;Contratti di servizio pubblico;5;Contratti di servizio per il conferimento in discarica dei rifiuti;2017-03-24;
580;1;"964,32";"2.158,32";GIARDINA VIAGGI SRL;ZD41B1341D;SALDO Fatt.n. 35E  del 07/03/2017 TRASPORTO STUDENTI GEN.2017;23-03-2017;2000;9;46;1;Spese correnti;3;Acquisto di beni e servizi;2;Acquisto di servizi;15;Contratti di servizio pubblico;2;Contratti di servizio di trasporto scolastico;2017-03-24;
580;2;"1.194,00";"2.158,32";GIARDINA VIAGGI SRL;ZD41B1341D;SALDO Fatt.n. 36E  del 07/03/2017 TRASPORTO STUDENTI FEB.2017;23-03-2017;2000;9;46;1;Spese correnti;3;Acquisto di beni e servizi;2;Acquisto di servizi;15;Contratti di servizio pubblico;2;Contratti di servizio di trasporto scolastico;2017-03-24;
581;1;"1.680,00";"1.680,00";ASSOCIAZIONE FRATERNITA' MISERICORDIA;ZE713CC945;INTERVENTO A SOSTEGNO DIVERSAMENTE ABILI NELLE SCUOLE A.S.2016/2017-FEB.2017;23-03-2017;1775;0;297;1;Spese correnti;3;Acquisto di beni e servizi;2;Acquisto di servizi;15;Contratti di servizio pubblico;999;Altre spese per contratti di servizio pubblico;2017-03-24;
582;1;"249,00";"249,00";ECONOMO COMUNALE; ;RIMBORSO SPESE ECONOMATO PER ACQUISTO DI UNA LAVTRICE PER L'ASILO NIDO COMUNALE;23-03-2017;1776;1;197;1;Spese correnti;3;Acquisto di beni e servizi;1;Acquisto di beni;2;Altri beni di consumo;999;Altri beni e materiali di consumo n.a.c.;2017-03-24;
588;1;"0,03";"2.479,53";AL CENTESIMO SOC. COOP. S.R.L.;ZD51B4C729;SALDO Fatt.n. 3/E  del 09/02/2017;30-03-2017;2000;8;185;1;Spese correnti;3;Acquisto di beni e servizi;2;Acquisto di servizi;15;Contratti di servizio pubblico;6;Contratti di servizio per le mense scolastiche;2017-03-31;
588;2;"2.479,56";"2.479,53";AL CENTESIMO SOC. COOP. S.R.L.;ZD51B4C729;SALDO Fatt.n. 3/E  del 09/02/2017;30-03-2017;2000;8;185;1;Spese correnti;3;Acquisto di beni e servizi;2;Acquisto di servizi;15;Contratti di servizio pubblico;6;Contratti di servizio per le mense scolastiche;2017-03-31;
589;1;"0,01";"694,13";AL CENTESIMO SOC. COOP. S.R.L.;Z6D1B4C695;SALDO Fatt.n. 4/E  del 09/02/2017 carne per mensa scolastica gen.2017;30-03-2017;2000;8;185;1;Spese correnti;3;Acquisto di beni e servizi;2;Acquisto di servizi;15;Contratti di servizio pubblico;6;Contratti di servizio per le mense scolastiche;2017-03-31;
589;2;"694,12";"694,13";AL CENTESIMO SOC. COOP. S.R.L.;Z6D1B4C695;ACCONTO Fatt.n. 4/E  del 09/02/2017 carne per mensa scolastica gen.2017;30-03-2017;2000;8;185;1;Spese correnti;3;Acquisto di beni e servizi;2;Acquisto di servizi;15;Contratti di servizio pubblico;6;Contratti di servizio per le mense scolastiche;2017-03-31;
590;1;"173,75";"173,75";TELECOM ITALIA S.P.A.; ;SALDO Fatt.n. 8V00141645  del 08/03/2017 FATT. 2 BIM. 2017 TEL.0941 661033;30-03-2017;6040;9;428;1;Spese correnti;3;Acquisto di beni e servizi;2;Acquisto di servizi;5;Utenze e canoni;1;Telefonia fissa;2017-04-05;
591;1;"1.454,82";"1.454,82";Pi.Eco S.r.l.;Z1D1B9D2D9;SALDO Fatt.n. 10  del 31/01/2017 conferimento rifiuti gen.2017;30-03-2017;1743;0;55;1;Spese correnti;3;Acquisto di beni e servizi;2;Acquisto di servizi;15;Contratti di servizio pubblico;5;Contratti di servizio per il conferimento in discarica dei rifiuti;2017-03-31;
598;1;"56,16";"56,16";ENEL ENERGIA SPA; ;Fatt.n. 004800434805 del 24/03/2017 sc. 10/04/2017 fatt. feb.2017;31-03-2017;6030;6;413;1;Spese correnti;3;Acquisto di beni e servizi;2;Acquisto di servizi;5;Utenze e canoni;4;Energia elettrica;2017-03-31;
599;1;"69,77";"69,77";ENEL ENERGIA SPA; ;Fatt.n. 004800434802 del 24/03/2017 sc. 10/04/2017 fatt. feb.2017;31-03-2017;6030;8;415;1;Spese correnti;3;Acquisto di beni e servizi;2;Acquisto di servizi;5;Utenze e canoni;4;Energia elettrica;2017-03-31;
600;1;"19,19";"381,57";ENEL ENERGIA SPA; ;Fatt.n. 004800434804 del 24/03/2017 sc. 10/04/2017 fatt. feb.2017;31-03-2017;6030;12;419;1;Spese correnti;3;Acquisto di beni e servizi;2;Acquisto di servizi;5;Utenze e canoni;4;Energia elettrica;2017-03-31;
600;2;"361,38";"381,57";ENEL ENERGIA SPA; ;Fatt.n. 004800434595 del 24/03/2017 sc. 10/04/2017 fatt. feb.2017;31-03-2017;6030;12;419;1;Spese correnti;3;Acquisto di beni e servizi;2;Acquisto di servizi;5;Utenze e canoni;4;Energia elettrica;2017-03-31;
601;1;"38,78";"1.442,73";ENEL ENERGIA SPA; ;Fatt.n. 004800434594 del 24/03/2017 sc. 10/04/2017 fatt. feb.2017;31-03-2017;6030;13;420;1;Spese correnti;3;Acquisto di beni e servizi;2;Acquisto di servizi;5;Utenze e canoni;4;Energia elettrica;2017-03-31;
601;2;"466,09";"1.442,73";ENEL ENERGIA SPA; ;Fatt.n. 004800434593 del 24/03/2017 sc. 10/04/2017 fatt. feb.2017;31-03-2017;6030;13;420;1;Spese correnti;3;Acquisto di beni e servizi;2;Acquisto di servizi;5;Utenze e canoni;4;Energia elettrica;2017-03-31;
601;3;"938,86";"1.442,73";ENEL ENERGIA SPA; ;Fatt.n. 004800434803 del 24/03/2017 sc. 10/04/2017 fatt. feb.2017;31-03-2017;6030;13;420;1;Spese correnti;3;Acquisto di beni e servizi;2;Acquisto di servizi;5;Utenze e canoni;4;Energia elettrica;2017-03-31;
602;1;"246,06";"246,06";ENEL ENERGIA SPA; ;Fatt.n. 004800434801 del 24/03/2017 sc. 10/04/2017 fatt. feb.2017;31-03-2017;6030;17;423;1;Spese correnti;3;Acquisto di beni e servizi;2;Acquisto di servizi;5;Utenze e canoni;4;Energia elettrica;2017-04-06;
604;1;"1.039,61";"1.039,61";ROSSI GIOVANNI; ;SALDO Fatt.n. 8  del 20/02/2017 Acconto (30 compenso) Appello Princiotta Rosanna _ Comune di San Piero Patti.;03-04-2017;1058;0;15;1;Spese correnti;3;Acquisto di beni e servizi;2;Acquisto di servizi;99;Altri servizi;2;Altre spese legali;2017-04-04;
605;1;"1.284,67";"1.284,67";GALLO CIRINO; ;SALDO Fatt.n. FATTPA 1_17  del 07/03/2017 giudizio Mondello Mario Filippo;03-04-2017;1058;0;37;1;Spese correnti;3;Acquisto di beni e servizi;2;Acquisto di servizi;99;Altri servizi;2;Altre spese legali;2017-04-06;
607;1;"37,74";"37,74";G.U.R.S.;6343524999;SALDO Fatt.n. 0666/2017  del 31/03/2017 INSERZIONE IN GURS;04-04-2017;4056;1;381;2;Spese in conto capitale;5;Altre spese in conto capitale;99;Altre spese in conto capitale n.a.c.;99;Altre spese in conto capitale n.a.c.;999;Altre spese in conto capitale n.a.c.;2017-04-06;
608;1;"995,10";"6.413,88";GIAMBRONE MASSIMILIANO; ;indennita' funzione MARZO 2017;04-04-2017;1001;0;42;1;Spese correnti;3;Acquisto di beni e servizi;2;Acquisto di servizi;1;Organi e incarichi istituzionali dell'amministrazione;1;Organi istituzionali dell'amministrazione - Indennità;2017-04-06;
608;2;"995,10";"6.413,88";LAURIA FRANCESCA; ;indennita' funzione MARZO 2017;04-04-2017;1001;0;42;1;Spese correnti;3;Acquisto di beni e servizi;2;Acquisto di servizi;1;Organi e incarichi istituzionali dell'amministrazione;1;Organi istituzionali dell'amministrazione - Indennità;2017-04-06;
608;3;"1.216,24";"6.413,88";TARANTO SALVATORE; ;indennita' funzione MARZO 2017;04-04-2017;1001;0;42;1;Spese correnti;3;Acquisto di beni e servizi;2;Acquisto di servizi;1;Organi e incarichi istituzionali dell'amministrazione;1;Organi istituzionali dell'amministrazione - Indennità;2017-04-06;
608;4;"995,10";"6.413,88";TODARO ANTONINO; ;indennita' funzione MARZO 2017;04-04-2017;1001;0;42;1;Spese correnti;3;Acquisto di beni e servizi;2;Acquisto di servizi;1;Organi e incarichi istituzionali dell'amministrazione;1;Organi istituzionali dell'amministrazione - Indennità;2017-04-06;
608;5;"2.211,34";"6.413,88";TROVATO ORNELLA; ;indennita' funzione MARZO 2017;04-04-2017;1001;0;42;1;Spese correnti;3;Acquisto di beni e servizi;2;Acquisto di servizi;1;Organi e incarichi istituzionali dell'amministrazione;1;Organi istituzionali dell'amministrazione - Indennità;2017-04-06;
609;1;"587,08";"587,08";NASELLO GIUSEPPE; ;rimborso spese di viaggio gg. 28/12/2016-27/01/2017-02/03/2017 commissario straord. D.A.  N.235 DEL 25/10/2016;04-04-2017;1002;0;54;1;Spese correnti;3;Acquisto di beni e servizi;2;Acquisto di servizi;1;Organi e incarichi istituzionali dell'amministrazione;1;Organi istituzionali dell'amministrazione - Indennità;2017-04-06;
611;1;"343.407,77";"343.407,77";FIAMMINGO COSTRUZIONI SRL;6343524999;SALDO Fatt.n. 6  del 29/03/2017 MANUTENZIONE STRAORDINARIA E MESSA A NORMA IMPIANTI IST. COMPRENSIVO ACCONTO SU II SAL;05-04-2017;4056;1;372;2;Spese in conto capitale;5;Altre spese in conto capitale;99;Altre spese in conto capitale n.a.c.;99;Altre spese in conto capitale n.a.c.;999;Altre spese in conto capitale n.a.c.;2017-04-06;
612;1;"4.758,00";"4.758,00";FIAMMINGO COSTRUZIONI SRL;6343524999;SALDO Fatt.n. 3  del 21/02/2017 manutenz. st. comprensivo-conferimento in discarica;05-04-2017;4056;1;378;2;Spese in conto capitale;5;Altre spese in conto capitale;99;Altre spese in conto capitale n.a.c.;99;Altre spese in conto capitale n.a.c.;999;Altre spese in conto capitale n.a.c.;2017-04-06;
613;1;"41.749,56";"41.749,56";LITOS PROGETTI SRL;6545411407;SALDO Fatt.n. FATTPA 7_17  del 20/02/2017 Lavori di manurtenzione straordinaria e messa a norma impianti Istituto Comprensivo - CUP:G11H13000480006 - CIG:6545411407;05-04-2017;4056;1;374;2;Spese in conto capitale;5;Altre spese in conto capitale;99;Altre spese in conto capitale n.a.c.;99;Altre spese in conto capitale n.a.c.;999;Altre spese in conto capitale n.a.c.;2017-04-06;
614;1;"683,20";"683,20";EDISERVICE S.R.L.;6343524999;SALDO Fatt.n. 128/04  del 14/03/2017 pubblicazione esito di gara;05-04-2017;4056;1;381;2;Spese in conto capitale;5;Altre spese in conto capitale;99;Altre spese in conto capitale n.a.c.;99;Altre spese in conto capitale n.a.c.;999;Altre spese in conto capitale n.a.c.;2017-04-06;
616;1;"34,26";"34,26";TESORIERE COMUNALE-CREDITO SICILIANO; ;TELEPASS MARZO 2017;06-04-2017;1017;0;38;1;Spese correnti;3;Acquisto di beni e servizi;2;Acquisto di servizi;99;Altri servizi;999;Altri servizi diversi n.a.c.;2017-04-06;
618;1;"27.006,80";"27.006,80";PIZZO PIPPO;ZE91CC3628;SALDO Fatt.n. 9|2017  del 15/02/2017 SERV. SPAZZAMNTO E RACCOLTA RRSSUU GEN.2017;07-04-2017;1744;0;411;1;Spese correnti;3;Acquisto di beni e servizi;2;Acquisto di servizi;15;Contratti di servizio pubblico;5;Contratti di servizio per il conferimento in discarica dei rifiuti;2017-04-11;
619;1;"29.302,60";"29.302,60";PIZZO PIPPO;Z651D2A801;SALDO Fatt.n. 15|2017  del 15/03/2017 SERV. SPAZZAMNTO E RACCOLTA RRSSUU FEB.2017;07-04-2017;1744;0;411;1;Spese correnti;3;Acquisto di beni e servizi;2;Acquisto di servizi;15;Contratti di servizio pubblico;5;Contratti di servizio per il conferimento in discarica dei rifiuti;2017-04-11;
620;1;"42,37";"42,37";KUWAIT PETROLEUM ITALIA S.P.A.;6516542493;Fatt.n. PJ00071066 del 28/02/2017 carburante feb.2017;07-04-2017;6080;1;24;1;Spese correnti;3;Acquisto di beni e servizi;1;Acquisto di beni;2;Altri beni di consumo;2;"Carburanti, combustibili e lubrificanti";2017-04-11;
621;1;"106,03";"106,03";KUWAIT PETROLEUM ITALIA S.P.A.;6516542493;Fatt.n. PJ00071066 del 28/02/2017 carburante feb.2017;07-04-2017;6080;2;25;1;Spese correnti;3;Acquisto di beni e servizi;1;Acquisto di beni;2;Altri beni di consumo;2;"Carburanti, combustibili e lubrificanti";2017-04-11;
622;1;"942,02";"942,02";KUWAIT PETROLEUM ITALIA S.P.A.;6516542493;Fatt.n. PJ00071066 del 28/02/2017 carburante feb.2017;07-04-2017;6080;3;26;1;Spese correnti;3;Acquisto di beni e servizi;1;Acquisto di beni;2;Altri beni di consumo;2;"Carburanti, combustibili e lubrificanti";2017-04-11;
623;1;"229,77";"229,77";KUWAIT PETROLEUM ITALIA S.P.A.;6516542493;Fatt.n. PJ00071066 del 28/02/2017 carburante feb.2017;07-04-2017;6080;4;27;1;Spese correnti;3;Acquisto di beni e servizi;1;Acquisto di beni;2;Altri beni di consumo;2;"Carburanti, combustibili e lubrificanti";2017-04-11;
624;1;"373,77";"373,77";KUWAIT PETROLEUM ITALIA S.P.A.;6516542493;Fatt.n. PJ00071066 del 28/02/2017 carburante feb.2017;07-04-2017;6080;5;28;1;Spese correnti;3;Acquisto di beni e servizi;1;Acquisto di beni;2;Altri beni di consumo;2;"Carburanti, combustibili e lubrificanti";2017-04-11;
625;1;"172,25";"172,25";KUWAIT PETROLEUM ITALIA S.P.A.;6516542493;Fatt.n. PJ00071066 del 28/02/2017 carburante feb.2017;07-04-2017;6080;7;29;1;Spese correnti;3;Acquisto di beni e servizi;1;Acquisto di beni;2;Altri beni di consumo;2;"Carburanti, combustibili e lubrificanti";2017-04-11;
628;1;"0,01";"579,09";AL CENTESIMO SOC. COOP. S.R.L.;ZD01C2A31C;SALDO Fatt.n. 2/E  del 09/02/2017 generi alimentari e material d'uso per asilo nido gen.2017;11-04-2017;1776;1;197;1;Spese correnti;3;Acquisto di beni e servizi;1;Acquisto di beni;2;Altri beni di consumo;999;Altri beni e materiali di consumo n.a.c.;2017-04-11;
628;2;"579,10";"579,09";AL CENTESIMO SOC. COOP. S.R.L.;ZD01C2A31C;SALDO Fatt.n. 2/E  del 09/02/2017 generi alimentari e material d'uso per asilo nido gen.2017;11-04-2017;1776;1;197;1;Spese correnti;3;Acquisto di beni e servizi;1;Acquisto di beni;2;Altri beni di consumo;999;Altri beni e materiali di consumo n.a.c.;2017-04-11;
629;1;"100,50";"100,50";AL CENTESIMO SOC. COOP. S.R.L.;ZD01C2A31C;SALDO Fatt.n. 1/E  del 06/02/2017 carne per asilo nido gen.2017;11-04-2017;1776;1;197;1;Spese correnti;3;Acquisto di beni e servizi;1;Acquisto di beni;2;Altri beni di consumo;999;Altri beni e materiali di consumo n.a.c.;2017-04-11;
630;1;"6.620,24";"6.620,24";SICULA TRASPORTI S.R.L.;6150991658;SALDO Fatt.n. 374/03  del 28/02/2017 CONFERIMENTO RIFIUTI C/DA VOLPE FEB.2017;11-04-2017;1743;0;57;1;Spese correnti;3;Acquisto di beni e servizi;2;Acquisto di servizi;15;Contratti di servizio pubblico;5;Contratti di servizio per il conferimento in discarica dei rifiuti;2017-04-11;
631;1;"940,86";"940,86";GAS NATURALVENDITA ITALIA SPA; ;SALDO Fatt.n. FI17366000002597  del 24/03/2017 CONSUMO GAS METANO 03/02-24/03/2017;11-04-2017;6160;3;433;1;Spese correnti;3;Acquisto di beni e servizi;2;Acquisto di servizi;5;Utenze e canoni;6;Gas;2017-04-19;
634;1;"492,91";"1.078,50";T.A.I. SRL;ZAE1B134A8;SALDO Fatt.n. FATTPA 1_17  del 23/03/2017 trasporto studenti gennaio 2017;13-04-2017;2000;9;47;1;Spese correnti;3;Acquisto di beni e servizi;2;Acquisto di servizi;15;Contratti di servizio pubblico;2;Contratti di servizio di trasporto scolastico;2017-04-13;
634;2;"586,59";"1.078,50";T.A.I. SRL;ZAE1B134A8;SALDO Fatt.n. FATTPA 2_17  del 23/03/2017 trasporto studenti feb.2017;13-04-2017;2000;9;47;1;Spese correnti;3;Acquisto di beni e servizi;2;Acquisto di servizi;15;Contratti di servizio pubblico;2;Contratti di servizio di trasporto scolastico;2017-04-13;
635;1;"473,07";"473,07";XEROX ITALIA RENTAL SERVICES SRL;CIG ZFE02A;SALDO Fatt.n. 17003479  del 16/02/2017 canone locazione fotocopiatori 01/01-28/02/2017;13-04-2017;2110;3;436;1;Spese correnti;3;Acquisto di beni e servizi;2;Acquisto di servizi;7;Utilizzo di beni di terzi;8;Noleggi di impianti e macchinari;2017-04-13;
636;1;"2.178,70";"2.178,70";HALLEY SUD SRL;Z001C8D941;SALDO Fatt.n. 201700179  del 06/04/2017 Canone di assistenza Software dal 01/01/2017 al 31/03/2017;13-04-2017;2100;1;495;1;Spese correnti;3;Acquisto di beni e servizi;2;Acquisto di servizi;19;Servizi informatici e di telecomunicazioni;5;Servizi per i sistemi e relativa manutenzione;2017-04-13;
637;1;"1.194,00";"1.194,00";GIARDINA VIAGGI SRL;ZD41B1341D;SALDO Fatt.n. 89E  del 06/04/2017 trasporto studenti marzo 2017;13-04-2017;2000;9;46;1;Spese correnti;3;Acquisto di beni e servizi;2;Acquisto di servizi;15;Contratti di servizio pubblico;2;Contratti di servizio di trasporto scolastico;2017-04-13;
638;1;"6.607,60";"6.607,60";CINTIOLI FULVIO; ;SALDO Fatt.n. 09E  del 07/03/2017 s/do giudizio CALABRO' TERESA + 1;13-04-2017;1058;0;510;1;Spese correnti;3;Acquisto di beni e servizi;2;Acquisto di servizi;99;Altri servizi;2;Altre spese legali;2017-04-13;
639;1;"4.075,97";"4.075,97";MAZZEO EDILRESTAURI S.R.L.;Z151CCB071;"SALDO Fatt.n. 000009-2017-ELETT  del 10/04/2017 Progetto iTi.n.da.ri - Fornitura e posa in opera di segnaletica verticale, staccionata, tavolo da picnic e panchina in legno. - CUP G69D13000510003 - CIG: Z2B1CAAFB4 Determina N. 02 R.S. e n. 05 R.G.";19-04-2017;2250;0;558;1;Spese correnti;3;Acquisto di beni e servizi;2;Acquisto di servizi;99;Altri servizi;999;Altri servizi diversi n.a.c.;2017-04-19;
640;1;"6.812,99";"6.812,99";LA TECNICA DI MONDELLO SANTI;ZF1127EZ34;SALDO Fatt.n. FATTPA 4_17  del 30/01/2017 GESTIONE IMP. DEPURAZIONE ARABITE 01/07-30/12/16;19-04-2017;1577;1;472;1;Spese correnti;3;Acquisto di beni e servizi;2;Acquisto di servizi;9;Manutenzione ordinaria e riparazioni;11;Manutenzione ordinaria e riparazioni di altri beni materiali;2017-04-19;
641;1;"8.934,62";"8.934,62";BENFATTA SALVATORE & C. S.N.C.;Z7F1CCA7C1;SALDO Fatt.n. 000002-2017-FATTURE  del 16/03/2017 MANUTENZIONE RETE IDRICA  ANNO 2017;19-04-2017;1570;0;484;1;Spese correnti;3;Acquisto di beni e servizi;2;Acquisto di servizi;9;Manutenzione ordinaria e riparazioni;11;Manutenzione ordinaria e riparazioni di altri beni materiali;2017-04-19;
743;1;"41,32";"41,32";INTERDONATO GIACOMO S.N.C.; ;SALDO Fatt.n. 000001-2017-FE  del 12/04/2017 buoni libro;27-04-2017;2000;10;394;1;Spese correnti;3;Acquisto di beni e servizi;2;Acquisto di servizi;99;Altri servizi;999;Altri servizi diversi n.a.c.;2017-04-28;
744;1;"1.500,00";"1.500,00";SOCIETA' OPERAIA DI M.S.; ;ACCORDO DI COLLABORAZIONE CON LA SOCIETA' D MUTUO SOCCORSO PER MANIFESTAZION CARNESCIALESCA 2017;27-04-2017;2000;7;52;1;Spese correnti;4;Trasferimenti correnti;4;Trasferimenti correnti a Istituzioni Sociali Private;1;Trasferimenti correnti a Istituzioni Sociali Private;1;Trasferimenti correnti a Istituzioni Sociali Private;2017-04-28;
745;1;"1.680,00";"1.680,00";ASSOCIAZIONE FRATERNITA' MISERICORDIA;ZE713CC945;INTERVENTO A SOSTEGNO DIVERSAMENTE ABILI NELLE SCUOLE A.S.2016/2017-marzo 2017;27-04-2017;1775;0;297;1;Spese correnti;3;Acquisto di beni e servizi;2;Acquisto di servizi;15;Contratti di servizio pubblico;999;Altre spese per contratti di servizio pubblico;2017-04-28;
746;1;"2.750,00";"2.750,00";PIZZO PIPPO;Z201E01B71;SALDO Fatt.n. 28|2017  del 31/03/2017 servizio incapsulamento carico trasporto e smaltim. materiali contenti amianto;27-04-2017;1744;0;411;1;Spese correnti;3;Acquisto di beni e servizi;2;Acquisto di servizi;15;Contratti di servizio pubblico;5;Contratti di servizio per il conferimento in discarica dei rifiuti;2017-04-28;
747;1;"661,94";"661,94";ANCI ASSOCIAZIONE NAZIONALE COMUNI ITALIANI; ;quota associativa anno 2017;27-04-2017;1060;0;111;1;Spese correnti;4;Trasferimenti correnti;1;Trasferimenti correnti a Amministrazioni Pubbliche;2;Trasferimenti correnti a Amministrazioni Locali;999;Trasferimenti correnti a altre Amministrazioni Locali n.a.c.;2017-05-03;
748;1;"787,85";"787,85";ENEL ENERGIA SPA; ;SALDO Fatt.n. 004800491851  del 10/04/2017 fatt. marzo 2017;28-04-2017;6030;5;412;1;Spese correnti;3;Acquisto di beni e servizi;2;Acquisto di servizi;5;Utenze e canoni;4;Energia elettrica;2017-04-28;
749;1;"219,79";"6.148,11";ENEL ENERGIA SPA; ;SALDO Fatt.n. 004800491849  del 10/04/2017 fatt. mar. 2017;28-04-2017;6030;12;419;1;Spese correnti;3;Acquisto di beni e servizi;2;Acquisto di servizi;5;Utenze e canoni;4;Energia elettrica;2017-04-28;
749;2;"5.929,32";"6.148,11";ENEL ENERGIA SPA; ;SALDO Fatt.n. 004800491850  del 10/04/2017 fatt. marzo 2017;28-04-2017;6030;12;419;1;Spese correnti;3;Acquisto di beni e servizi;2;Acquisto di servizi;5;Utenze e canoni;4;Energia elettrica;2017-04-28;
750;1;"1.930,65";"1.930,65";LO PRESTI GIORGIO;ZA01CBD6FC;SALDO Fatt.n. FATTPA 1_17  del 29/03/2017 LAVORI SISTEMAZIONE STRADE COMUNALI;28-04-2017;10500;4;543;2;Spese in conto capitale;2;Investimenti fissi lordi e acquisto di terreni;1;Beni materiali;9;Beni immobili;13;Altre vie di comunicazione;2017-04-28;
754;1;"26,30";"26,30";P.A.G.M. DI MANNINO GIOVANNI; ;SALDO Fatt.n. FATTPA 4_17  del 06/04/2017 revisione automezzo;02-05-2017;6070;7;519;1;Spese correnti;3;Acquisto di beni e servizi;2;Acquisto di servizi;9;Manutenzione ordinaria e riparazioni;1;"Manutenzione ordinaria e riparazioni di mezzi di trasporto ad uso civile, di sicurezza e ordine pubblico";2017-05-02;
755;1;"739,00";"739,00";ANTONINO MASTRANTONIO "EDIL M.A.S." COSTRUZIONI;Z4412786A1;ACCONTO Fatt.n. 000004-2016-FE  del 20/12/2016 SALDO LAVORI DI  MANUTENZIONE RETE IDRICA CENTRO E FRAZIONI ANNO 2015;02-05-2017;4035;0;371;2;Spese in conto capitale;2;Investimenti fissi lordi e acquisto di terreni;1;Beni materiali;9;Beni immobili;13;Altre vie di comunicazione;2017-05-02;
756;1;"15.261,00";"15.261,00";ANTONINO MASTRANTONIO "EDIL M.A.S." COSTRUZIONI;Z4412786A1;SALDO Fatt.n. 000004-2016-FE  del 20/12/2016 SALDO LAVORI DI  MANUTENZIONE RETE IDRICA CENTRO E FRAZIONI ANNO 2015;02-05-2017;2177;1;527;1;Spese correnti;10;Altre spese correnti;99;Altre spese correnti n.a.c.;99;Altre spese correnti n.a.c.;999;Altre spese correnti n.a.c.;2017-05-02;
758;1;"74,70";"74,70";G.U.R.S.; ;SALDO Fatt.n. 0725/2017  del 14/04/2017 INSERZIONE IN GURS;03-05-2017;1059;0;83;1;Spese correnti;3;Acquisto di beni e servizi;1;Acquisto di beni;2;Altri beni di consumo;1;"Carta, cancelleria e stampati";2017-05-04;
759;1;"85.800,00";"85.800,00";TECNOTEAM COSTRUZIONI S.R.L.;6188038280;SALDO Fatt.n. 3  del 22/03/2017 3 sal ALLOGGI POPOLARI;04-05-2017;5064;0;1428;2;Spese in conto capitale;2;Investimenti fissi lordi e acquisto di terreni;1;Beni materiali;9;Beni immobili;1;Fabbricati ad uso abitativo;2017-05-05;
760;1;"1.043,10";"1.043,10";TECNOTEAM COSTRUZIONI S.R.L.;6188038280;SALDO Fatt.n. 4  del 22/03/2017 ONERI CONFERIMENTO IN DISCARICA LAVORI ALLOGGI POPOLARI;04-05-2017;5064;0;1428;2;Spese in conto capitale;2;Investimenti fissi lordi e acquisto di terreni;1;Beni materiali;9;Beni immobili;1;Fabbricati ad uso abitativo;2017-05-04;
761;1;"0,11";"9.097,76";TECNOTEAM COSTRUZIONI S.R.L.; ;SALDO Fatt.n. 2  del 22/03/2017  LAVORI IN ECONOMIA REALIZZAZ. ALLOGGI POPOLARI;04-05-2017;5064;0;1428;2;Spese in conto capitale;2;Investimenti fissi lordi e acquisto di terreni;1;Beni materiali;9;Beni immobili;1;Fabbricati ad uso abitativo;2017-05-04;
761;2;"9.097,87";"9.097,76";TECNOTEAM COSTRUZIONI S.R.L.;6188038280;SALDO Fatt.n. 2  del 22/03/2017  LAVORI IN ECONOMIA REALIZZAZ. ALLOGGI POPOLARI;04-05-2017;5064;0;1428;2;Spese in conto capitale;2;Investimenti fissi lordi e acquisto di terreni;1;Beni materiali;9;Beni immobili;1;Fabbricati ad uso abitativo;2017-05-04;
762;1;"126,82";"126,82";KUWAIT PETROLEUM ITALIA S.P.A.;6516542493;Fatt.n. PJ00075038 del 31/03/2017 carburante automezzi marzo 2017;04-05-2017;6080;2;25;1;Spese correnti;3;Acquisto di beni e servizi;1;Acquisto di beni;2;Altri beni di consumo;2;"Carburanti, combustibili e lubrificanti";2017-05-05;
763;1;"1.071,49";"1.071,49";KUWAIT PETROLEUM ITALIA S.P.A.;6516542493;Fatt.n. PJ00075038 del 31/03/2017 carburante automezzi marzo 2017;04-05-2017;6080;3;26;1;Spese correnti;3;Acquisto di beni e servizi;1;Acquisto di beni;2;Altri beni di consumo;2;"Carburanti, combustibili e lubrificanti";2017-05-05;
764;1;"193,23";"193,23";KUWAIT PETROLEUM ITALIA S.P.A.;6516542493;Fatt.n. PJ00075038 del 31/03/2017 carburante automezzi marzo 2017;04-05-2017;6080;4;27;1;Spese correnti;3;Acquisto di beni e servizi;1;Acquisto di beni;2;Altri beni di consumo;2;"Carburanti, combustibili e lubrificanti";2017-05-05;
765;1;"390,24";"390,24";KUWAIT PETROLEUM ITALIA S.P.A.;6516542493;Fatt.n. PJ00075038 del 31/03/2017 carburante automezzi marzo 2017;04-05-2017;6080;5;28;1;Spese correnti;3;Acquisto di beni e servizi;1;Acquisto di beni;2;Altri beni di consumo;2;"Carburanti, combustibili e lubrificanti";2017-05-05;
766;1;"106,32";"106,32";KUWAIT PETROLEUM ITALIA S.P.A.;6516542493;Fatt.n. PJ00075038 del 31/03/2017 carburante automezzi marzo 2017;04-05-2017;6080;7;29;1;Spese correnti;3;Acquisto di beni e servizi;1;Acquisto di beni;2;Altri beni di consumo;2;"Carburanti, combustibili e lubrificanti";2017-05-05;
767;1;"5,92";"3.634,47";TELECOM ITALIA S.P.A.; ;Fatt.n. 8A00290263 del 06/04/2017 3BIM 2017;04-05-2017;6040;5;426;1;Spese correnti;3;Acquisto di beni e servizi;2;Acquisto di servizi;5;Utenze e canoni;1;Telefonia fissa;2017-05-09;
767;2;"74,27";"3.634,47";TELECOM ITALIA S.P.A.; ;Fatt.n. 8V00184874 del 06/04/2017 3BIM 2017;04-05-2017;6040;5;426;1;Spese correnti;3;Acquisto di beni e servizi;2;Acquisto di servizi;5;Utenze e canoni;1;Telefonia fissa;2017-05-09;
767;3;"390,01";"3.634,47";TELECOM ITALIA S.P.A.; ;Fatt.n. 8V00185778 del 06/04/2017 3BIM 2017;04-05-2017;6040;5;426;1;Spese correnti;3;Acquisto di beni e servizi;2;Acquisto di servizi;5;Utenze e canoni;1;Telefonia fissa;2017-05-09;
767;4;"793,00";"3.634,47";TELECOM ITALIA S.P.A.; ;Fatt.n. 8V00183221 del 06/04/2017 3BIM 2017;04-05-2017;6040;5;426;1;Spese correnti;3;Acquisto di beni e servizi;2;Acquisto di servizi;5;Utenze e canoni;1;Telefonia fissa;2017-05-09;
767;5;"836,69";"3.634,47";TELECOM ITALIA S.P.A.; ;Fatt.n. 8V00185204 del 06/04/2017 3BIM 2017;04-05-2017;6040;5;426;1;Spese correnti;3;Acquisto di beni e servizi;2;Acquisto di servizi;5;Utenze e canoni;1;Telefonia fissa;2017-05-09;
767;6;"1.537,58";"3.634,47";TELECOM ITALIA S.P.A.; ;Fatt.n. 4220917800003722 del 06/04/2017 3BIM 2017;04-05-2017;6040;5;426;1;Spese correnti;3;Acquisto di beni e servizi;2;Acquisto di servizi;5;Utenze e canoni;1;Telefonia fissa;2017-05-09;
768;1;"77,52";"212,84";TELECOM ITALIA S.P.A.; ;Fatt.n. 8V00182956 del 06/04/2017 3BIM 2017;04-05-2017;6040;6;427;1;Spese correnti;3;Acquisto di beni e servizi;2;Acquisto di servizi;5;Utenze e canoni;1;Telefonia fissa;2017-05-09;
768;2;"135,32";"212,84";TELECOM ITALIA S.P.A.; ;Fatt.n. 4220917800003667 del 06/04/2017 3BIM 2017;04-05-2017;6040;6;427;1;Spese correnti;3;Acquisto di beni e servizi;2;Acquisto di servizi;5;Utenze e canoni;1;Telefonia fissa;2017-05-09;
769;1;"77,52";"164,77";TELECOM ITALIA S.P.A.; ;Fatt.n. 8V00182303 del 06/04/2017 3BIM 2017;04-05-2017;6040;10;429;1;Spese correnti;3;Acquisto di beni e servizi;2;Acquisto di servizi;5;Utenze e canoni;1;Telefonia fissa;2017-05-09;
769;2;"87,25";"164,77";TELECOM ITALIA S.P.A.; ;Fatt.n. 4220917800003722 del 06/04/2017 3BIM 2017;04-05-2017;6040;10;429;1;Spese correnti;3;Acquisto di beni e servizi;2;Acquisto di servizi;5;Utenze e canoni;1;Telefonia fissa;2017-05-09;
770;1;"5,88";"212,82";SIAE;Z151CCB071;SALDO Fatt.n. 1617010565  del 14/04/2017 DIRITTI AMMINISTRATIVI;04-05-2017;2250;0;537;1;Spese correnti;3;Acquisto di beni e servizi;2;Acquisto di servizi;99;Altri servizi;999;Altri servizi diversi n.a.c.;2017-05-05;
770;2;"207,94";"212,82";SIAE;Z151CCB071;SALDO Fatt.n. 1617010567  del 14/04/2017 DIRITTI SIAE CONCERTI;04-05-2017;2250;0;537;1;Spese correnti;3;Acquisto di beni e servizi;2;Acquisto di servizi;99;Altri servizi;999;Altri servizi diversi n.a.c.;2017-05-05;
771;1;"1.058,52";"1.058,52";BENFATTA SALVATORE & C. S.N.C.;Z7F1CCA7C1;SALDO Fatt.n. 000003-2017-FATTURE  del 19/04/2017 MANUTENZIONE RETE IDRICA CENTRO E FRAZIONI ANNO 2017;04-05-2017;1570;0;484;1;Spese correnti;3;Acquisto di beni e servizi;2;Acquisto di servizi;9;Manutenzione ordinaria e riparazioni;11;Manutenzione ordinaria e riparazioni di altri beni materiali;2017-05-05;
772;1;"11.664,03";"11.664,03";PRINCIOTTA MELINA; ;SALDO Fatt.n. FATTPA 3_17  del 02/05/2017 I S.A.L. SCERBATURA E PULIZIA STRADE;04-05-2017;10500;7;546;2;Spese in conto capitale;2;Investimenti fissi lordi e acquisto di terreni;1;Beni materiali;9;Beni immobili;13;Altre vie di comunicazione;2017-05-05;
773;1;"897,70";"897,70";ANTONINO MASTRANTONIO "EDIL M.A.S." COSTRUZIONI; ;SALDO Fatt.n. 000005-2016-FE  del 20/12/2016 SALDO LAVORI DI SGOMBERO NEVE;04-05-2017;2177;1;524;1;Spese correnti;10;Altre spese correnti;99;Altre spese correnti n.a.c.;99;Altre spese correnti n.a.c.;999;Altre spese correnti n.a.c.;2017-05-05;
774;1;"36,26";"36,26";TESORIERE COMUNALE-CREDITO SICILIANO; ;TELEPASS APRILE 2017;04-05-2017;1017;0;38;1;Spese correnti;3;Acquisto di beni e servizi;2;Acquisto di servizi;99;Altri servizi;999;Altri servizi diversi n.a.c.;2017-05-04;
775;1;"3.170,23";"3.170,23";SOCIETA' COOP.  NUOVI ORIZZONTI ARL;6935897345;"SALDO Fatt.n. 11/P.A.  del 05/04/2017 SERVIZIO DI ASSISTENZA DOMICILIARE RIVOLTO AGLI ANZIANI, AI DIVERSAMENTE ABILI, AI MINORI ED AI NUCLEI FAMILIARI IN CONDIZIONI DI DISAGIO. - ANNO 2017 VERBALE DI AFFIDAMENTO PER ESECUZIONE D'URGENZA (";04-05-2017;1878;2;329;1;Spese correnti;3;Acquisto di beni e servizi;2;Acquisto di servizi;15;Contratti di servizio pubblico;9;Contratti di servizio di assistenza sociale domiciliare;2017-05-05;
776;1;"2.885,30";"2.885,30";HALLEY CONSULTING;ZE91C8D94E;SALDO Fatt.n. 20170559  del 03/04/2017 canone assistenza software 01/01-31/03/2017;04-05-2017;2100;1;346;1;Spese correnti;3;Acquisto di beni e servizi;2;Acquisto di servizi;19;Servizi informatici e di telecomunicazioni;5;Servizi per i sistemi e relativa manutenzione;2017-05-05;
778;1;"1.568,16";"1.568,16";Pi.Eco S.r.l.;Z1D1B9D2D9;SALDO Fatt.n. 34  del 31/03/2017 conferimento rifiuti biodegradabili feb.2017;08-05-2017;1743;0;121;1;Spese correnti;3;Acquisto di beni e servizi;2;Acquisto di servizi;15;Contratti di servizio pubblico;5;Contratti di servizio per il conferimento in discarica dei rifiuti;2017-05-10;
779;1;"1.565,19";"1.565,19";Pi.Eco S.r.l.;Z1D1B9D2D9;SALDO Fatt.n. 35  del 31/03/2017 conferimento rifiuti biodegradabili mar.2017;08-05-2017;1743;0;121;1;Spese correnti;3;Acquisto di beni e servizi;2;Acquisto di servizi;15;Contratti di servizio pubblico;5;Contratti di servizio per il conferimento in discarica dei rifiuti;2017-05-10;
785;1;"12.168,78";"12.168,78";PIZZO PIPPO;Z561D92CA4;"SALDO Fatt.n. 27|2017  del 31/03/2017 spazzamento,raccolta e trasporto rr.ss.uu. 01/03-11/03/2017";10-05-2017;1744;0;411;1;Spese correnti;3;Acquisto di beni e servizi;2;Acquisto di servizi;15;Contratti di servizio pubblico;5;Contratti di servizio per il conferimento in discarica dei rifiuti;2017-05-10;
787;1;"1.600,31";"1.600,31";WIND TELECOMUNICAZIONI SPA; ;SALDO Fatt.n. 2016E000009009  del 19/09/2016 CANONI E UTENZE TELEFONIA MOBILE 01/07-31/08/2016;11-05-2017;6040;5;522;1;Spese correnti;3;Acquisto di beni e servizi;2;Acquisto di servizi;5;Utenze e canoni;1;Telefonia fissa;2017-05-11;
791;1;"20.254,59";"20.254,59";Eco.Geos S.r.l.;6982986E54;"SALDO Fatt.n. 7|2017  del 31/03/2017 SPAZZAMENTO,RACCOLTA E TRASPORTO RR.SS.UU. 13/03-31/03/2017";15-05-2017;1744;0;411;1;Spese correnti;3;Acquisto di beni e servizi;2;Acquisto di servizi;15;Contratti di servizio pubblico;5;Contratti di servizio per il conferimento in discarica dei rifiuti;2017-05-15;
792;1;"0,01";"75,99";EDILCENTER DI SCAGLIONE MARCELLO & C. S.N.C.;Z1D1C78501;SALDO Fatt.n. 000001-2017-FE  del 27/02/2017 RIFERIMENTO DETERMINA N.120 DEL 14/12/2016;15-05-2017;1478;0;401;1;Spese correnti;10;Altre spese correnti;99;Altre spese correnti n.a.c.;99;Altre spese correnti n.a.c.;999;Altre spese correnti n.a.c.;2017-05-15;
792;2;"75,98";"75,99";EDILCENTER DI SCAGLIONE MARCELLO & C. S.N.C.;Z1D1C78501;ACCONTO Fatt.n. 000001-2017-FE  del 27/02/2017 RIFERIMENTO DETERMINA N.120 DEL 14/12/2016;15-05-2017;1478;0;401;1;Spese correnti;10;Altre spese correnti;99;Altre spese correnti n.a.c.;99;Altre spese correnti n.a.c.;999;Altre spese correnti n.a.c.;2017-05-15;
793;1;"597,06";"3.848,68";GIAMBRONE MASSIMILIANO; ;indennita' funzione 01/04/2017-18/04/2017 - 27/04/2017-30/04/2017;15-05-2017;1001;0;42;1;Spese correnti;3;Acquisto di beni e servizi;2;Acquisto di servizi;1;Organi e incarichi istituzionali dell'amministrazione;1;Organi istituzionali dell'amministrazione - Indennità;2017-05-15;
793;2;"597,06";"3.848,68";LAURIA FRANCESCA; ;indennita' funzione 01/04/2017-18/04/2017 - 27/04/2017-30/04/2017;15-05-2017;1001;0;42;1;Spese correnti;3;Acquisto di beni e servizi;2;Acquisto di servizi;1;Organi e incarichi istituzionali dell'amministrazione;1;Organi istituzionali dell'amministrazione - Indennità;2017-05-15;
793;3;"730,72";"3.848,68";TARANTO SALVATORE; ;indennita' funzione 01/04/2017-18/04/2017 - 27/04/2017-30/04/2017;15-05-2017;1001;0;42;1;Spese correnti;3;Acquisto di beni e servizi;2;Acquisto di servizi;1;Organi e incarichi istituzionali dell'amministrazione;1;Organi istituzionali dell'amministrazione - Indennità;2017-05-15;
793;4;"597,06";"3.848,68";TODARO ANTONINO; ;indennita' funzione 01/04/2017-18/04/2017 - 27/04/2017-30/04/2017;15-05-2017;1001;0;42;1;Spese correnti;3;Acquisto di beni e servizi;2;Acquisto di servizi;1;Organi e incarichi istituzionali dell'amministrazione;1;Organi istituzionali dell'amministrazione - Indennità;2017-05-15;
793;5;"1.327,78";"3.848,68";TROVATO ORNELLA; ;indennita' funzione 01/04/2017-18/04/2017 - 27/04/2017-30/04/2017;15-05-2017;1001;0;42;1;Spese correnti;3;Acquisto di beni e servizi;2;Acquisto di servizi;1;Organi e incarichi istituzionali dell'amministrazione;1;Organi istituzionali dell'amministrazione - Indennità;2017-05-15;
846;1;"360,94";"2.568,71";ARDIRI GRAZIELLA; ;GETTONI PRESENZA CONSIGLIERI COMUNALI ANNO 2016;16-05-2017;1002;0;382;1;Spese correnti;3;Acquisto di beni e servizi;2;Acquisto di servizi;1;Organi e incarichi istituzionali dell'amministrazione;1;Organi istituzionali dell'amministrazione - Indennità;2017-05-17;
846;2;"411,36";"2.568,71";BALLOTTA SALVATORE; ;GETTONI PRESENZA CONSIGLIERI COMUNALI ANNO 2016;16-05-2017;1002;0;382;1;Spese correnti;3;Acquisto di beni e servizi;2;Acquisto di servizi;1;Organi e incarichi istituzionali dell'amministrazione;1;Organi istituzionali dell'amministrazione - Indennità;2017-06-08;
846;3;"280,52";"2.568,71";BONGIOVANNI SALVATORE; ;GETTONI PRESENZA CONSIGLIERI COMUNALI ANNO 2016;16-05-2017;1002;0;382;1;Spese correnti;3;Acquisto di beni e servizi;2;Acquisto di servizi;1;Organi e incarichi istituzionali dell'amministrazione;1;Organi istituzionali dell'amministrazione - Indennità;2017-05-17;
846;4;"103,84";"2.568,71";GULINO GINO; ;GETTONI PRESENZA CONSIGLIERI COMUNALI ANNO 2016;16-05-2017;1002;0;382;1;Spese correnti;3;Acquisto di beni e servizi;2;Acquisto di servizi;1;Organi e incarichi istituzionali dell'amministrazione;1;Organi istituzionali dell'amministrazione - Indennità;2017-05-16;
846;5;"360,94";"2.568,71";LA BELLA MARIO PIPPO; ;GETTONI PRESENZA CONSIGLIERI COMUNALI ANNO 2016;16-05-2017;1002;0;382;1;Spese correnti;3;Acquisto di beni e servizi;2;Acquisto di servizi;1;Organi e incarichi istituzionali dell'amministrazione;1;Organi istituzionali dell'amministrazione - Indennità;2017-05-17;
846;6;"283,81";"2.568,71";MARTINO FRANCESCA; ;GETTONI PRESENZA CONSIGLIERI COMUNALI ANNO 2016;16-05-2017;1002;0;382;1;Spese correnti;3;Acquisto di beni e servizi;2;Acquisto di servizi;1;Organi e incarichi istituzionali dell'amministrazione;1;Organi istituzionali dell'amministrazione - Indennità;2017-05-17;
846;7;"334,23";"2.568,71";PAGLIAZZO VINCENZINA; ;GETTONI PRESENZA CONSIGLIERI COMUNALI ANNO 2016;16-05-2017;1002;0;382;1;Spese correnti;3;Acquisto di beni e servizi;2;Acquisto di servizi;1;Organi e incarichi istituzionali dell'amministrazione;1;Organi istituzionali dell'amministrazione - Indennità;2017-06-06;
846;8;"437,07";"2.568,71";TRICOLI ROSARIO NUNZIATO; ;GETTONI PRESENZA CONSIGLIERI COMUNALI ANNO 2016;16-05-2017;1002;0;382;1;Spese correnti;3;Acquisto di beni e servizi;2;Acquisto di servizi;1;Organi e incarichi istituzionali dell'amministrazione;1;Organi istituzionali dell'amministrazione - Indennità;2017-05-16;
847;1;"132,84";"1.932,54";BONGIOVANNI SALVATORE; ;GETTONI PRESENZA C.C. 2016;16-05-2017;1002;0;145;1;Spese correnti;3;Acquisto di beni e servizi;2;Acquisto di servizi;1;Organi e incarichi istituzionali dell'amministrazione;1;Organi istituzionali dell'amministrazione - Indennità;2017-05-17;
847;2;"386,65";"1.932,54";CAMUTI  GIAN LUCA; ;GETTONI PRESENZA C.C. 2016;16-05-2017;1002;0;145;1;Spese correnti;3;Acquisto di beni e servizi;2;Acquisto di servizi;1;Organi e incarichi istituzionali dell'amministrazione;1;Organi istituzionali dell'amministrazione - Indennità;2017-05-16;
847;3;"386,65";"1.932,54";DI BELLA GIANLUCA; ;GETTONI PRESENZA C.C. 2016;16-05-2017;1002;0;145;1;Spese correnti;3;Acquisto di beni e servizi;2;Acquisto di servizi;1;Organi e incarichi istituzionali dell'amministrazione;1;Organi istituzionali dell'amministrazione - Indennità;2017-05-17;
847;4;"360,94";"1.932,54";DI DIO FABIO; ;GETTONI PRESENZA C.C. 2016;16-05-2017;1002;0;145;1;Spese correnti;3;Acquisto di beni e servizi;2;Acquisto di servizi;1;Organi e incarichi istituzionali dell'amministrazione;1;Organi istituzionali dell'amministrazione - Indennità;2017-07-27;
847;5;"386,65";"1.932,54";FERRO FRANCESCO; ;GETTONI PRESENZA C.C. 2016;16-05-2017;1002;0;145;1;Spese correnti;3;Acquisto di beni e servizi;2;Acquisto di servizi;1;Organi e incarichi istituzionali dell'amministrazione;1;Organi istituzionali dell'amministrazione - Indennità;2017-05-17;
847;6;"283,81";"1.932,54";PAGANA FRANCESCO; ;GETTONI PRESENZA C.C. 2016;16-05-2017;1002;0;145;1;Spese correnti;3;Acquisto di beni e servizi;2;Acquisto di servizi;1;Organi e incarichi istituzionali dell'amministrazione;1;Organi istituzionali dell'amministrazione - Indennità;2017-07-26;
848;1;"973,12";"973,12";LOPRESTI MARIA GABRIELLA; ;SALDO Fatt.n. 7/E  del 05/05/2017 COMPENSO REVISORE DEI CONTI 21/11-31/12/2016;16-05-2017;1046;0;339;1;Spese correnti;3;Acquisto di beni e servizi;2;Acquisto di servizi;1;Organi e incarichi istituzionali dell'amministrazione;1;Organi istituzionali dell'amministrazione - Indennità;2017-05-17;
849;1;"2.246,78";"2.246,78";LOPRESTI MARIA GABRIELLA; ;SALDO Fatt.n. 8/E  del 05/05/2017 COMPENSO REVISORE 01/01-31/03/2017;16-05-2017;1046;0;115;1;Spese correnti;3;Acquisto di beni e servizi;2;Acquisto di servizi;1;Organi e incarichi istituzionali dell'amministrazione;1;Organi istituzionali dell'amministrazione - Indennità;2017-05-17;
908;1;"33,93";"33,93";GAS NATURALVENDITA ITALIA SPA; ;SALDO Fatt.n. FI17366000002763  del 24/04/2017 CANONI E CONSUMI GAS METANO 06/02/16-24/04/2017;17-05-2017;6160;2;528;1;Spese correnti;3;Acquisto di beni e servizi;2;Acquisto di servizi;5;Utenze e canoni;999;Utenze e canoni per altri servizi n.a.c.;2017-05-23;
913;1;"182,57";"182,57";GAS NATURALVENDITA ITALIA SPA; ;Fatt.n. FI17366000003040 del 24/04/2017 canoni e consum gas metano 25/11/2016-24/04/2016;22-05-2017;6160;1;431;1;Spese correnti;3;Acquisto di beni e servizi;2;Acquisto di servizi;5;Utenze e canoni;999;Utenze e canoni per altri servizi n.a.c.;2017-05-29;
914;1;"169,10";"169,10";GAS NATURALVENDITA ITALIA SPA; ;Fatt.n. FI17366000003390 del 24/04/2017 canoni e consumi gas metano 04/03-24/04/17;22-05-2017;6160;3;433;1;Spese correnti;3;Acquisto di beni e servizi;2;Acquisto di servizi;5;Utenze e canoni;6;Gas;2017-05-29;
915;1;"595,93";"595,93";ENEL ENERGIA SPA; ;Fatt.n. 004800638513 del 10/05/2017 FATT. APR.2017;22-05-2017;6030;5;412;1;Spese correnti;3;Acquisto di beni e servizi;2;Acquisto di servizi;5;Utenze e canoni;4;Energia elettrica;2017-05-23;
916;1;"77,18";"5.534,52";ENEL ENERGIA SPA;0000000000;Fatt.n. 004800626475 del 09/05/2017 FATT. MAR./APR.2017;22-05-2017;6030;12;419;1;Spese correnti;3;Acquisto di beni e servizi;2;Acquisto di servizi;5;Utenze e canoni;4;Energia elettrica;2017-05-23;
916;2;"185,26";"5.534,52";ENEL ENERGIA SPA; ;Fatt.n. 004800638511 del 10/05/2017 FATT. I.P. APR.2017;22-05-2017;6030;12;419;1;Spese correnti;3;Acquisto di beni e servizi;2;Acquisto di servizi;5;Utenze e canoni;4;Energia elettrica;2017-05-23;
916;3;"261,03";"5.534,52";ENEL ENERGIA SPA; ;Fatt.n. 004800631412 del 10/05/2017 FATT. GEN./FEB.2017;22-05-2017;6030;12;419;1;Spese correnti;3;Acquisto di beni e servizi;2;Acquisto di servizi;5;Utenze e canoni;4;Energia elettrica;2017-05-23;
916;4;"5.010,05";"5.534,52";ENEL ENERGIA SPA; ;Fatt.n. 004800638512 del 10/05/2017 FATT. APR.2017;22-05-2017;6030;12;419;1;Spese correnti;3;Acquisto di beni e servizi;2;Acquisto di servizi;5;Utenze e canoni;4;Energia elettrica;2017-05-23;
917;1;"-357,52";"600,00";TECNOTEAM COSTRUZIONI S.R.L.;6188038280;SALDO Fatt.n. 1  del 10/05/2017 nota di credito spese di laboratorio lavori alloggi popolari;22-05-2017;5064;0;1428;2;Spese in conto capitale;2;Investimenti fissi lordi e acquisto di terreni;1;Beni materiali;9;Beni immobili;1;Fabbricati ad uso abitativo;2017-05-23;
917;2;"0,01";"600,00";TECNOTEAM COSTRUZIONI S.R.L.; ;SALDO Fatt.n. 5  del 24/03/2017 rimborso spese di laboratorio realizzazione alloggi popolari;22-05-2017;5064;0;1428;2;Spese in conto capitale;2;Investimenti fissi lordi e acquisto di terreni;1;Beni materiali;9;Beni immobili;1;Fabbricati ad uso abitativo;2017-05-23;
917;3;"957,53";"600,00";TECNOTEAM COSTRUZIONI S.R.L.;6188038280;SALDO Fatt.n. 5  del 24/03/2017 rimborso spese di laboratorio realizzazione alloggi popolari;22-05-2017;5064;0;1428;2;Spese in conto capitale;2;Investimenti fissi lordi e acquisto di terreni;1;Beni materiali;9;Beni immobili;1;Fabbricati ad uso abitativo;2017-05-23;
918;1;"184,94";"184,94";A.I.C.C.R.E.; ;aiccre - quota associativa anno 2017;22-05-2017;1060;8;125;1;Spese correnti;4;Trasferimenti correnti;1;Trasferimenti correnti a Amministrazioni Pubbliche;2;Trasferimenti correnti a Amministrazioni Locali;999;Trasferimenti correnti a altre Amministrazioni Locali n.a.c.;2017-05-29;
920;1;"668,46";"668,46";COMUNE DI ACCUMOLI; ;contributo di solidarieta' sisma del 24/08/2017;23-05-2017;1002;0;145;1;Spese correnti;3;Acquisto di beni e servizi;2;Acquisto di servizi;1;Organi e incarichi istituzionali dell'amministrazione;1;Organi istituzionali dell'amministrazione - Indennità;2017-05-29;
921;1;"660,00";"660,00";ASSOCIAZIONE FRATERNITA' MISERICORDIA;ZE713CC945;INTERVENTO A SOSTEGNO DIVERSAMENTE ABILI NELLE SCUOLE A.S.2016/2017-ACC. APR.2017;23-05-2017;1775;0;297;1;Spese correnti;3;Acquisto di beni e servizi;2;Acquisto di servizi;15;Contratti di servizio pubblico;999;Altre spese per contratti di servizio pubblico;2017-05-23;
922;1;"1.020,00";"1.020,00";ASSOCIAZIONE FRATERNITA' MISERICORDIA;ZE713CC945;INTERVENTO A SOSTEGNO DIVERSAMENTE ABILI NELLE SCUOLE A.S.2016/2017-SALDO APR. 2017;23-05-2017;1775;1;298;1;Spese correnti;3;Acquisto di beni e servizi;2;Acquisto di servizi;15;Contratti di servizio pubblico;999;Altre spese per contratti di servizio pubblico;2017-05-23;
923;1;"482,53";"482,53";LIMINA PROVVIDENZA; ;SPESE DI VIAGGIO SEGRETARIO COMUNALE 01/07-31/12/2016;23-05-2017;1110;0;82;1;Spese correnti;3;Acquisto di beni e servizi;2;Acquisto di servizi;2;"Organizzazione eventi, pubblicita` e servizi per trasferta";2;Indennità di missione e di trasferta;2017-05-23;
924;1;"3.131,66";"3.131,66";SICULA TRASPORTI S.R.L.;6150991658;SALDO Fatt.n. 542/03  del 23/03/2017 CONF. RRSSUU  01/03-19/03/17;23-05-2017;1743;0;120;1;Spese correnti;3;Acquisto di beni e servizi;2;Acquisto di servizi;15;Contratti di servizio pubblico;5;Contratti di servizio per il conferimento in discarica dei rifiuti;2017-05-23;
925;1;"2.390,65";"2.390,65";SICULA TRASPORTI S.R.L.;6150991658;SALDO Fatt.n. 712/03  del 31/03/2017 CONFERIMENTO RRSSUU 20/03-31/03/17;23-05-2017;1743;0;120;1;Spese correnti;3;Acquisto di beni e servizi;2;Acquisto di servizi;15;Contratti di servizio pubblico;5;Contratti di servizio per il conferimento in discarica dei rifiuti;2017-05-23;
926;1;"41,32";"41,32";LA BOTTEGA DEL LETTORE DI MOSCA LUIGIA  & C. S.A.S.; ;SALDO Fatt.n. 11  del 26/04/2017 1 buono libro;23-05-2017;2000;10;394;1;Spese correnti;3;Acquisto di beni e servizi;2;Acquisto di servizi;99;Altri servizi;999;Altri servizi diversi n.a.c.;2017-05-23;
927;1;"218,50";"218,50";AGENZIA DELLE ENTRATE; ;registrazione sentenza civile trib. di patti n.650/2016;23-05-2017;1058;0;126;1;Spese correnti;3;Acquisto di beni e servizi;2;Acquisto di servizi;99;Altri servizi;2;Altre spese legali;2017-06-08;
928;1;"6.682,80";"6.682,80";AZIENDA SICILIANA TRASPORTI;Z071B12FD8;SALDO Fatt.n. 45/S4  del 27/04/2017 Z071B12FD8 ABB. SCOL. FEBBRAIO 2017;23-05-2017;2000;9;45;1;Spese correnti;3;Acquisto di beni e servizi;2;Acquisto di servizi;15;Contratti di servizio pubblico;2;Contratti di servizio di trasporto scolastico;2017-05-23;
929;1;"988,20";"988,20";EDISERVICE S.R.L.;70060485B4;SALDO Fatt.n. 163/04  del 04/04/2017 pubblicazione gara;23-05-2017;1059;0;59;1;Spese correnti;3;Acquisto di beni e servizi;1;Acquisto di beni;2;Altri beni di consumo;1;"Carta, cancelleria e stampati";2017-05-23;
930;1;"159,95";"159,95";AL CENTESIMO SOC. COOP. S.R.L.;Z201C2A1C1;SALDO Fatt.n. 7/E  del 02/03/2017 carne per asilo nido feb.2017;23-05-2017;1776;1;197;1;Spese correnti;3;Acquisto di beni e servizi;1;Acquisto di beni;2;Altri beni di consumo;999;Altri beni e materiali di consumo n.a.c.;2017-05-23;
931;1;"761,84";"761,84";AL CENTESIMO SOC. COOP. S.R.L.;ZD01C2A31C;"SALDO Fatt.n. 8/E  del 02/03/2017 generi alimentari,frutta e verdura,matriale d'uso  per asilo nido feb.2017";23-05-2017;1776;1;197;1;Spese correnti;3;Acquisto di beni e servizi;1;Acquisto di beni;2;Altri beni di consumo;999;Altri beni e materiali di consumo n.a.c.;2017-05-23;
932;1;"603,93";"603,93";AL CENTESIMO SOC. COOP. S.R.L.;Z6D1B4C695;SALDO Fatt.n. 5/E  del 02/03/2017 carne per mensa scolastica feb.2017;23-05-2017;2000;8;185;1;Spese correnti;3;Acquisto di beni e servizi;2;Acquisto di servizi;15;Contratti di servizio pubblico;6;Contratti di servizio per le mense scolastiche;2017-05-23;
